{"text_format":"2","workbook":"xlsx","n_sheets":2,"sheets":["окончат","Лист1"],"not_rendered":{"charts":0,"images":0,"macros":0,"external_links":0,"defined_names":3,"comments":1,"pivot_tables":0},"unopened":[],"bounds":{"document_bytes":16777216,"sheet_cells":100000,"run_cost":"one","rows_first":2000,"rows_last":500,"rows_between":2000,"halvings":0,"cell_chars":16384,"cell_head_chars":4096},"cells_cut":0,"cells_raw":0,"read":"whole","date_system":"1900"}

{"sheet":"окончат","index":0,"n_rows":1156,"n_cols":23,"rows_kept":1156,"cut":false,"hidden":false,"merged":[[1149,2,1150,2],[1149,3,1150,3],[1149,4,1150,4],[1149,5,1150,5],[1149,6,1150,6],[69,3,71,3],[69,4,71,4],[69,5,71,5],[69,6,71,6],[73,2,75,2],[73,3,75,3],[73,4,75,4],[73,5,75,5],[73,6,75,6],[125,6,127,6],[113,6,115,6],[121,6,123,6],[113,5,115,5],[96,6,100,6],[113,3,115,3],[102,6,104,6],[106,6,111,6],[117,6,119,6],[113,4,115,4],[1015,0,1018,0],[1019,0,1022,0],[1023,0,1026,0],[1075,0,1078,0],[1079,0,1083,0],[1084,0,1087,0],[1088,0,1091,0],[1092,0,1095,0],[1096,0,1099,0],[1027,0,1030,0],[1039,0,1043,0],[1044,0,1047,0],[1048,0,1051,0],[1052,0,1056,0],[1057,0,1061,0],[1062,0,1066,0],[1067,0,1070,0],[1071,0,1074,0],[979,0,982,0],[983,0,986,0],[987,0,990,0],[991,0,994,0],[995,0,998,0],[999,0,1002,0],[1003,0,1006,0],[1007,0,1010,0],[1011,0,1014,0],[946,0,949,0],[950,0,953,0],[893,0,894,0],[954,0,957,0],[958,0,961,0],[962,0,965,0],[966,0,970,0],[971,0,974,0],[975,0,978,0],[855,0,858,0],[860,0,863,0],[865,0,868,0],[899,0,902,0],[925,0,928,0],[929,0,932,0],[933,0,936,0],[937,0,941,0],[942,0,945,0],[818,0,821,0],[822,0,825,0],[826,0,829,0],[830,0,833,0],[834,0,837,0],[838,0,841,0],[842,0,845,0],[846,0,850,0],[851,0,854,0],[782,0,785,0],[786,0,789,0],[790,0,793,0],[794,0,797,0],[798,0,801,0],[802,0,805,0],[806,0,809,0],[810,0,813,0],[814,0,817,0],[736,0,739,0],[740,0,743,0],[744,0,747,0],[748,0,751,0],[752,0,755,0],[756,0,759,0],[760,0,763,0],[765,0,769,0],[773,0,777,0],[697,0,700,0],[701,0,704,0],[705,0,708,0],[709,0,712,0],[714,0,717,0],[719,0,722,0],[723,0,726,0],[727,0,730,0],[732,0,735,0],[656,0,659,0],[661,0,664,0],[665,0,668,0],[669,0,672,0],[675,0,678,0],[680,0,683,0],[684,0,687,0],[689,0,692,0],[693,0,696,0],[610,0,613,0],[614,0,617,0],[618,0,621,0],[622,0,625,0],[626,0,629,0],[630,0,633,0],[634,0,637,0],[638,0,641,0],[643,0,646,0],[387,0,388,0],[389,0,390,0],[483,0,488,0],[502,0,506,0],[527,1,528,1],[592,0,595,0],[596,0,600,0],[601,0,604,0],[606,0,609,0],[578,0,582,0],[584,0,587,0],[588,0,591,0],[544,0,549,0],[532,0,534,0],[453,1,455,1],[473,0,476,0],[477,0,478,0],[495,1,497,1],[456,0,461,0],[462,0,472,0],[524,0,525,0],[529,0,531,0],[489,0,497,0],[508,1,510,1],[443,2,447,2],[402,2,413,2],[402,1,413,1],[398,0,399,0],[424,0,429,0],[442,0,447,0],[430,0,435,0],[419,0,421,0],[414,0,415,0],[401,0,413,0],[437,1,441,1],[121,1,123,1],[121,2,123,2],[128,0,129,0],[125,5,127,5],[117,3,119,3],[117,4,119,4],[117,1,119,1],[117,2,119,2],[124,0,127,0],[121,5,123,5],[116,0,119,0],[120,0,123,0],[121,3,123,3],[121,4,123,4],[117,5,119,5],[125,1,127,1],[125,2,127,2],[125,3,127,3],[125,4,127,4],[8,0,9,0],[8,5,9,5],[12,1,16,1],[12,2,16,2],[12,3,16,3],[18,3,22,3],[18,4,22,4],[29,0,32,0],[34,0,37,0],[8,2,9,2],[39,0,40,0],[18,1,22,1],[11,0,25,0],[73,1,75,1],[72,0,75,0],[41,0,43,0],[44,0,47,0],[106,5,111,5],[102,5,104,5],[96,2,100,2],[96,3,100,3],[102,4,104,4],[48,0,50,0],[51,0,53,0],[54,0,55,0],[86,5,91,5],[77,1,82,1],[86,3,91,3],[95,0,100,0],[96,1,100,1],[105,0,111,0],[56,0,58,0],[59,0,61,0],[62,0,64,0],[106,4,111,4],[106,3,111,3],[96,4,100,4],[96,5,100,5],[102,3,104,3],[65,0,67,0],[68,0,71,0],[76,0,84,0],[113,2,115,2],[101,0,104,0],[102,1,104,1],[102,2,104,2],[69,1,71,1],[106,1,111,1],[106,2,111,2],[85,0,94,0],[86,1,91,1],[86,2,91,2],[112,0,115,0],[113,1,115,1],[83,1,84,1],[77,2,82,2],[69,2,71,2],[1,15,1,22],[2,15,2,22],[3,15,3,22],[4,1,4,16],[6,2,6,22],[18,2,22,2],[92,2,94,2],[92,6,94,6],[18,5,22,5],[8,3,9,3],[8,4,9,4],[92,3,94,3],[92,4,94,4],[92,5,94,5],[8,10,8,22],[8,1,9,1],[92,1,94,1],[8,7,8,9],[86,4,91,4],[77,7,77,8],[12,4,16,4],[12,5,16,5],[8,6,9,6],[86,6,91,6],[544,7,544,9],[870,7,870,9],[484,3,488,3],[453,3,455,3],[529,7,529,9],[474,3,476,3],[552,1,556,1],[545,1,546,1],[547,1,549,1],[495,3,497,3],[496,4,497,4],[495,5,497,5],[496,6,497,6],[457,6,461,6],[484,4,488,4],[463,5,472,5],[474,5,476,5],[484,5,488,5],[537,2,542,2],[500,2,501,2],[495,2,497,2],[463,2,472,2],[552,5,556,5],[552,6,556,6],[873,6,891,6],[873,2,891,2],[457,5,461,5],[873,5,891,5],[457,3,461,3],[552,2,556,2],[457,2,461,2],[463,6,472,6],[537,5,542,5],[474,2,476,2],[552,4,556,4],[545,2,549,2],[490,2,494,2],[508,2,513,2],[537,3,542,3],[529,2,531,2],[552,3,556,3],[537,4,542,4],[474,6,476,6],[526,2,528,2],[457,4,461,4],[500,3,501,3],[500,4,501,4],[503,2,506,2],[537,7,537,9],[508,7,508,9],[537,6,542,6],[463,3,472,3],[526,7,526,9],[525,7,525,9],[503,7,503,9],[524,7,524,9],[500,5,501,5],[500,6,501,6],[503,3,506,3],[503,4,506,4],[503,6,506,6],[503,5,505,5],[484,6,488,6],[474,4,476,4],[463,4,472,4],[371,7,371,9],[527,0,528,0],[484,1,488,1],[499,0,501,0],[437,2,441,2],[474,1,476,1],[463,1,472,1],[457,1,461,1],[453,2,455,2],[443,1,447,1],[503,1,506,1],[491,1,494,1],[500,1,501,1],[449,2,451,2],[436,0,441,0],[448,0,451,0],[449,1,451,1],[484,2,488,2],[452,0,455,0],[490,7,490,9],[425,3,429,3],[425,1,429,1],[425,2,429,2],[449,3,451,3],[270,2,280,2],[402,4,413,4],[338,1,344,1],[425,4,429,4],[431,4,435,4],[437,4,441,4],[431,6,435,6],[402,3,413,3],[431,1,435,1],[332,4,333,4],[372,3,373,3],[372,4,373,4],[334,2,337,2],[431,2,435,2],[443,4,447,4],[443,3,447,3],[437,6,441,6],[443,5,447,5],[431,3,435,3],[437,3,441,3],[443,7,443,9],[453,4,455,4],[453,5,455,5],[437,7,437,9],[431,7,431,9],[457,7,457,9],[463,7,463,9],[372,6,373,6],[425,6,429,6],[425,5,429,5],[402,6,413,6],[402,5,413,5],[420,7,420,9],[425,7,425,9],[390,7,390,9],[453,6,455,6],[437,5,441,5],[402,7,402,9],[421,7,421,9],[443,6,447,6],[226,6,227,6],[167,3,168,3],[160,7,160,9],[166,0,168,0],[226,1,227,1],[222,1,224,1],[222,2,224,2],[189,0,190,0],[171,1,172,1],[209,7,209,9],[225,0,227,0],[222,6,224,6],[226,5,227,5],[304,0,308,0],[243,2,252,2],[296,0,297,0],[309,0,313,0],[332,2,333,2],[384,0,385,0],[348,0,370,0],[171,2,172,2],[167,1,168,1],[169,0,172,0],[167,2,168,2],[315,0,318,0],[349,2,370,2],[380,1,381,1],[310,2,311,2],[312,1,313,1],[332,0,344,0],[305,1,306,1],[334,1,337,1],[310,1,311,1],[316,1,317,1],[349,1,370,1],[372,1,373,1],[372,2,373,2],[148,7,148,9],[167,4,168,4],[181,0,182,0],[193,0,194,0],[210,6,221,6],[210,5,221,5],[210,4,221,4],[210,3,221,3],[157,7,157,9],[157,0,159,0],[176,0,177,0],[179,0,180,0],[158,1,159,1],[158,2,159,2],[149,2,152,2],[155,2,156,2],[209,0,224,0],[163,1,164,1],[222,3,224,3],[160,0,165,0],[166,7,166,9],[154,7,154,9],[169,7,169,9],[395,0,396,0],[392,0,393,0],[225,7,225,9],[372,5,373,5],[334,4,337,4],[334,5,337,5],[233,0,237,0],[229,0,231,0],[234,1,235,1],[236,1,237,1],[243,1,252,1],[291,0,292,0],[285,1,287,1],[284,0,287,0],[266,0,269,0],[271,1,280,1],[262,0,264,0],[270,0,280,0],[299,0,301,0],[288,0,289,0],[338,2,344,2],[338,3,344,3],[321,0,324,0],[332,1,333,1],[130,0,135,0],[136,0,138,0],[133,1,134,1],[148,0,152,0],[144,0,147,0],[149,1,152,1],[155,1,156,1],[139,0,143,0],[154,0,156,0],[141,1,142,1],[328,0,331,0],[376,0,381,0],[312,2,313,2],[307,1,308,1],[243,6,252,6],[243,4,252,4],[243,5,252,5],[334,3,337,3],[349,7,349,9],[338,6,344,6],[334,6,337,6],[332,5,333,5],[332,6,333,6],[349,4,370,4],[285,4,287,4],[243,3,252,3],[349,5,370,5],[349,6,370,6],[332,3,333,3],[349,3,370,3],[271,6,280,6],[271,4,280,4],[271,5,280,5],[333,7,333,9],[243,7,243,9],[304,7,304,9],[322,7,322,9],[329,7,329,9],[309,7,309,9],[331,7,331,9],[325,7,325,9],[281,7,281,9],[252,7,252,9],[285,7,285,9],[315,7,315,9],[270,7,270,9],[552,0,556,0],[285,6,287,6],[271,3,280,3],[338,4,344,4],[338,5,344,5],[449,5,451,5],[431,5,435,5],[558,0,562,0],[559,1,560,1],[559,2,560,2],[559,3,560,3],[559,4,560,4],[559,5,560,5],[561,1,562,1],[561,2,562,2],[561,3,562,3],[561,4,562,4],[561,5,562,5],[285,5,287,5],[307,2,308,2],[285,3,287,3],[449,6,451,6],[316,2,317,2],[449,4,451,4],[1149,1,1150,1],[233,7,233,9],[330,7,330,9],[285,2,287,2],[236,2,237,2],[234,2,235,2],[205,7,205,9],[167,5,168,5],[77,3,82,3],[77,4,82,4],[77,5,82,5],[77,6,82,6],[83,2,84,2],[83,3,84,3],[83,4,84,4],[83,5,84,5],[83,6,84,6],[161,2,164,2],[167,6,168,6],[210,2,221,2],[222,4,224,4],[226,3,227,3],[226,4,227,4],[222,5,224,5]]}
[]
[{"$nulls":15}," «ПРИЛОЖЕНИЕ № 1 "]
[{"$nulls":15},"к государственной программе  Забайкальского края"]
[{"$nulls":15},"«Социальная поддержка граждан»"]
[null,"Основные мероприятия,  показатели и объемы финансирования государственной программы «Социальная поддержка граждан»"]
[]
[null,null,"Основные мероприятия,  мероприятия, показатели и объемы финансирования государственной программы  Забайкальского края «Социальная поддержка граждан»"]
[]
["№","Наименование целей, задач, подпрограмм, основных мероприятий, мероприятий, ведомственных целевых программ, показателей","Единица измерения показателя","Коэффициент значимости","Методика расчета показателя","Сроки реализации","Ответственный исполнитель и соисполнители","Коды бюджетной классификации расходов"]
[{"$nulls":7},"Главный раздел, подраздел","Целевая статья","Вид расходов",2014,2015,2016,2017,2018,2019,2020,2021,2022,2023,2024,2025,"Итого"]
[1,2,3,4,5,6,7,8,9,10,12,13,14,15,16,17,18,19,20,21,22,22,24]
["1.","Цель  «Сохранение населения, здоровья и благополучия людей. Повышение качества, доступности и эффективности социальной поддержки населения Забайкальского края »",null,"Х"]
[null,"финансирование за счет краевого бюджета","тыс. рублей","Х","Х","Х","ВСЕГО","Х","Х","Х",6105214.0999999996,6587113.7000000002,6313752.7000000002,{"$f":"N14+N16+N17+N15","v":8043623.8039999995},7539944.5999999996,{"$f":"P14+P16+P17+P15","v":7869524.3999999994},8296948.7410000013,{"$f":"R14+R16+R17+R15","v":8352973.6059999997},{"$f":"S14+S16+S17+S15","v":9221552.5020000003},{"$f":"T14+T16+T17+T15","v":9874143.2999999989},{"$f":"U14+U16+U17+U15","v":8158389.0100000007},{"$f":"V14+V16+V17+V15","v":10248355.200000001},{"$f":"SUM(K13:S13)+T13+U13+V13","v":96611535.663000003}]
[{"$nulls":6},"Министерство труда и социальной защиты  населения Забайкальского края","Х","Х","Х",5771309.5999999996,6478485.5,6239793.7000000002,{"$f":"N31+N201+N323+N874-0.5-N15-N16-N17-0.01","v":7949026.1040000003},7502171.4000000004,{"$f":"P31+P201+P323+P874-P15-P16-P17","v":7810684.4999999991},{"$f":"Q31+Q201+Q323+Q874-Q15-Q16-Q17","v":8261147.6410000017},{"$f":"R31+R201+R323+R874+R1103-R15-R16-R17","v":8172801.5059999991},{"$f":"S31+S201+S323+S874+S1103-S15-S16-S17","v":9113595.102},{"$f":"T31+T201+T323+T874+T1103-T15-T16-T17","v":9794444.9999999981},{"$f":"U31+U201+U323+U874+U1103-U15-U16-U17","v":8079112.6100000013},{"$f":"V31+V201+V323+V874+V1103-V15-V16-V17","v":10198741.9},{"$f":"SUM(K14:S14)+T14+U14+V14","v":95371314.563000008}]
[{"$nulls":6},"Министерство образования и науки Забайкальского края","Х","Х","Х",{"$f":"K343","v":1875.8},{"$f":"L343","v":0},41511.9,0,0,0,0,0,0,0,0,0,43387.700000000004]
[{"$nulls":6},"Министерство строительства, дорожного хозяйства  и транспорта Забайкальского края","Х","Х","Х",247225.5,63102.9,6410.8,67571.100000000006,{"$f":"15604.614+20568.276","v":36172.89},{"$f":"32626+6960","v":39586},0,{"$f":"R340+R317","v":36053.9},{"$f":"S340+S318","v":57017.9},{"$f":"T340+T317+T339","v":50548.3},{"$f":"U340+U318+U339","v":50131.100000000006},{"$f":"V340+V318","v":49613.3},703433.69000000018]
[{"$nulls":6},"Департамент государственного имущества и земельных отношений Забайкальского края","Х","Х","Х",84803.199999999997,45525.3,26036.3,{"$f":"5402.2+21624.4","v":27026.600000000002},1600.2850000000001,{"$f":"12336.7+6917.2","v":19253.900000000001},{"$f":"41577.3-5776.2","v":35801.100000000006},{"$f":"R339","v":144118.20000000001},{"$f":"S339+S502","v":50939.5},{"$f":"T502","v":29150},{"$f":"U502","v":29145.3},{"$f":"V339+V502","v":0},493399.685]
[null,"кроме того, финансирование из других источников:","Х","Х","Х","Х","Х","Х","Х","Х",0,0,0,0,0,0,0,0,0,0,0,0,0]
[null," - из федерального бюджета","тыс. рублей","Х","Х","Х","ВСЕГО","Х","Х","Х",{"$f":"SUM(K20:K23)","v":1963654},1880423.5999999999,2053106.0031200002,2043202.6000000003,1955895.6990000005,2897999.9999999995,8407711.3000000007,{"$f":"SUM(R20:R23)","v":11732059.100000001},{"$f":"SUM(S20:S22)","v":12988375.999},{"$f":"SUM(T20:T23)","v":9427473},{"$f":"SUM(U20:U23)","v":7246180.1999999993},{"$f":"SUM(V20:V23)","v":6214070.5999999996},68810152.101119995]
[{"$nulls":6},"Министерство труда и социальной защиты  населения Забайкальского края","Х","Х","Х",{"$f":"K38+K325-K23-K22-K21","v":1772846.3},{"$f":"L38+L325-L23-L22-L21","v":1646499.4999999998},{"$f":"M38+M325-M23-M22-M21","v":1770561.2031200002},{"$f":"N38+N325-N23-N22-N21+0.6","v":1577903.8000000003},{"$f":"O38+O325-O23-O22-O21","v":1686351.9000000006},{"$f":"P38+P325-P23-P22-P21+P199","v":2595686.6999999997},8099972.2999999998,{"$f":"R38+R325-R23-R22-R21+R199","v":11051979.800000001},{"$f":"S38+S325-S23-S22-S21+S199","v":12291752.299000001},{"$f":"T38+T325-T23-T22-T21+T199","v":9018039.5999999996},{"$f":"U38+U325-U23-U22-U21+U199","v":6364499.5999999996},{"$f":"V38+V325-V23-V22-V21+V199","v":5812654.0999999996},63688747.102120005]
[{"$nulls":6},"Министерство строительства, дорожного хозяйства  и транспорта Забайкальского края","Х","Х","Х",107317.5,95700,280854.3,333113.09999999998,244471.9,109039.3,null,{"$f":"R336","v":172650.3},{"$f":"S336","v":436610},{"$f":"T336+T319+T335","v":409433.4},{"$f":"U336+U319","v":881680.60000000009},{"$f":"V336+V319","v":401416.5},3472286.9]
[{"$nulls":6},"Департамент государственного имущества и земельных отношений Забайкальского края","Х","Х","Х",83490.2,138224.1,1690.5,132185.70000000001,25071.899000000001,193274,307739,{"$f":"R335","v":507429},{"$f":"S335","v":260013.7},0,{"$f":"U335","v":0},{"$f":"V335","v":0},1649118.0989999999]
[{"$nulls":6},"Министерство образования и науки Забайкальского края","Х","Х","Х",0,0,0,0,0,0,0,0,0,0,0,0,{"$f":"SUM(K23:S23)+T23+U23","v":0}]
[null," - из Фонда","тыс. рублей","Х","Х","Х","Министерство труда и социальной защиты  населения Забайкальского края","Х","Х","Х",0,0,0,0,0,0,0,0,{"$f":"S202+S332","v":8394},{"$f":"T202+T332","v":0},{"$f":"U202+U332","v":0},{"$f":"V202+V332","v":0},8394]
[null," - из внебюджетных источников","тыс. рублей","Х","Х","Х","Министерство труда и социальной защиты  населения Забайкальского края","Х","Х","Х",0,0,0,0,0,0,0,0,0,0,0,0,0]
[null," - из Фонда пенсионного и социального страхования Российской Федерации","тыс. рублей","Х","Х","Х","Министерство труда и социальной защиты  населения Забайкальского края","Х","Х","Х",3343.6,21925.7,6618.5,{"$f":"N200+N33","v":2170.1},{"$f":"O200+O33","v":21783},{"$f":"P200+P33","v":0},{"$f":"Q200+Q33","v":5783.6},{"$f":"R200+R33","v":0},{"$f":"S200+S168","v":81.7},0,0,0,{"$f":"SUM(K26:S26)+T26+U26+V26","v":61706.2}]
["1-ПЦ1","Показатель «Уровень удовлетворенности населения качеством государственных услуг в сфере социальной защиты»","%","Х","Уд / О *100, где:\nУд - количество удовлетворенных качеством услуг, реализуемых в Забайкальском крае;\nО - общее число опрошенных.","Х","Министерство труда и социальной защиты  населения Забайкальского края","Х","Х","Х","не менее 86","не менее 87","не менее 88","не менее 89","не менее 90","не менее 90","не менее 90","не менее 90","не менее 91,5","не менее 92","не менее 93,5","не менее 94","Х"]
["1-ПЦ2","Показатель «Доля граждан, получивших социальную поддержку и государственные социальные гарантии, в общей численности граждан, имеющих право на их получение и обратившихся за их получением»","%","Х","Псп / Ч *100, где:\nПсп - численность граждан, получивших социальную поддержку и гос. социальные гарантии;\nЧ - общая численность граждан, имеющих право на получение соц. поддержки и соц. гарантий и обратившихся за их получением","Х","Министерство труда и социальной защиты  населения Забайкальского края","Х","Х","Х","Х","Х","Х","Х","Х","Х","Х","Х",94,95,96,98,"Х"]
[null,"Задача 1.  «Повышение качества и доступности мер социальной поддержки граждан»","Х","Х","Х","Х","Х","Х","Х","Х","Х","Х","Х","Х","Х","Х","Х","Х","Х","Х","Х","Х","Х"]
["1.1.","Подпрограмма 1.  «Развитие мер социальной поддержки отдельных категорий граждан, проживающих в Забайкальском крае»","Х",1,"Х","2014-2025","Министерство труда и социальной защиты  населения Забайкальского края","Х","Х","Х","Х","Х","Х","Х","Х","Х","Х","Х","Х","Х","Х","Х","Х"]
[null,"финансирование за счет краевого бюджета","тыс. рублей","Х","Х","Х","Х","Х","Х","Х",{"$f":"K36+K159","v":2702374.0999999996},{"$f":"L36+L159","v":2455419.7999999998},{"$f":"M36+M175-0.022","v":2345116.3998600002},{"$f":"N36+N159","v":3214283.8999999994},{"$f":"O36+O159-0.033","v":2626795.9999999995},{"$f":"P36+P159","v":2722768.5},{"$f":"Q36+Q159","v":2845271.3900000006},{"$f":"R36+R159","v":2710035.7},{"$f":"S36+S159+S181","v":2884297.0999999996},3107306.4999999995,2483698.7000000007,3219173.0000000009,{"$f":"SUM(K31:S31)+T31+U31+V31","v":33316541.089859996}]
[null,"финансирование из федерального бюджета","тыс. рублей","Х","Х","Х","Х","Х","Х","Х",{"$f":"K38","v":796310.29999999993},702368.89999999991,704768.70311999996,667993.08000000019,592053.80000000016,654912.29999999981,1961023.659,2545688.0999999996,{"$f":"S38","v":3690549.4000000004},4276819.5,4546645.2,{"$f":"V38","v":4637282},25776414.942120001]
[null,"финансирование за счет средств Фонда пенсионного и социального страхования Российской Федерации","тыс. рублей","Х","Х","Х","Х","Х","Х","Х",0,0,{"$f":"M167","v":95.6},198.5,{"$f":"O167+O171","v":19852.8},0,5783.6,0,{"$f":"S37","v":81.7},0,0,0,26012.2]
["1.1-ПП1","Показатель   «Доля граждан, охваченных различными формами социальной поддержки, от общего числа граждан, проживающих на территории Забайкальского края»","%",1,"Нсп / Н *100, где:\nНсп - численность населения, охваченного социальной поддержкой;\nН - общая численность населения края.","Х","Х","Х","Х","Х",28.1,28.3,28.5,28.5,28.5,28.5,34.700000000000003,35.4,34.9,34.4,34.299999999999997,34.200000000000003,"Х"]
["1.1.1.","Основное мероприятие 1.  «Обеспечение реализации прав отдельных категорий граждан на меры социальной поддержки»","Х",1,"Х","2014-2025","Министерство труда и социальной защиты  населения Забайкальского края","Х","Х","Х","Х","Х","Х","Х","Х","Х","Х","Х","Х","Х","Х","Х","Х"]
[null,"финансирование за счет краевого бюджета","тыс.рублей","Х","Х","Х","Х","Х","Х","Х",{"$f":"K41+K56+K70+K74+K78+K87+K98+K101+K103+K107+K114+K118+K122+K126+K130+K99+K110","v":2702374.0999999996},{"$f":"L41+L56+L70+L74+L78+L87+L98+L101+L103+L107+L114+L118+L122+L126+L130+L99+L110","v":2455419.7999999998},{"$f":"M41+M56+M70+M74+M78+M87+M98+M101+M103+M107+M114+M118+M122+M126+M130+M99+M110+M161-M166","v":2345116.4218600001},{"$f":"N41+N56+N70+N74+N78+N87+N98+N101+N103+N107+N114+N118+N122+N126+N130+N99+N110+N161-N166+N100","v":3214283.8999999994},{"$f":"O41+O56+O70+O74+O78+O87+O98+O101+O103+O107+O114+O118+O122+O126+O130+O99+O110+O161-O166+O100+O172+O173","v":2626796.0329999994},{"$f":"P41+P56+P70+P74+P78+P87+P98+P101+P103+P107+P114+P118+P122+P126+P130+P99+P110+P161-P166+P100+P172+P173","v":2722768.5},{"$f":"Q41+Q56+Q70+Q74+Q78+Q87+Q98+Q101+Q103+Q107+Q114+Q118+Q122+Q126+Q130+Q99+Q110+Q161-Q166+Q100+Q172+Q173+Q92","v":2845271.3900000006},{"$f":"R41+R56+R70+R74+R78+R87+R98+R101+R103+R107+R114+R118+R122+R126+R130+R99+R110+R161-R166+R100+R172+R173+R92+R91+R90","v":2710035.7},{"$f":"S41+S56+S70+S74+S78+S87+S98+S101+S103+S107+S114+S118+S122+S126+S130+S99+S110+S161-S166+S100+S172+S173+S92+S91+S90","v":2884297.0999999996},{"$f":"T41+T56+T70+T74+T78+T87+T98+T101+T103+T107+T114+T118+T122+T126+T130+T99+T110+T161-T166+T100+T172+T173+T92+T91+T90","v":3107306.4999999995},2483698.7000000007,3219173.0000000009,{"$f":"SUM(K36:S36)+T36+U36+V36","v":33316541.144859996}]
[null,"кроме того, финансирование из других источников:","тыс.рублей","Х","Х","Х","Х","Х","Х","Х",0,0,0,0,0,0,0,0,{"$f":"S168","v":81.7},0,0,0,81.7]
[null," - из федерального бюджета","тыс. рублей","Х","Х","Х","Х","Х","Х","Х",{"$f":"K132+K139+K141+K146+K149+K160","v":796310.29999999993},{"$f":"L132+L139+L141+L146+L150+L152+L155+L160","v":702368.89999999991},{"$f":"M132+M139+M141+M146+M150+M152+M155+M160+M166","v":704768.70311999996},{"$f":"N132+N139+N141+N146+N150+N152+N155+N160+N166+N153","v":667993.08000000019},{"$f":"O132+O139+O141+O146+O150+O152+O155+O160+O166+O153","v":592053.80000000016},{"$f":"P132+P139+P141+P146+P150+P152+P155+P160+P166+P153","v":654912.29999999981},{"$f":"Q132+Q139+Q141+Q146+Q150+Q152+Q155+Q160+Q166+Q153+Q85+Q151+Q95","v":1961023.659},{"$f":"R132+R139+R141+R146+R150+R152+R155+R160+R166+R153+R85+R151+R95+R94+R93+R154","v":2545688.0999999996},{"$f":"S132+S139+S141+S146+S150+S152+S155+S160+S166+S153+S85+S151+S95+S94+S93+S84","v":3690549.4000000004},{"$f":"T132+T139+T141+T146+T150+T152+T155+T160+T166+T153+T85+T151+T95+T94+T93+T84+T138","v":4276819.5},{"$f":"U132+U139+U141+U146+U150+U152+U155+U160+U166+U153+U85+U151+U95+U94+U93+U84+U138","v":4546645.2},4637282,25776414.942120001]
["1.1.1.-ПОМ1","Показатель  «Полнота исполнения публичных нормативных обязательств»","%",1,"ПНОис / ПНО *100, где:\nПНОис  - объем исполненных публичных нормативных обязательств;\nПНО - объем предусмотренных к исполнению публичных нормативных обязательств.","Х","Министерство труда и социальной защиты  населения Забайкальского края","Х","Х","Х",100,100,100,100,100,100,100,100,100,100,100,100,"Х"]
["1.1.1.1.","Мероприятие  «Предоставление ежемесячной денежной выплаты»","Х",1,"Х","2014-2025","Х","Х","Х","Х","Х","Х","Х","Х","Х","Х","Х","Х","Х","Х","Х","Х","Х"]
[null,"финансирование за счет краевого бюджета","тыс. рублей","Х","Х","Х","Х",1003,"Х","Х",{"$f":"K42+K45+K49+K52","v":734492.5},636941.30000000005,698220.43,882933.9,740923.5469999999,804866.39999999991,{"$f":"Q42+Q45+Q49+Q52","v":757116.7790000001},736183.5,748497.8,787969.09999999986,604091.9,791786.90000000014,{"$f":"SUM(K41:S41)+T41+U41+V41","v":8924024.0559999999}]
["1.1.1.1.1.","Предоставление ежемесячной денежной выплаты ветеранам труда","тыс. рублей","Х","Х","Х","Х",1003,"17 1 01 82101","Х",{"$f":"K43+K44","v":391810.2},{"$f":"L43+L44","v":344408.10000000003},438546.13,516455.7,{"$f":"O43+O44","v":435623.66000000003},475815.8,446291.8,432582.9,{"$f":"S43+S44","v":440679.60000000003},{"$f":"T43+T44","v":465050.1},{"$f":"U43+U44","v":356527.89999999997},{"$f":"V43+V44","v":467303.3},5211095.1899999995]
[null,"Пособия, компенсации, меры социальной поддержки по публичным нормативным обязательствам","тыс. рублей","Х","Х","Х","Х",1003,"17 1 01 82101",313,385719.5,338671.2,431746.07,509201.2,428851.7,470175.8,441116.1,427150.7,435213.2,458897.6,351811.1,461121,5139675.17]
[null,"Прочая закупка товаров, работ и услуг для государственных нужд","тыс. рублей","Х","Х","Х","Х",1003,"17 1 01 82101",244,6090.7,5736.9,6800.06,7254.5,6771.96,5640,5175.7,5432.2,5466.4,6152.5,4716.8,6182.3,71420.01999999999]
["1.1.1.1.2","Предоставление ежемесячной денежной выплаты ветеранам труда Забайкальского края","тыс. рублей","Х","Х","Х","Х",1003,"17 1 01 82102","Х",{"$f":"K46+K47+K48","v":306608.7},261311.1,237194.84,334133.2,{"$f":"O46+O47+O48","v":283581.28999999998},309792.40000000002,{"$f":"Q46+Q47+Q48","v":293392.73000000004},289925.89999999997,296410,311382.10000000003,238719.19999999998,312890.80000000005,3475342.2600000007]
[null,"Пособия, компенсации, меры социальной поддержки по публичным нормативным обязательствам","тыс. рублей","Х","Х","Х","Х",1003,"17 1 01 82102",313,301930.7,257227.9,233504.96,329386.3,279134.3,306044.40000000002,289938.14,286281.8,292583,306656.7,235096.5,308142.5,3425927.2]
[null,"Прочая закупка товаров, работ и услуг для государственных нужд","тыс. рублей","Х","Х","Х","Х",1003,"17 1 01 82102",244,4678,4083.1,3689.88,4746.8999999999996,4446.99,3748,3454.59,3644.1,3827,4225.3999999999996,3239.4,4245.8999999999996,48029.26]
[null,"Социальные выплаты гражданам, кроме публичных нормативных социальных выплат","тыс. рублей","Х","Х","Х","Х",1003,"17 1 01 82102",323,0,0.1,0,0,0,0,0,0,0,500,383.3,502.4,1385.8000000000002]
["1.1.1.1.3","Предоставление ежемесячной выплаты труженикам тыла","тыс. рублей","Х","Х","Х","Х",1003,"17 1 01 82103","Х",25813.4,{"$f":"L50+L51","v":20466.2},14414.67,20004.599999999999,{"$f":"O50+O51","v":12683.897000000001},10919.7,9246.9490000000005,6761.1,{"$f":"S50+S51","v":5104.7},{"$f":"T50+T51","v":5105.7},{"$f":"U50+U51","v":3914.3},{"$f":"V50+V51","v":5130.5},139565.71599999999]
[null,"Прочая закупка товаров, работ и услуг для государственных нужд","тыс. рублей","Х","Х","Х","Х",1003,"17 1 01 82103",244,349.6,337.7,242.79,323.3,214.85,140.5,118.7,97.8,85.7,82.2,63,82.6,2138.7399999999998]
[null,"Пособия, компенсации, меры социальной поддержки по публичным нормативным обязательствам","тыс. рублей","Х","Х","Х","Х",1003,"17 1 01 82103",313,21420,20128.5,14171.88,19681.3,12469.047,10779.2,9128.2489999999998,6663.3,5019,5023.5,3851.3,5047.8999999999996,133383.17600000001]
["1.1.1.1.4","Предоставление ежемесячной денежной выплаты реабилитированным лицам и лицам, признанным пострадавшими от политических репрессий","тыс. рублей","Х","Х","Х","Х",1003,"17 1 01 82104","Х",{"$f":"K53+K54","v":10260.199999999999},10755.9,8064.79,12340.4,{"$f":"O53+O54","v":9034.7000000000007},8338.5,8185.3,6913.6,{"$f":"S53+S54","v":6303.5},{"$f":"T53+T54","v":6431.2},{"$f":"U53+U54","v":4930.5},{"$f":"V53+V54","v":6462.3},98020.890000000014]
[null,"Прочая закупка товаров, работ и услуг для государственных нужд","тыс. рублей","Х","Х","Х","Х",1003,"17 1 01 82104",244,164.9,170.8,130.04,193.4,132.19999999999999,102.6,114.3,90.5,83.9,91.7,70.3,92.1,1436.7399999999998]
[null,"Пособия, компенсации, меры социальной поддержки по публичным нормативным обязательствам","тыс. рублей","Х","Х","Х","Х",1003,"17 1 01 82104",313,10095.299999999999,10585.1,7934.75,12147,8902.5,8235.9,8071,6823.1,6219.6,6339.5,4860.2,6370.2,96584.150000000009]
["1.1.1.2.","Мероприятие  «Предоставление ежемесячной компенсации расходов на оплату жилого помещения и коммунальных услуг»","Х",1,"Х","Х","Министерство труда и социальной защиты  населения Забайкальского края","Х","Х","Х","Х","Х","Х","Х","Х","Х","Х","Х","Х","Х","Х","Х","Х"]
[null,"финансирование за счет краевого бюджета","тыс. рублей","Х","Х","Х","Х",1003,"Х","Х",{"$f":"K57+K60+K63+K66","v":972226.09999999986},904368.99999999988,895516.77999999991,1278388.5,992956.26199999999,1010054.2,993599,{"$f":"R57+R60+R63+R66","v":940385.4},{"$f":"S57+S60+S63+S66","v":952365.2},{"$f":"T57+T60+T63+T66","v":990018.1},{"$f":"U57+U60+U63+U66","v":758995},{"$f":"V57+V60+V63+V66","v":994815},11683688.541999999]
["1.1.1.2.1","«Ежемесячная компенсация расходов на оплату жилых  помещений и коммунальных услуг отдельным категориям специалистов, работающим и проживающим в сельской местности, поселках городского типа (рабочих поселках)»","тыс. рублей","Х","Х","Х","Х",1003,"17 1 01 84002","Х",{"$f":"K58+K59","v":181498.3},139510.29999999999,142277.29999999999,197904.69999999998,{"$f":"O58+O59","v":129910.326},117044.7,117007.90000000001,109587.5,{"$f":"S58+S59","v":110622.5},{"$f":"T58+T59","v":121919.5},{"$f":"U58+U59","v":93468.799999999988},{"$f":"V58+V59","v":122510.2},1583262.0260000001]
[null,"Прочая закупка товаров, работ и услуг для государственных нужд","тыс. рублей","Х","Х","Х","Х",1003,"17 1 01 84002",244,2872.3,2183.3000000000002,2314.2800000000002,2756.9,2001.346,1380.7,1355.3,1377.5,1422.5,1601,1227.4000000000001,1608.8,22101.326000000001]
[null,"Пособия, компенсации, меры социальной поддержки по публичным нормативным обязательствам","тыс. рублей","Х","Х","Х","Х",1003,"17 1 01 84002",313,178626,137327,139963.01999999999,195147.8,127908.98,115664,115652.6,108210,109200,120318.5,92241.4,120901.4,1561160.6999999997]
["1.1.1.2.2","Ежемесячная компенсация расходов на оплату жилых помещений и коммунальных услуг ветеранам труда","тыс. рублей","Х","Х","Х","Х",1003,"17 1 01 84522","Х",{"$f":"K61+K62","v":480175.6},477107.8,509533.83999999997,683714.5,549468.52599999995,563972.80000000005,551800.30000000005,519696.3,{"$f":"S61+S62","v":520531},{"$f":"T61+T62","v":535222.19999999995},{"$f":"U61+U62","v":410328.5},{"$f":"V61+V62","v":537815.5},6339366.8659999995]
[null,"Прочая закупка товаров, работ и услуг для государственных нужд","тыс. рублей","Х","Х","Х","Х",1003,"17 1 01 84522",244,7409,7476.1,8053.35,9176.4,8654.5259999999998,6670,6367.4,6451,6380,6966,5344,6999.8,85947.576000000001]
[null,"Пособия, компенсации, меры социальной поддержки по публичным нормативным обязательствам","тыс.рублей","Х","Х","Х","Х",1003,"17 1 01 84522",313,472766.6,469631.7,501480.49,674538.1,540814,557302.80000000005,545432.9,513245.3,514151,528256.19999999995,404984.5,530815.69999999995,6253419.290000001]
["1.1.1.2.3","Ежемесячная компенсация расходов  на оплату жилых  помещений и коммунальных услуг ветеранам труда Забайкальского края","тыс. рублей","Х","Х","Х","Х",1003,"17 1 01 84523","Х",{"$f":"K64+K65","v":282152.5},258976.19999999998,220951.21000000002,363831.5,289849.81,306923.2,303723.10000000003,294857,{"$f":"S64+S65","v":306129},{"$f":"T64+T65","v":317963.90000000002},{"$f":"U64+U65","v":243765.1},{"$f":"V64+V65","v":319504.5},3508627.02]
[null,"Прочая закупка товаров, работ и услуг для государственных нужд","тыс. рублей","Х","Х","Х","Х",1003,"17 1 01 84523",244,4235.5,3974.3,3399.79,5057.2,4526.3,3613.7,3510.2,3657,3829,4196.8999999999996,3217.5,4217.2,47434.590000000004]
[null,"Пособия, компенсации, меры социальной поддержки по публичным нормативным обязательствам","тыс. рублей","Х","Х","Х","Х",1003,"17 1 01 84523",313,277917,255001.9,217551.42,358774.3,285323.51,303309.5,300212.90000000002,291200,302300,313767,240547.6,315287.3,3461192.43]
["1.1.1.2.4","Ежемесячная компенсация расходов на оплату жилых помещений и коммунальных услуг реабилитированным лицам и лицам, признанным пострадавшими от политических репрессий","тыс. рублей","Х","Х","Х","Х",1003,"17 1 01 84531","Х",{"$f":"K67+K68","v":28399.7},28774.7,{"$f":"M67+M68","v":22754.43},32937.799999999996,23727.599999999999,22113.5,{"$f":"Q67+Q68","v":21067.699999999997},16244.599999999999,{"$f":"S67+S68","v":15082.7},{"$f":"T67+T68","v":14912.5},{"$f":"U67+U68","v":11432.599999999999},{"$f":"V67+V68","v":14984.8},252432.63]
[null,"Прочая закупка товаров, работ и услуг для государственных нужд","тыс. рублей","Х","Х","Х","Х",1003,"17 1 01 84531",244,449.7,451.9,360.4,480.7,375.3,263.5,246.1,224.8,202.7,204.5,156.80000000000001,205.5,3621.9]
[null,"Пособия, компенсации, меры социальной поддержки по публичным нормативным обязательствам","тыс. рублей","Х","Х","Х","Х",1003,"17 1 01 84531",313,27950,28322.799999999999,22394.03,32457.1,23352.3,21850,20821.599999999999,16019.8,14880,14708,11275.8,14779.3,248810.72999999995]
["1.1.1.3.","Мероприятие «Ежемесячная компенсация расходов на оплату жилых помещений и коммунальных услуг педагогическим работникам»","Х",null,"Х","2014-2025","Министерство труда и социальной защиты  населения Забайкальского края","Х","Х","Х","Х","Х","Х","Х","Х","Х","Х","Х","Х","Х","Х","Х","Х"]
[null,"финансирование за счет краевого бюджета","тыс. рублей","Х","Х","Х","Х",1003,"17 1 01 84001","Х",{"$f":"K71+K72","v":303414.5},276090.60000000003,219909.40000000002,373343.2,302551.56899999996,342561.7,325357.06,312938.89999999997,{"$f":"S71+S72","v":325654.40000000002},{"$f":"T71+T72","v":354730.8},{"$f":"U71+U72","v":271952.3},{"$f":"V71+V72","v":356449.5},3764953.9289999995]
[{"$nulls":7},1003,"17 1 01 84001",244,4678.2,4328.2,3464.2,5960.4,3961.79,4247.2,3742.3,3990.6,4151,4688.7,3594.6,4711.3999999999996,51518.59]
[{"$nulls":7},1003,"17 1 01 84001",313,298736.3,271762.40000000002,216445.2,367382.8,298589.77899999998,338314.5,321614.76,308948.3,321503.40000000002,350042.1,268357.7,351738.1,3713435.3390000002]
["1.1.1.4.","Мероприятие «Предоставление гражданам субсидии на оплату жилого помещения и коммунальных услуг»","Х",null,"Х","2014-2025","Министерство труда и социальной защиты  населения Забайкальского края","Х","Х","Х","Х","Х","Х","Х","Х","Х","Х","Х","Х","Х","Х","Х","Х"]
[null,"финансирование за счет краевого бюджета","тыс. рублей","Х","Х","Х","Х",1003,"17 1 01 84800","Х",{"$f":"K75+K76","v":442928.6},355356,233281.09999999998,373455.4,265413.53999999998,218971,{"$f":"Q75+Q76","v":315232.59999999998},253365.6,207146,229284.2,175779.4,230395.1,3300608.5400000005]
[{"$nulls":7},1003,"17 1 01 84800",244,6965.6,5538.7,3757.61,5415,4098.6400000000003,2672.5,3671.6,3015.9,2686,3068.5,2352.5,3083.4,46325.95]
[{"$nulls":7},1003,"17 1 01 84800",313,435963,349817.3,229523.49,368040.4,261314.9,216298.5,311561,250349.7,204460,226215.7,173426.9,227311.7,3254282.5900000003]
["1.1.1.5.","Мероприятие  «Региональная доплата к пенсии пенсионерам, получающим минимальную пенсию по старости и иные региональные доплаты к пенсиям»","Х",1,"Х","2014-2025","Министерство труда и социальной защиты  населения Забайкальского края","Х","Х","Х","Х","Х","Х","Х","Х","Х","Х","Х","Х","Х","Х","Х","Х"]
[null,"финансирование за счет краевого бюджета","тыс. рублей","Х","Х","Х","Х","Всего",null,"Х",{"$f":"K82+K83","v":29321.599999999999},{"$f":"L82+L83","v":28000},{"$f":"M82+M83","v":21854.639999999999},{"$f":"N82+N83","v":36794.5},{"$f":"O82+O83","v":29249.93},{"$f":"P82+P83+P79","v":31509},{"$f":"Q82+Q83+Q79+Q81","v":124523.89},143197.70000000001,{"$f":"S82+S83+S79+S81+S80","v":313940.7},382266.4,383541.6,490257.1,2014457.06]
[{"$nulls":7},1001,"17 1 01 82070",244,0,0,0,0,0,0,7764.3,10300,14254,16956.8,0,0,49275.1]
[{"$nulls":7},1001,"17 1 01 R007F",312,0,0,0,0,0,0,0,0,58135.199999999997,0,0,0,58135.199999999997]
[{"$nulls":7},1001,"17 1 01 R0070",312,0,0,0,0,0,0,87642,104721,213373.4,330415.90000000002,356718.8,456820.1,1549691.2000000002]
[{"$nulls":7},1001,"17 1 01 89200",244,332.6,313.2,221.46,362.7,291.2,284.60000000000002,471.7,262.89999999999998,253.6,329.6,253.4,315.8,3692.76]
[{"$nulls":7},1001,"17 1 01 89200",312,28989,27686.799999999999,21633.18,36431.800000000003,28958.73,31224.400000000001,28645.89,27913.8,27924.5,34564.1,26569.4,33121.199999999997,353662.8]
[null,"финансирование за счет федерального  бюджета","тыс. рублей","Х","Х","Х","Х",1001,"17 1 01 R007F",312,0,0,0,0,0,0,0,0,587811.4,0,0,0,587811.4]
[{"$nulls":7},1001,"17 1 01 R0070",312,0,0,0,0,0,0,1373058,1640628.4,2157442.6,3340871.4,3606823.6,3696089.5,15814913.5]
["1.1.1.6.","Мероприятие «Предоставление государственной социальной помощи»","Х",1,"Х","2014-2025","Министерство труда и социальной защиты  населения Забайкальского края","Х","Х","Х","Х","Х","Х","Х","Х","Х","Х","Х","Х","Х","Х","Х","Х"]
[null,"финансирование за счет краевого бюджета","тыс. рублей","Х","Х","Х","Х",1003,"17 1 01 82602","Х",{"$f":"K88+K89","v":60242.7},76629.2,52599.920000000006,70924.600000000006,70565.23,43509,40243.128999999994,6354.4000000000005,2660.5,3554.8,2670.1,{"$f":"V88+V89","v":3504.7000000000003},433458.27900000004]
[{"$nulls":7},1003,"17 1 01 82602",244,643.20000000000005,785.8,533.94000000000005,858.1,253.9,439.2,200.89500000000001,162.1,94,94.8,17.5,27.9,4111.335]
[{"$nulls":7},1003,"17 1 01 82602",313,59599.5,75843.399999999994,52065.98,70066.5,70311.33,43069.8,40042.233999999997,6192.3,2566.5,3460,2652.6,3476.8,429346.94399999996]
[{"$nulls":7},1003,"17 1 01 R4040",244,0,0,0,0,0,0,0,1958.6,0,0,0,0,1958.6]
[{"$nulls":7},1003,"17 1 01 R4040",323,0,0,0,0,0,0,0,504,0,0,0,0,504]
[{"$nulls":7},1003,"17 1 01 R4040",313,0,0,0,0,0,0,0,16877.8,32309.4,44046.7,44046.7,55044.6,192325.19999999998]
[null,"финансирование за счет федерального  бюджета","тыс. рублей","Х","Х","Х","Х",1003,"17 1 01 R4040",244,0,0,0,0,0,0,0,30685.5,0,0,0,0,30685.5]
[{"$nulls":7},1003,"17 1 01 R4040",323,0,0,0,0,0,0,0,7896,0,0,0,0,7896]
[{"$nulls":7},1003,"17 1 01 R4040",313,0,0,0,0,0,0,0,264419.3,326683.7,445361,445361,445361,1927186]
["1.1.1.7.","Мероприятие «Предоставление социального пособия на погребение, возмещение расходов специализированным службам по вопросам похоронного дела»","Х",1,"Х","2014-2025","Министерство труда и социальной защиты  населения Забайкальского края","Х","Х","Х","Х","Х","Х","Х","Х","Х","Х","Х","Х","Х","Х","Х","Х"]
[null,"финансирование за счет краевого бюджета","тыс. рублей","Х","Х","Х","Х",1003,"17 1 01 82205","Х",{"$f":"K98+K99+K101","v":15971.8},{"$f":"L98+L99+L101","v":16765.900000000001},{"$f":"M98+M99+M101","v":11784.37536},{"$f":"N98+N99+N101+N100","v":17790.47},16578.599999999999,15548.4,18342.8,19989.2,19942.8,22078.600000000002,16930.400000000001,{"$f":"V98+V99+V101+V100","v":22091.7},213815.04535999999]
[{"$nulls":7},1003,"17 1 01 82205",323,1713.3,1290.9000000000001,1111.37565,201.8,0,0,0,0,0,0,0,0,4317.37565]
[{"$nulls":7},1003,"17 1 01 82205",244,239.1,255.5,216.64,241.4,291.39999999999998,230.4,289,322.5,300,332.4,254.8,332.2,3305.34]
[{"$nulls":7},1003,"17 1 01 82205",811,0,0,0,1238.17,1577.5,880.4,1725.8,1390,1420,1975.3,1518.4,1892.8,13618.369999999997]
[{"$nulls":7},1003,"17 1 01 82205",313,14019.4,15219.5,10456.359710000001,16109.1,14709.7,14437.6,16328,18276.7,18222.8,19770.900000000001,15157.2,19866.7,192573.95971000002]
["1.1.1.8.","Мероприятие  «Предоставление ежемесячных денежных выплат почетным гражданам»","Х",1,"Х","2014-2025","Министерство труда и социальной защиты  населения Забайкальского края","Х","Х","Х","Х","Х","Х","Х","Х","Х","Х","Х","Х","Х","Х","Х","Х"]
[null,"финансирование за счет краевого бюджета","тыс. рублей","Х","Х","Х","Х",1003,"17 1 01 89505","Х",{"$f":"K104+K105","v":1644.8999999999999},1353.5,1039.43,1620.4,1240,1296,1273,{"$f":"R104+R105","v":1300.5999999999999},{"$f":"S104+S105","v":1165.5999999999999},{"$f":"T104+T105","v":1251},{"$f":"U104+U105","v":961.6},{"$f":"V104+V105","v":1198.8},15344.83]
[{"$nulls":7},1003,"17 1 01 89505",244,9.6,6.9,5.03,10.7,6,5.2,5.8,4.5999999999999996,4.5999999999999996,9,6.9,8.6,82.93]
[{"$nulls":7},1003,"17 1 01 89505",313,1635.3,1346.6,1034.4000000000001,1609.7,1234,1290.8,1267.2,1296,1161,1242,954.7,1190.2,15261.900000000001]
["1.1.1.9.","Мероприятие  «Предоставление адресной социальной помощи к социально значимым мероприятиям»","Х",1,"Х","2014-2025","Министерство труда и социальной защиты  населения Забайкальского края","Х","Х","Х","Х","Х","Х","Х","Х","Х","Х","Х","Х","Х","Х","Х","Х"]
[null,"финансирование за счет краевого бюджета","тыс. рублей","Х","Х","Х","Х",1003,"17 1 01 02514","Х",{"$f":"K108+K109","v":7749.4},{"$f":"L108+L109","v":14576.1},28856.166499999999,5693.27,5248.4,39620.1,{"$f":"Q108+Q109","v":35040.949999999997},30808.100000000002,{"$f":"S108+S109","v":24735.3},{"$f":"T108+T109","v":24498.5},{"$f":"U108+U109","v":19089.599999999999},{"$f":"V108+V109","v":14830.599999999999},{"$f":"SUM(K107:S107)+T107+U107+V107","v":250746.4865}]
[{"$nulls":7},1003,"17 1 01 02514",244,52.7,166.1,349.16649999999998,53.27,50.9,384.2,343.45,268.89999999999998,210,218.5,170.3,132.30000000000001,2399.7865000000002]
[{"$nulls":7},1003,"17 1 01 02514",321,7696.7,14410,28507,5640,5197.5,39235.9,34697.5,30539.200000000001,24525.3,24280,18919.3,14698.3,248346.69999999998]
[{"$nulls":7},1003,5140500,"Х",0,{"$f":"L111+L112","v":0},{"$f":"M111+M112","v":0},{"$f":"N111+N112","v":0},0,0,0,0,0,0,0,0,0]
[{"$nulls":7},1003,5140500,244,0,0,0,0,0,0,0,0,0,0,0,0,0]
[{"$nulls":7},1003,5140500,321,0,0,0,0,0,0,0,0,0,0,0,0,0]
["1.1.1.10.","Мероприятие  «Доплаты к пенсиям государственных служащих»","Х",1,"Х","2014-2025","Министерство труда и социальной защиты  населения Забайкальского края","Х","Х","Х","Х","Х","Х","Х","Х","Х","Х","Х","Х","Х","Х","Х","Х"]
[null,"финансирование за счет краевого бюджета","тыс. рублей","Х","Х","Х","Х",1001,"17 1 01 09100","Х",{"$f":"K115+K116","v":126500.4},131694.80000000002,167708.1,157132.80000000002,176311.69999999998,189670.8,{"$f":"Q115+Q116","v":207029},216462.4,{"$f":"S115+S116","v":224860.30000000002},{"$f":"T115+T116","v":233350.2},{"$f":"U115+U116","v":179376.19999999998},{"$f":"V115+V116","v":223608.9},2233705.6]
[{"$nulls":7},1001,"17 1 01 09100",244,170,153.19999999999999,56,47.7,36.9,41.9,55.4,55,39.6,57.7,44.4,55.3,813.09999999999991]
[{"$nulls":7},1001,"17 1 01 09100",321,126330.4,131541.6,167652.1,157085.1,176274.8,189628.9,206973.6,216407.4,224820.7,233292.5,179331.8,223553.6,2232892.5]
["1.1.1.11.","Мероприятие  «Предоставление ежемесячной денежной выплаты приемным семьям для граждан пожилого возраста и инвалидов»","Х",1,"Х","2014-2025","Министерство труда и социальной защиты  населения Забайкальского края","Х","Х","Х","Х","Х","Х","Х","Х","Х","Х","Х","Х","Х","Х","Х","Х"]
[null,"финансирование за счет краевого бюджета","тыс. рублей","Х","Х","Х","Х"," 1003","17 1 01 82607",313,7401.1,11460,11750,10905.8,11715.9,11210.1,12063.5,12324.3,11711.4,12803.4,9815.7000000000007,12865.5,136026.69999999998]
[{"$nulls":7}," 1003",5058607,"Х",0,0,0,0,0,0,0,0,0,0,0,0,0]
[{"$nulls":7}," 1003",5058607,"Х",0,0,0,0,0,0,0,0,0,0,0,0,0]
["1.1.1.12.","Мероприятие «Компенсация стоимости произведенных затрат на пристройку пандуса, балкона инвалидам, детям-инвалидам»","Х",1,"Х","2014-2025","Министерство труда и социальной защиты  населения Забайкальского края","Х","Х","Х","Х","Х","Х","Х","Х","Х","Х","Х","Х","Х","Х","Х","Х"]
[null,"финансирование за счет краевого бюджета","тыс. рублей","Х","Х","Х","Х"," 1003","17 1 01 82608","Х",{"$f":"K123+K124","v":200.4},18.3,317.69,373.1,542.29999999999995,688.69999999999993,{"$f":"Q123+Q124","v":709.35199999999998},304.2,{"$f":"S123+S124","v":25.7},{"$f":"T123+T124","v":401},{"$f":"U123+U124","v":307.5},{"$f":"V123+V124","v":402.9},4291.1419999999989]
[{"$nulls":7}," 1003","17 1 01 82608",244,3,0.3,5.14,8.5,9.4,13.8,9.3520000000000003,4.2,0.4,1,0.8,1,56.892000000000003]
[{"$nulls":7}," 1003","17 1 01 82608",313,197.4,18,312.55,364.6,532.9,674.9,700,300,25.3,400,306.7,401.9,4234.25]
["1.1.1.13.","Мероприятие  «Компенсация стоимости проезда к месту лечения и обратно инвалидам, нуждающимся в процедурах гемодиализа»","Х",1,"Х","2014-2025","Министерство труда и социальной защиты  населения Забайкальского края","Х","Х","Х","Х","Х","Х","Х","Х","Х","Х","Х","Х","Х","Х","Х","Х"]
[null,"финансирование за счет краевого бюджета","тыс. рублей","Х","Х","Х","Х"," 1003","17 1 01 82609","Х",{"$f":"K127+K128","v":279.09999999999997},2126.9,2237.77,3904.96,3799.2999999999997,4552.3999999999996,{"$f":"Q127+Q128","v":4598.93},4356.9000000000005,{"$f":"S127+S128","v":4811},{"$f":"T127+T128","v":5474},{"$f":"U127+U128","v":4196.5999999999995},{"$f":"V127+V128","v":5500.5},45838.36]
[{"$nulls":7}," 1003","17 1 01 82609",244,6.4,33.4,32.94,83.36,42.1,50.4,69.930000000000007,67.099999999999994,48.7,14,10.7,14,473.03]
[{"$nulls":7}," 1003","17 1 01 82609",313,272.7,2093.5,2204.83,3821.6,3757.2,4502,4529,4289.8,4762.3,5460,4185.8999999999996,5486.5,45365.329999999994]
["1.1.1.14.","Мероприятие  «Расходы на реализацию Закона Забайкальского края  «О снижении размера оплаты протезно-ортопедических изделий отдельным категориям граждан»","Х",1,"Х","2014-2025","Министерство труда и социальной защиты  населения Забайкальского края","Х","Х","Х","Х","Х","Х","Х","Х","Х","Х","Х","Х","Х","Х","Х","Х"]
[null,"финансирование за счет краевого бюджета","тыс. рублей","Х","Х","Х","Х"," 1003","17 1 01 82603",323,1,38.200000000000003,0,32,1,1,1,0,0,1,0.8,1.2,77.2]
["1.1.1.15.","Мероприятие «Осуществление ежегодной денежной выплаты лицам, награжденным нагрудным  знаком  «Почетный донор России»","Х",1,"Х","2014-2025","Министерство труда и социальной защиты  населения Забайкальского края","Х","Х","Х","Х","Х","Х","Х","Х","Х","Х","Х","Х","Х","Х","Х","Х"]
[null,"финансирование за счет федерального  бюджета","тыс. рублей","Х","Х","Х","Х",1003,"17 1 01 52200","Х",{"$f":"K133+K136+K134+K135","v":22486.400000000001},{"$f":"L133+L136+L134","v":23310.6},{"$f":"M133+M136+M134","v":20996.1},{"$f":"N133+N136+N134","v":26094.6},{"$f":"O133+O134+O135","v":28949.4},26842.399999999998,{"$f":"Q133+Q134+Q135","v":28599.258999999998},30657,33425.5,34748,36138,{"$f":"V133+V134+V135","v":37582.700000000004},349829.95899999997]
[null,"Пособия, компенсации, меры социальной поддержки по публичным нормативным обязательствам","тыс. рублей","Х","Х","Х","Х"," 1003","17 1 01 52200",313,22146.400000000001,22963.599999999999,20691.97508,25710.6,28524.9,26453.8,28184.258999999998,30221.200000000001,32931.5,34234.5,35604,37027.300000000003,344694.03407999995]
[null,"Прочая закупка товаров, работ и услуг для государственных нужд","тыс. рублей","Х","Х","Х","Х"," 1003","17 1 01 52200",244,10,7,304.12491999999997,384,294.5,388.6,415,435.8,494,179.7,186.9,194.4,3294.0249200000003]
[null,null,"тыс. рублей","Х","Х","Х","Х"," 1003","17 1 01 52200",242,0,0,0,0,130,0,0,0,0,333.8,347.1,361,1171.9000000000001]
[null,"Приобретение товаров, работ, услуг в пользу граждан в целях их социального обеспечения","тыс. рублей","Х","Х","Х","Х","1003","17 1 01 52200",323,330,340,0,0,0,0,0,0,0,0,0,0,670]
["1.1.1.16.","Мероприятие  «Государственные единовременные пособия и ежемесячные денежные компенсации гражданам при возникновении поствакцинальных осложнений»","Х",1,"Х","2014-2025","Министерство труда и социальной защиты  населения Забайкальского края","Х","Х","Х","Х","Х","Х","Х","Х","Х","Х","Х","Х","Х","Х","Х","Х"]
[null,"финансирование за счет федерального  бюджета","тыс. рублей","Х","Х","Х","Х","1003","17 1 01 52400",244,0,0,0,0,0,0,0,0,0,1,1,1.1000000000000001,{"$f":"SUM(T138:V138)","v":3.1}]
[null,"финансирование за счет федерального  бюджета","тыс. рублей","Х","Х","Х","Х","1003","17 1 01 52400",313,128,147.4,81.5,90.8,92.9,101.6,94,79.599999999999994,100.4,66.400000000000006,68.599999999999994,71,1122.2]
["1.1.1.17.","Мероприятие  «Оплата жилищно-коммунальных услуг отдельным категориям граждан»","Х",1,"Х","2014-2025","Министерство труда и социальной защиты  населения Забайкальского края","Х","Х","Х","Х","Х","Х","Х","Х","Х","Х","Х","Х","Х","Х","Х","Х"]
[null,"финансирование за счет федерального  бюджета","тыс. рублей","Х","Х","Х","Х","1003","17 1 01 52500","Х",{"$f":"K143+K144","v":612232.19999999995},{"$f":"L143+L144","v":548898.39999999991},{"$f":"M143+M144+M142","v":584338.80611999996},540202.4800000001,526884.10000000009,538348.89999999991,{"$f":"Q143+Q144+Q142","v":528727.19999999995},506145.9,{"$f":"S143+S144+S142","v":501433.20000000007},{"$f":"T143+T144+T142","v":413208.1},{"$f":"U143+U144+U142","v":413152.2},{"$f":"V143+V144+V142","v":413132.19999999995},6126703.6861200007]
[null,"Прочая закупка товаров, работ и услуг для государственных нужд","тыс. рублей","Х","Х","Х","Х","1003","17 1 01 52500",242,0,0,495,0,2950,4250,3608.1,3906.7,4426.3999999999996,2216.6,2244,2257.8000000000002,26354.599999999995]
[null,null,"тыс. рублей","Х","Х","Х","Х","1003","17 1 01 52500",244,{"$f":"4959+3979","v":8938},{"$f":"4277+3700.7","v":7977.7},7259.7593200000001,7431.8,4241.3999999999996,3411.2,3810,3573.3,2983.9,3889.9,3861.7,3847.6,61226.259319999997]
[null,"Пособия по социальной помощи населению","тыс.рублей","Х","Х","Х","Х","1003","17 1 01 52500",313,603294.19999999995,540920.69999999995,576584.04680000001,532770.68000000005,519692.7,530687.69999999995,521309.1,498665.9,494022.9,407101.6,407046.5,407026.8,6039122.8267999999]
["1.1.1.18.","Мероприятие  «Выплаты инвалидам компенсаций страховых премий по договорам обязательного страхования гражданской ответственности владельцев транспортных средств»","Х",1,"Х","2014-2025","Министерство труда и социальной защиты  населения Забайкальского края","Х","Х","Х","Х","Х","Х","Х","Х","Х","Х","Х","Х","Х","Х","Х","Х"]
[null,"финансирование за счет федерального  бюджета","тыс. рублей","Х","Х","Х","Х","1003","17 1 01 52800","Х",{"$f":"K147+K148","v":548.1},67,44,66.400000000000006,48.199999999999996,8.6999999999999993,9.7999999999999989,10.5,0,0,0,{"$f":"V147+V148","v":0},802.7]
[null,"Прочая закупка товаров, работ и услуг для государственных нужд","тыс. рублей","Х","Х","Х","Х","1003","17 1 01 52800",244,0.1,1.1000000000000001,0.2,0.2,0.4,0.1,0.1,0.1,0,0,0,0,2.3000000000000003]
[null,"Пособия по социальной помощи населению","тыс. рублей","Х","Х","Х","Х","1003","17 1 01 52800",313,548,65.900000000000006,43.8,66.2,47.8,8.6,9.6999999999999993,10.4,0,{"$f":"S148","v":0},{"$f":"T148","v":0},{"$f":"U148","v":0},800.4]
["1.1.1.19.","Мероприятие  «Обеспечение жильем отдельных категорий граждан»","Х",1,"Х","2014-2025","Министерство труда и социальной защиты  населения Забайкальского края","Всего",null,null,{"$f":"K150+K152","v":160905.60000000001},{"$f":"L150+L152","v":128107.5},{"$f":"M150+M152","v":87752.2},{"$f":"N150+N152","v":89009.1},{"$f":"O150+O152+O153","v":28890.899999999998},81559.8,{"$f":"Q150+Q152+Q153+Q151","v":21026.9},{"$f":"R150+R152+R153+R154","v":56527.199999999997},77282.5,36554.800000000003,38993.4,{"$f":"V150+V152+V153","v":38848.300000000003},845458.20000000019]
[null,"финансирование за счет федерального  бюджета","тыс. рублей","Х","Х","Х","Х","1003","17 1 01 51340",322,133653.20000000001,98535,59701.9,57377.9,13707.3,51011.4,0,22921.4,18192.099999999999,5290.4,5281.9,5273,470945.50000000012]
[null,null,null,"Х","Х","Х","Х","1003","17 1 01 5134F",322,0,0,0,0,0,0,2046.5,0,0,0,0,0,2046.5]
[null,null,null,"Х","Х","Х","Х","1003","17 1 01 51350",322,27252.400000000001,29572.5,28050.3,31631.200000000001,5218.3,10393.200000000001,7412.4,11888.1,10811.6,7028.6,6999.1,6765.3,183023]
[null,null,null,"Х","Х","Х","Х","1003","17 1 01 51760",322,0,0,0,0,9965.2999999999993,20155.2,11568,15953.1,48278.8,24235.8,26712.400000000001,26810,183678.6]
[null,"финансирование за счет краевого бюджета","Х","Х","Х","Х","Х","1003","17 1 01 64340",322,0,0,0,0,0,0,0,5764.6,0,0,0,0,5764.6]
["1.1.1.20.","Мероприятие  «Предоставление отдельных мер социальной поддержки граждан, подвергшихся воздействию радиации»","Х",1,"Х","2014-2025","Министерство труда и социальной защиты  населения Забайкальского края","Всего",null,null,0,{"$f":"L156+L157","v":1818},2089.6,1834.9,1542.6,1448,1302.5999999999999,1485.7,0,0,0,{"$f":"V156+V157","v":0},11521.400000000001]
[null,"финансирование за счет федерального  бюджета","тыс. рублей","Х","Х","Х","Х","1003","17 1 01 51370",244,0,30,0,0,0,0,0,0,0,0,0,0,30]
[null,null,null,"Х","Х","Х","Х","1003","17 1 01 51370",313,0,1788,2089.6,1834.9,1542.6,1448,1302.5999999999999,1485.7,0,0,0,0,11491.400000000001]
["1.1.1.21.","Мероприятие  «Выплата единовременной денежной компенсации реабилитированным лицам»","Х",1,"Х","2014-2025","Министерство труда и социальной защиты  населения Забайкальского края","Всего",null,null,0,{"$f":"L159+L160","v":20},0,0,0,0,0,0,0,0,0,0,20]
[null,"финансирование за счет федерального  бюджета","тыс. рублей","Х","Х","Х","Х","1003","17 1 01 53000",244,0,0,0,0,0,0,0,0,0,0,0,0,0]
[null,null,null,"Х","Х","Х","Х","1003","17 1 01 53000",313,10,20,0,0,0,0,0,0,0,0,0,0,30]
["1.1.1.22.","Мероприятие  «Компенсация отдельным категориям граждан оплаты взноса на капитальный ремонт общего имущества в многоквартирном доме»","Х",1,"Х","2014-2025","Министерство труда и социальной защиты  населения Забайкальского края","Всего",null,null,0,0,{"$f":"M164+M165+M166","v":9507.1170000000002},{"$f":"N164+N165+N166","v":11685.8},{"$f":"O164+O165+O166+O162+O163","v":13875.829999999998},15312.599999999999,18346.3,19877.100000000002,20841.099999999999,21587.5,18050.7,{"$f":"V164+V165+V166+V162+V163","v":22616.2},171700.24700000003]
[null,null,"тыс. рублей","Х","Х","Х","Х","1003","17 1 01 84062",244,0,0,0,0,186,193.2,222.9,243.3,251.1,279.89999999999998,214.6,281.3,1872.3]
[null,null,null,"Х","Х","Х","Х","1003","17 1 01 84062",313,0,0,0,0,7683.73,8095,9391.9,12024.2,13589.9,14704.5,11124.7,15372.9,91986.83]
[null,"финансирование за счет  краевого бюджета",null,"Х","Х","Х","Х","1003","17 1 01 R4620",244,0,0,2.68,186,0,0,0,0,0,0,0,0,188.68]
[null,null,null,"Х","Х","Х","Х","1003","17 1 01 R4620",313,0,0,37.94,805,360.4,421.5,525.6,456.6,630,594.29999999999995,604,765.8,5201.1400000000003]
[null,"финансирование за счет федерального  бюджета","тыс. рублей","Х","Х","Х","Х","1003","17 1 01 R4620",313,0,0,9466.4969999999994,10694.8,5645.7,6602.9,8205.9,7153,6370.1,6008.8,6107.4,6196.2,72451.296999999991]
["1.1.1.23.","Мероприятие  «Компенсация расходов на  погребение  Героев Советского союза, Героев Российской Федерации, полных кавалеров ордена трудовой славы, Героев социалистического труда и полных кавалеров ордена Трудовой Славы»","Х",1,"Х","2014-2025","Министерство труда и социальной защиты  населения Забайкальского края","Всего",null,null,0,0,{"$f":"M169","v":95.6},198.5,0,0,{"$f":"Q169+Q168","v":5783.6},0,0,0,0,{"$f":"V169","v":0},6077.7000000000007]
[null,"финансирование за счет средств Фонда пенсионного и социального страхования Российской Федерации","тыс. рублей","Х","Х","Х","Х","1003","17 1 01 51980",321,0,0,0,0,0,0,5783.6,0,81.7,0,0,0,5865.3]
[{"$nulls":7},"1003","17 1 01 51980",323,0,0,95.6,198.5,0,0,0,0,0,0,0,0,294.10000000000002]
["1.1.1.24.","Мероприятие  «Оказание адресной социальной помощи неработающим пенсионерам на частичное возмещение ущерба  в связи с произошедшими чрезвычайными ситуациями и стихийными бедствиями»","Х",1,"Х","2014-2025","Министерство труда и социальной защиты  населения Забайкальского края","Всего",null,null,0,0,0,0,{"$f":"O171+O172+O173","v":21321.424999999999},0,0,0,0,0,0,0,21321.424999999999]
[null,"финансирование за счет средств Фонда пенсионного и социального страхования Российской Федерации","тыс. рублей","Х","Х","Х","Х","1003","17 1 01 R2090",321,0,0,0,0,19852.8,0,0,0,0,0,0,0,19852.8]
[null,"финансирование за счет  краевого бюджета","тыс. рублей","Х","Х","Х","Х","1003","17 1 01 R2090",321,0,0,0,0,1267.2,0,0,0,0,0,0,0,{"$f":"SUM(K172:S172)+T172+U172+V172","v":1267.2}]
[null,null,null,"Х","Х","Х","Х","1003","17 1 01 02090",244,0,0,0,0,201.42500000000001,0,0,0,0,0,0,0,201.42500000000001]
["1.1.2.","Основное мероприятие  «Создание условий для повышения адресности социальных выплат и развития нефинансовых способов поддержки населения»","Х",1,"Х","2014-2025","Министерство труда и социальной защиты  населения Забайкальского края","Х","Х","Х","Х","Х","Х","Х","Х","Х","Х","Х","Х","Х","Х","Х","Х"]
[null,"финансирование за счет  краевого бюджета","тыс.рублей","Х","Х","Х","Х","Х","Х","Х",0,0,0,0,0,0,0,0,0,0,0,0,0]
["1.1.2-ПОМ1","Показатель «Количество заключенных социальных контрактов»","шт.",1,"Абсолютный показатель","2014-2025","Х","Х","Х","Х",700,850,850,850,850,750,750,2534,1900,1950,2000,2000,"Х"]
["1.1.3.","Основное мероприятие «Совершенствование информационного обеспечения предоставления мер социальной поддержки»","Х",1,"Х","2014-2025","Министерство труда и социальной защиты  населения Забайкальского края","Х","Х","Х","Х","Х","Х","Х","Х","Х","Х","Х","Х","Х","Х","Х","Х"]
[null,"финансирование за счет краевого бюджета","тыс.рублей","Х","Х","Х","Х","Х","Х","Х",0,0,0,0,0,0,0,0,0,0,0,0,0]
["1.1.3-ПОМ1","Показатель «Количество разработанных памяток, брошюр по вопросам предоставления мер социальной поддержки, в том числе по жизненной ситуации»","шт.",1,"Абсолютный показатель","Х","Х","Х","Х","Х","Не менее 1","Не менее 1","Не менее 1","Не менее 1","Не менее 1","Не менее 1","Не менее 1","Не менее 1","Не менее 2","Не менее 2","Не менее 2","Не менее 2","Х"]
["1.1.4.","Основное мероприятие  «Цифровая трансформация сферы социальной защиты»","Х",1,"Х","2022-2025","Министерство труда и социальной защиты  населения Забайкальского края","Х","Х","Х","Х","Х","Х","Х","Х","Х","Х","Х",0,0,0,0,"Х"]
[null,"финансирование за счет  краевого бюджета","тыс. рублей","Х","Х","Х","Х","Х","Х","Х","Х","Х","Х","Х","Х","Х","Х","Х",0,0,0,0,0]
["1.1.4.1.","Мероприятие «Перевод мер социальной поддержки в формат «Социального казначейства»","Х",1,"Х","2022-2025","Министерство труда и социальной защиты  населения Забайкальского края","Х","Х","Х","Х","Х","Х","Х","Х","Х","Х","Х","Х","Х","Х","Х","Х"]
[null,"финансирование за счет краевого бюджета","тыс.рублей","Х","Х","Х","Х","Х","Х","Х","Х","Х","Х","Х","Х","Х","Х","Х","Х","Х","Х","Х","Х"]
["1.1.4.1.-ПМ1","Показатель «Доля массовых социально значимых государственных и муниципальных услуг в электронном виде, предоставляемых с использованием ЕПГУ, от общего количества таких услуг, предоставляемых в электронном виде»","%",1,"ГУ эл / ГУ *100, где: ГУ эл - количество государственных массовых социально значимых услуг, предоставляемых в электронном виде;ГУ - общее количество государственных массовых социально значимых услуг, предоставление которых организует Министерство.","Х","Х","Х","Х","Х","Х","Х","Х","Х","Х","Х","Х","Х",55,75,100,100,"Х"]
["1.1.4.1.-ПМ2","Показатель «Доля сведений, необходимых для назначения региональных и муниципальных мер социальной поддержки, получаемых органом социальной защиты посредством межведомственного электронного взаимодействия»","%",1,"СВсмэв/СВ*100, где СВсмэв - количество сведений, полученных посредством СМЭВ, СВ - общее количество сведений, необходимых для назначения мер социальной поддержки","Х","Х","Х","Х","Х","Х","Х","Х","Х","Х","Х","Х","Х",30,50,80,80,"Х"]
["1.1.4.1.-ПМ3","Доля региональных и муниципальных мер социальной поддержки, которые назначаются в срок, не превышающий 5 рабочих дней","%",1," Ддней = Кдней / Кобщ * 100 %, где: Ддней -доля МСП, нормативными правовыми актами, регламентирующими их порядок предоставления, предусмотрен срок назначения 5 дней и менее; Кдней - количество МСП, нормативными правовыми актами, регламентирующими их порядок предоставления, предусмотрен срок назначения 5 дней и менее, шт.; Кобщ - общее количество МСП, на конец отчетного года, шт.\n","Х","Х","Х","Х","Х","Х","Х","Х","Х","Х","Х","Х","Х",3,10,18,18,"Х"]
["1.1.4.1.-ПМ4","Доля мер социальной поддержки регионального уровня, которые граждане получают в проактивном формате по реквизитам счетов, направляемых гражданами посредством ЕПГУ в ЕГИССО","%",1,"Дрег = Ксогл / Кобщ * 100 %, где Крег - доля МСП, которые граждане получают в проактивном формате по реквизитам счетов, направляемых гражданам посредством ЕПГУ, проценты; Ксогл - количество МСП, которые получены гражданами за отчетный период в проактивном формате на основании согласий на использование реквизитов счетов, переданные оператором ЕСИА в ЕГИССО, шт.;\n Добщ - общее количество всех МСП, полученными гражданами за отчетный период, шт.","Х","Х","Х","Х","Х","Х","Х","Х","Х","Х","Х","Х","Х",3,7,9,9,"Х"]
["1.1.4.1.-ПМ5","Доля региональных и муниципальных мер, заполненных в классификаторе мер социальной защиты ЕГИССО с привязкой к соответствующим жизненным событиям","%",1,"Джиз = Кмер / Кобщ * 100 %, где Джиз -  доля МСЗ, право на которые возникает в связи с наступлением жизненных событий, перечень которых утвержден приказом Минтруда РФ, и которые привязаны к этим жизненным событиям в ЕГИССО, от общего количества действующих МСЗ в связи с наступлением таких жизненных событий.Кмер - количество МСЗ, право на которые возникает в связи с наступлением жизненных событий, и которые привязаны к этим жизненным событиям в ЕГИССО, шт.;Кобщ - общее количество МСЗ, в связи с наступлением жизненных событий, шт.\n","Х","Х","Х","Х","Х","Х","Х","Х","Х","Х","Х","Х","Х",10,75,100,100,"Х"]
["1.1.4.1.-ПМ6","Доля государственных услуг гражданам, пострадавшим в результате чрезвычайных ситуаций природного и техногенного характера, доступных в электронном виде от общего числа таких услуг","%",1,"Депгу = Кепгу / Кобщ * 100%, где: Депгу - доля государственных услуг гражданам, пострадавшим в результате чрезвычайных ситуаций природного и техногенного характера, доступных в электронном виде от общего числа таких услуг; Кепгу - количество государственных услуг гражданам, пострадавшим в результате чрезвычайных ситуаций природного и техногенного характера, форма для подачи заявлений на которые выведена на Единый портал государственных и муниципальных услуг (функций) и поступает в информационные системы органов исполнительной власти субъекта Российской Федерации, используемых для назначения мер социальной поддержки, шт.;\n Кобщ - общее количество государственных услуг гражданам, пострадавшим в результате чрезвычайных ситуаций природного и техногенного характера, предоставляемых Министерством труда и социальной защиты населения Забайкальского края, шт.\n","Х","Х","Х","Х","Х","Х","Х","Х","Х","Х","Х","Х","Х",100,100,100,100,"Х"]
["1.1.4.2.","Мероприятие «Интеграция автоматизированной системы \"Адресная социальная помощь\"  с ЕГИССО с целью предоставления государственной социальной помощи на основании социального контракта с использованием ЕГИССО»","Х",1,"Х","2024-2025","Министерство труда и социальной защиты  населения Забайкальского края","Х","Х","Х","Х","Х","Х","Х","Х","Х","Х","Х","Х","Х","Х","Х","Х"]
[null,"финансирование за счет краевого бюджета","тыс.рублей","Х","Х","Х","Х","Х","Х","Х","Х","Х","Х","Х","Х","Х","Х","Х","Х","Х",0,0,"Х"]
["1.1.4.2.-ПМ1","Показатель «Доля требований к интеграции ведомственной информационной системы органа социальной защиты и ЕГИССО, обеспеченных органом социальной защиты\"","%",1,"Показатель равен 0 %, если ВИС не интегрирована с ЕГИССО, 100 % - если ВИС интегрирована с ЕГИССО","2024-2025","Х","Х","Х","Х","Х","Х","Х","Х","Х","Х","Х","Х","Х","Х",100,100,"Х"]
["1.1.4.2.-ПМ2","Процесс заключения и оказания государственной социальной помощи на основании социального контракта, включая прием и обработку заявлений о предоставлении государственной социальной помощи на основании социального контракта с ЕПГУ, принятия решений о заключении социального контракта, формирование программы социальной адаптации и социального контракта ведется посредством автоматизированной информационной системы «Адресная социальная помощь», интегрированной с подсистемой установления выплат ЕГИССО","%",1,"Показатель равен 1 - если ГСП на основании социального контракта осуществляется посредством автоматизированной информационной системы «Адресная социальная помощь», интегрированной с подсистемой установления выплат ЕГИССО, 0 - в противном случае.","2024-2025","Х","Х","Х","Х","Х","Х","Х","Х","Х","Х","Х","Х","Х","Х",1,1,"Х"]
["1.1.4.3.","Мероприятие «Подключение к информационной системе «Единый контакт-центр взаимодействия с гражданами»","Х",1,"Х","2022-2025","Министерство труда и социальной защиты  населения Забайкальского края","Х","Х","Х","Х","Х","Х","Х","Х","Х","Х","Х","Х","Х","Х","Х","Х"]
[null,"финансирование за счет краевого бюджета","тыс.рублей","Х","Х","Х","Х","Х","Х","Х","Х","Х","Х","Х","Х","Х","Х","Х","Х","Х",0,0,"Х"]
["1.1.4.3.-ПМ1","Показатель «Качество обеспечения функционирования информационной системы «Единый контакт-центр взаимодействия с гражданами» в Министерстве труда и социальной защиты населения Забайкальского края и подведомственных ему учреждениях»","%",1,"(Ф + ЭС + Вр) * 100%, где:\nФ - Показатель функционирования ведомственного сегмента ИС ЕКЦ в органе государственной власти Забайкальского края в сфере социальной защиты населения, \nЭС - Показатель наполнения экспертной системы ИС ЕКЦ актуальной информацией, \nВр - Показатель времени дозвона до оператора\n","Х","Х","Х","Х","Х","Х","Х","Х","Х","Х","Х","Х","Х",50,80,90,100,"Х"]
[null,"Задача 2.  «Повышение ожидаемой продолжительности жизни. Обеспечение потребности граждан пожилого возраста и инвалидов в социальном обслуживании»","Х","Х","Х","Х","Х","Х","Х","Х","Х","Х","Х","Х","Х","Х","Х","Х","Х","Х","Х","Х","Х"]
[null,"Подпрограмма 2.  «Модернизация  и развитие социального обслуживания граждан пожилого возраста и инвалидов»","Х",1,"Х","Х","Министерство труда и социальной защиты  населения Забайкальского края, Министерство строительства, дорожного хозяйства  и транспорта Забайкальского края","Х","Х","Х","Х","Х","Х","Х","Х","Х","Х","Х","Х","Х","Х","Х","Х"]
[" 1.2","финансирование за счет федерального  бюджета","тыс. рублей","Х","Х","Х","Х","Х","Х","Х",0,0,0,0,0,{"$f":"P302+P230","v":29175.100000000002},{"$f":"Q302+Q230+Q253","v":151351.35499999998},{"$f":"R302+R240","v":60630.400000000001},{"$f":"S302+S240","v":56912.599000000002},{"$f":"T302+T240","v":63727.5},{"$f":"U302+U240","v":540279},{"$f":"V302+V240","v":0},902075.95399999991]
[null,"финансирование за счет средств Фонда пенсионного и социального страхования Российской Федерации","тыс. рублей","Х","Х","Х","Х","Х","Х","Х",{"$f":"K223","v":3343.6},{"$f":"L223","v":21925.7},{"$f":"M223+M264","v":6522.8639599999997},1971.6,1930.2,{"$f":"P223+P264","v":0},{"$f":"Q223+Q264","v":0},0,0,0,0,0,35693.963959999994]
[null,"финансирование за счет краевого бюджета","тыс. рублей","Х","Х","Х","Х","Х","Х","Х",{"$f":"K206+K231+K241+K265+K271+K286","v":1096949.2999999998},{"$f":"L206+L231+L241+L265+L271+L286","v":989102.09999999986},{"$f":"M206+M231+M241+M265+M271+M286","v":991157.2381800001},{"$f":"N206+N231+N241+N265+N271+N286+N295","v":1144614.8970000001},{"$f":"O206+O231+O241+O265+O271+O286+O295","v":1606022.9540000004},{"$f":"P206+P231+P241+P265+P271+P286+P295+P301","v":1896468.2000000002},1929228.6819999996,2000037.3,2071228.93,2093740.3,1622015.01,1952978.7,19393543.61118]
[null," - из Фонда ","тыс. рублей","Х","Х","Х","Х","Х","Х","Х",0,0,0,0,0,0,0,0,{"$f":"S282","v":57.5},{"$f":"T282","v":0},0,0,57.5]
["1.2-ПП1","Показатель «Удельный вес (доля) граждан пожилого возраста и инвалидов (взрослых), получивших социальные услуги в   учреждениях социального обслуживания, в общем числе граждан, обратившихся за получением социальных услуг в учреждения социального обслуживания»","%",1,"П / О *100, где:\nП - число граждан, получивших услуги в учреждениях социального обслуживания населения края;\nО - число граждан, обратившихся за получением социальных услуг в учреждениях социального обслуживания населения.","Х","Х","Х","Х","Х",79.2,83,86.1,91,96,97,100,100,100,100,100,100,"Х"]
["1.2-ПП2","Показатель «Обеспеченность  граждан пожилого возраста и инвалидов стационарными койками»","мест на 10000 населения","Х","К / (ПИ / 10 000), где:\nК - количество стационарных коек;\nПИ - численность граждан пожилого возраста и инвалидов.","Х","Х","Х","Х","Х",23.8,24,25.2,25.6,26.7,26.9,26.9,26.9,26.9,26.9,26.9,26.9,"Х"]
["1.2.1.","Основное мероприятие  «Укрепление материально-технической базы учреждений системы социального обслуживания населения»","Х",1,"Х","2014-2025","Х","Х","Х","Х","Х","Х","Х","Х","Х","Х","Х","Х","Х","Х","Х","Х","Х"]
["1.2.1.","финансирование за счет краевого бюджета","тыс. рублей","Х","Х","Х","Министерство труда и социальной защиты  населения Забайкальского края","всего",null,null,{"$f":"K210+K226","v":19343.7},26315.600000000002,929.1,309.3,2988.3,{"$f":"P210+P226","v":40108.699999999997},8471.6,{"$f":"R210","v":1148.6999999999998},{"$f":"S210","v":18697.2},0,0,0,118312.20000000001]
["1.2.1-ПОМ1","Показатель «Количество учреждений, в которых проведены работы по укреплению материально-технической базы»","единиц",1,"Абсолютный показатель","Х","Х","Х","Х","Х",31,35,44,45,32,45,47,44,44,44,44,44,499]
["1.2.1-ПОМ2","Показатель «Удельный вес зданий стационарных учреждений социального обслуживания граждан пожилого возраста, инвалидов (взрослых и детей) и лиц без определенного места жительства и занятий, требующих реконструкции, зданий, находящихся в аварийном состоянии, и ветхих зданий в общем количестве зданий стационарных учреждений социального обслуживания граждан пожилого возраста, инвалидов (взрослых и детей) и лиц без определенного места жительства и занятий»","%",1,"ЗСОрем/ЗСО*100, где ЗСОрем - здания стационарных учреждений социального обслуживания граждан пожилого возраста, инвалидов (взрослых и детей) и лиц без определенного места жительства и занятий, требующих реконструкции, зданий, находящихся в аварийном состоянии, и ветхих зданий, ЗСО - общее количество зданий стационарных учреждений социального обслуживания граждан пожилого возраста, инвалидов (взрослых и детей) и лиц без определенного места жительства и занятий","Х","Х","Х","Х","Х","Х","Х","Х","Х","Х","Х","Х","Х","Х",2.5,2.5,"Х","Х"]
["1.2.1.1","Мероприятие  «Капитальный ремонт жилых корпусов, помещений пищеблоков и банно-прачечных  отделений, лифтов, котельных, теплотрасс, водоводов и т. д.»","единиц",1,"Абсолютный показатель","Х","Министерство труда и социальной защиты  населения Забайкальского края, Министерство строительства, дорожного хозяйства  и транспорта Забайкальского края ","Х","Х","Х","Х","Х","Х","Х","Х","Х","Х","Х","Х","Х","Х","Х","Х"]
["1.2.1.1.","Мероприятие  «Капитальный ремонт жилых корпусов, помещений пищеблоков и банно-прачечных  отделений, лифтов, котельных, теплотрасс, водоводов и т. д.»","Х",1,"Х","2014-2025","Министерство труда и социальной защиты  населения Забайкальского края","всего",null,null,{"$f":"K213+K214+K215+K217+K222","v":19143.7},{"$f":"L213+L214+L215+L217+L222+L219","v":26315.600000000002},{"$f":"M213+M214+M215+M217+M222+M216","v":929.1},{"$f":"N213+N214+N215+N217+N222+N216","v":309.3},{"$f":"O213+O214+O215+O217+O222+O216+O221+O220+O219+O218","v":2988.3},{"$f":"SUM(P211:P222)","v":40108.699999999997},8471.6,1148.6999999999998,{"$f":"SUM(S211:S222)","v":18697.2},0,0,{"$f":"SUM(V211:V222)","v":0},118112.20000000001]
[null,"финансирование за счет краевого бюджета","тыс. рублей","Х","Х","Х","Х",1001,"17 2 01 04102",414,0,0,0,0,0,0,0,0,0,{"$f":"S211","v":0},{"$f":"T211","v":0},{"$f":"U211","v":0},0]
[{"$nulls":7},1002,"17 2 01 12501",622,0,0,0,0,0,0,1238,124.6,2973.4,0,0,0,4336]
[{"$nulls":7},1002,"17 2 01 12508",244,9018.1,0,0,0,0,0,0,0,0,0,0,0,9018.1]
[{"$nulls":7},1006,"17 2 01 12508",612,200,0,0,0,0,0,0,0,0,0,0,0,200]
[{"$nulls":7},1002,"17 2 01 12501",612,{"$f":"2373.6+3343.6","v":5717.2},12504.5,0,0,0,9146.5,3710.6,1024.0999999999999,0,0,0,0,32102.899999999998]
[{"$nulls":7},1002,"17 2 01 R2090",612,0,0,929.1,309.3,101,0,0,0,0,0,0,0,1339.4]
[{"$nulls":7},1006,"17 2 01 12501",622,{"$f":"597+2626.4","v":3223.4},12075.7,0,0,0,15142.6,0,0,0,0,0,0,30441.7]
[{"$nulls":7},1002,"17 2 01 12509",622,0,0,0,0,0,8146.6,732,0,0,0,0,0,8878.6]
[{"$nulls":7},1002,"17 2 01 12508",612,0,1735.4,0,0,0,3368.9,1709,0,0,0,0,0,6813.3]
[{"$nulls":7},1002,"17 2 01 12502",612,0,0,0,0,2187,0,0,0,0,0,0,0,2187]
[{"$nulls":7},1002,"17 2 01 12509",612,0,0,0,0,700.3,0,0,0,0,0,0,0,700.3]
[{"$nulls":7},1002,"17 2 01 12508",622,985,0,0,0,0,4304.1000000000004,1082,0,15723.8,0,0,0,22094.9]
[null,"финансирование за счет средств Фонда пенсионного и социального страхования Российской Федерации","тыс. рублей","Х","Х","Х","Х",null,null,null,{"$f":"K224+K225","v":3343.6},21925.7,6105.3639599999997,1623.8,{"$f":"O224+O225","v":1582},0,0,0,0,0,0,{"$f":"V224+V225","v":0},34580.463960000001]
[{"$nulls":7},1002,"17 2 01 R2090",612,3343.6,{"$f":"12504.5-2654.5","v":9850},6105.3639599999997,1623.8,1582,0,0,0,0,0,0,0,22504.76396]
[{"$nulls":7},1002,"17 2 01 52090",622,0,12075.7,0,0,0,0,0,0,0,0,0,0,12075.7]
["1.2.1.2.","Мероприятие «Приобретение технологического оборудования, резервных источников энергоснабжения, транспорта, мебели и т. д.»","Х",1,"Х","2014-2025","Министерство труда и социальной защиты  населения Забайкальского края","всего",null,null,{"$f":"K227+K228","v":200},{"$f":"L227+L228","v":0},0,0,0,0,0,0,{"$f":"S227+S228","v":0},{"$f":"T227+T228","v":0},{"$f":"U227+U228","v":0},{"$f":"V227+V228","v":0},200]
[null,"финансирование за счет краевого бюджета","тыс. рублей","Х","Х","Х",null,1006,5224500,612,125,0,0,0,0,0,0,0,0,0,0,0,125]
[{"$nulls":7},1006,5224500,622,75,0,0,0,0,0,0,0,0,0,0,0,75]
["1.2.2.","Основное мероприятие  «Расширение форм социального обслуживания и внедрение новых технологий организации и предоставления социальных услуг»","тыс. рублей",1,"Х","2014-2023","Министерство труда и социальной защиты  населения Забайкальского края, Отделение Фонда пенсионного и социального страхования Российской Федерации по Забайкальскому краю","Х","Х","Х","Х","Х","Х","Х","Х","Х","Х","Х","Х","Х","Х","Х","Х"]
[null,"финансирование за счет федерального бюджета","тыс. рублей",1,"Х","2014-2024","Министерство труда и социальной защиты  населения Забайкальского края,Отделение Фонда пенсионного и социального страхования Российской Федерации по Забайкальскому краю","Х","Х","Х",0,0,0,0,0,{"$f":"P235+P236","v":9349.7999999999993},9529.8559999999998,0,0,0,0,{"$f":"V235+V236","v":0},18879.655999999999]
[null,"финансирование за счет краевого бюджета","тыс. рублей","Х","Х","Х","Х","Х","Х","Х",0,0,0,0,0,{"$f":"P237+P238","v":94.4},96.3,0,0,0,0,{"$f":"V237+V238","v":0},190.7]
[null,"финансирование за счет краевого бюджета",null,"Х","Х","Х","Х",{"$nulls":15},0]
["1.2.2.-ПОМ1","Показатель  «Доля граждан пожилого возраста и инвалидов, при социальном обслуживании которых используются современные формы работы»","%",1,"Онф / О *100, где:\nОнф - число граждан пожилого возраста и инвалидов, при социальном обслуживании которых в отчетном году использовались новые формы работы;\nО - общее количество обслуженных граждан пожилого возраста и инвалидов в отчетном году.","Х","Министерство труда и социальной защиты  населения Забайкальского края","Х","Х","Х",100,100,100,100,100,100,100,100,100,100,100,100,"Х"]
["1.2.2.1.","Мероприятие  «Открытие групп кратковременного пребывания для детей с ограниченными возможностями здоровья на базе государственных учреждений социального обслуживания Забайкальского края»","Х",1,"Х","2019-2024","Министерство труда и социальной защиты  населения Забайкальского края","всего",null,null,"Х","Х","Х","Х","Х",{"$f":"P235+P236+P237+P238","v":9444.1999999999989},9626.155999999999,0,0,0,0,{"$f":"V235+V236+V237+V238","v":0},19070.356]
[null,"финансирование за счет федерального бюджета","тыс. рублей","Х","Х","Х","Х","009","17 2 02 55054",612,"Х","Х","Х","Х","Х",5253.2,9529.8559999999998,0,0,0,0,0,14783.056]
[null,null,null,"Х","Х","Х","Х","009","17 2 02 55054",622,"Х","Х","Х","Х","Х",4096.6000000000004,0,0,0,0,0,0,4096.6000000000004]
[null,"финансирование за счет краевого бюджета","тыс. рублей","Х","Х","Х","Х","009","17 2 02 Ц5054",612,"Х","Х","Х","Х","Х",53,96.3,0,0,0,0,0,{"$f":"SUM(K237:S237)+T237+U237+V237","v":149.30000000000001}]
[null,null,null,"Х","Х","Х","Х","009","17 2 02 Ц5054",622,"Х","Х","Х","Х","Х",41.4,0,0,0,0,0,0,41.4]
["1.2.3.","Основное мероприятие  «Обеспечение деятельности стационарных учреждений социального обслуживания престарелых и инвалидов»","Х",1,"Х","2014-2025","Министерство труда и социальной защиты  населения Забайкальского края","Х","Х","Х","Х","Х","Х","Х","Х","Х","Х","Х","Х","Х","Х","Х","Х"]
[null,"финансирование за счет федерального бюджета","тыс. рублей","Х","Х","Х","Х","Х","Х","Х",0,0,0,0,0,0,{"$f":"Q253","v":141821.49899999998},10023.6,0,0,0,0,151845.09899999999]
[null,"финансирование за счет краевого бюджета","тыс. рублей","Х","Х","Х",null,"Х","Х","Х",{"$f":"K244+K262","v":885345.4},782463.39999999991,776351.82149000012,890176.04700000002,1335487.0200000003,1586000.2,1638388.9779999999,{"$f":"R244+R262","v":1682868.2000000002},1700043.84,1713160.1,1317879.6000000001,{"$f":"V244+V262","v":1643796.5},15951961.106490001]
["1.2.3. ПОМ1","Показатель  «Степень выполнения показателей объемов предоставления государственных услуг, установленных в государственных заданиях»","%",0,"Оф / Опл *100, где:\nОф - общий фактический объем предоставления государственных услуг в соответствии с государственным заданием;\nОпл - плановый объем предоставления государственных услуг, предусмотренный государственным заданием.","Х","Министерство труда и социальной защиты  населения Забайкальского края","Х","Х","Х","не менее 98%","не менее 98%","не менее 98%","не менее 98%","не менее 98%","не менее 98%","не менее 98%","не менее 98%","не менее 98%","не менее 98%","не менее 98%","не менее 98%","Х"]
["1.2.3.1","Мероприятие «Осуществление стационарного, полустационарного обслуживания, обслуживания на дому граждан пожилого возраста и инвалидов»","Х",1,"х","2014-2025","Министерство труда и социальной защиты  населения Забайкальского края","Х","Х","Х","Х","Х","Х","Х","Х","Х","Х","Х","Х","Х","Х","Х","Х"]
[null,"финансирование за счет краевого бюджета","тыс.рублей","Х","Х","Х","Х","всего",null,null,{"$f":"SUM(K245:K251)","v":885345.4},782463.39999999991,776351.82149000012,{"$f":"SUM(N245:N251)","v":890176.04700000002},1335487.0200000003,1586000.2,{"$f":"SUM(Q245:Q251)","v":1638388.9779999999},1682868.2000000002,1700043.84,{"$f":"SUM(T245:T251)","v":1713160.1},1317879.6000000001,1643796.5,15951961.106490001]
[{"$nulls":7},1002,"17 2 03 12501",611,145680.20000000001,124583.8,121382.027,164179.37,229784.36,263390.40000000002,309037.33899999998,316213,337429,339228,260627.6,324872.5,{"$f":"SUM(K245:S245)+T245+U245+V245","v":2936407.5960000004}]
[{"$nulls":7},1002,"17 2 03 12501",612,0,0,0,3381.3,5105.2,4461.5,0,0,0,0,0,0,{"$f":"SUM(K246:S246)+T246+U246+V246","v":12948}]
[{"$nulls":7},1002,"17 2 03 12501",621,326720,304460.09999999998,290346.2,315469.04700000002,404590.03,470116,471320.15899999999,494990.3,511665.9,500945.8,385321.2,481362.4,4957307.1359999999]
[{"$nulls":7},1002,"17 2 03 12501",622,0,0,0,0,12400.4,9524.7999999999993,3980.1410000000001,0,0,0,0,0,25905.340999999997]
[{"$nulls":7},1002,"17 2 03 12508",611,{"$f":"20900+286427.8+2000","v":309327.8},280585.8,296400.19449000002,327095.2,561678.06000000006,702464.8,716637.78200000001,726988.9,696420.84,721941.5,555822.9,692833,6588196.7764900001]
[{"$nulls":7},1002,"17 2 03 12508",612,0,0,0,3229.28,249.75,530,1100,0,0,0,0,0,5109.0300000000007]
[{"$nulls":7},1002,"17 2 03 12508",621,{"$f":"54711.7+48905.7","v":103617.4},72833.7,68223.399999999994,76821.850000000006,121679.22,135512.70000000001,136313.557,144676,154528.1,151044.79999999999,116107.9,144728.6,1426087.227]
[{"$nulls":7},"1002","17 2 03 12508",621,0,0,0,0,0,0,0,0,0,0,0,0,0]
[{"$nulls":7},"всего",null,null,0,0,0,0,0,0,{"$f":"Q254+Q255+Q256+Q257","v":141821.49899999998},10023.6,0,0,0,0,151845.09899999999]
[null,"финансирование за счет федерального бюджета",{"$nulls":5},"1002","17 2 03 58340",612,0,0,0,0,0,0,63918.213000000003,0,0,0,0,0,63918.213000000003]
[{"$nulls":7},"1002","17 2 03 58340",622,0,0,0,0,0,0,68272.585999999996,0,0,0,0,0,68272.585999999996]
[{"$nulls":7},"1002","17 2 03 58370",612,0,0,0,0,0,0,3333.8,5112,0,0,0,0,8445.7999999999993]
[{"$nulls":7},"1002","17 2 03 58370",622,0,0,0,0,0,0,6296.9,4911.6000000000004,0,0,0,0,11208.5]
["1.2.3.1-ПМ1","Показатель  «Количество обслуженных граждан в стационарных учреждениях»","чел.",1,"Абсолютный показатель","Х","Х","Х","Х","Х",2395,2570,2732,2782,2900,2900,2900,2900,2900,2900,2900,2900,33679]
["1.2.3.1-ПМ2","Показатель  «Количество обслуженных на дому граждан пожилого возраста и инвалидов»","чел.",1,"Абсолютный показатель","Х","Х","Х","Х","Х",6583,6255,6100,6100,7500,7500,7500,7959,7500,7500,7500,7500,85497]
["1.2.3.1-ПМ3","Показатель  «Количество граждан, получивших услуги в условиях полустационарного обслуживания»","чел.",1,"Абсолютный показатель","Х","Х","Х","Х","Х",67,53,60,60,60,60,60,60,60,60,60,60,720]
["1.2.3.2.","Мероприятие  «Расселение проживающих в стационарных учреждениях из зданий с высокой степенью пожароопасности»","Х",1,"Х","Х","Х","Х","Х","Х","Х","Х","Х","Х","Х","Х","Х","Х","Х","Х","Х","Х","Х"]
[null,"финансирование за счет краевого бюджета","тыс. рублей",1,"Х","2014-2025","Министерство труда и социальной защиты  населения Забайкальского края","Х","Х","Х",0,0,0,0,0,0,0,0,0,0,0,0,0]
["1.2.4.","Основное мероприятие «Реализация мер по улучшению социализации пожилых людей и инвалидов»","Х","Х","Х","Х","Х","Х","Х","Х","Х","Х","Х","Х","Х","Х","Х","Х","Х","Х","Х","Х","Х"]
[null,"финансирование за счет средств Фонда пенсионного и социального страхования Российской Федерации","тыс. рублей",1,"Х","2014-2025","Министерство труда и социальной защиты  населения Забайкальского края","Х","Х","Х",0,0,{"$f":"M268","v":417.5},347.76,348.2,0,0,0,0,0,0,0,1113.46]
[null,"финансирование за счет краевого бюджета","тыс. рублей","Х","Х","Х","Х","Х","Х","Х",{"$f":"K269","v":0},{"$f":"L269","v":0},56.9,66.400000000000006,22.2,0,0,0,0,0,0,{"$f":"V269","v":0},145.5]
["1.2.4. -ПОМ1","Показатель  «Количество  граждан пожилого возраста и инвалидов, устроенных в   приемные семьи»","чел.","Х","Х","Х","Х","Х","Х","Х",120,155,135,135,150,150,150,150,150,150,150,150,1745]
["1.2.4.1.","Мероприятие  «Обучение компьютерной грамотности неработающих пенсионеров»","Х",1,"Х","Х","Х","Х","Х","Х","Х","Х","Х","Х","Х","Х","Х","Х","Х","Х","Х","Х","Х"]
[null,"финансирование за счет средств Фонда пенсионного и социального страхования Российской Федерации","тыс. руб.",1,"Х","2014-2024","Министерство труда и социальной защиты  населения Забайкальского края","1006","17 2 04 R2090",244,0,0,417.5,347.76,348.2,0,0,0,0,0,0,0,1113.46]
[null,"финансирование за счет краевого бюджета","тыс.руб.","Х","Х","2014-2024","Министерство труда и социальной защиты  населения Забайкальского края","1006","17 2 04 R2090",244,0,0,56.9,66.400000000000006,22.2,0,0,0,0,0,0,0,145.5]
[null,"финансирование за счет краевого бюджета","Х","Х","Х","Х","Х","Х","Х","Х","Х","Х","Х","Х","Х","Х","Х","Х","Х","Х","Х","Х","Х"]
["1.2.5.","Основное мероприятие  «Обеспечение деятельности Государственного казенного учреждения «Краевой центр социальной защиты населения» Забайкальского края»","тыс. рублей",1,"Х","2014-2025","Министерство труда и социальной защиты  населения Забайкальского края","всего",null,null,{"$f":"SUM(K272:K280)","v":188763.80000000002},{"$f":"SUM(L272:L280)","v":177342.1},{"$f":"SUM(M272:M281)","v":211319.41669000001},235396.84999999998,234375.92400000003,229686.3,240573.90399999998,264470.40000000002,{"$f":"SUM(S272:S281)","v":307033.49},321327.09999999998,256290.5,{"$f":"SUM(V272:V281)","v":263287.19999999995},2929866.9846899994]
[null,"финансирование за счет краевого бюджета",null,"Х","Х","Х","Х","1002","17 2 05 12508",111,126300,117850,145308.20000000001,151012.79999999999,155910.54800000001,156736.6,165173.364,182758.2,211248.99,221580.1,176732.3,181557.1,1992168.202]
[{"$nulls":7},"1002","17 2 05 12508",119,32774,36237.1,38197.9,46505.9,48327.08,47071.4,47677.2,54255.4,66311.3,66917.2,53373.1,54830.2,592477.77999999991]
[{"$nulls":7},"1002","17 2 05 12508",112,{"$f":"162.2+128.9+184","v":475.1},199,192.53140999999999,401.6,454.1,463.7,200,433.2,418.2,418.2,333.6,342.7,4331.9314099999992]
[{"$nulls":7},"1002","17 2 05 12508",242,{"$f":"2635+388.2+1728.5+4516.5","v":9268.2000000000007},3218.7,2870.4756400000001,null,6404.2190000000001,3716,3821,4100.7,2816.6,2816.6,2246.5,2307.9,43586.894639999999]
[{"$nulls":7},"1002","17 2 05 12508",244,{"$f":"2054.4+50+1038.3+4058+3768.6+298.6+8443.4","v":19711.3},19377.400000000001,24267.829040000001,36866.1,22888.38,21356.799999999999,22959.357,11457.4,14301.9,16471.2,13137.4,13496,236291.06603999998]
[{"$nulls":7},"1002","17 2 05 12508",247,0,0,0,0,0,0,0,11153.5,11873.5,13060.8,10417.299999999999,10701.7,57206.8]
[{"$nulls":7},"1002","17 2 05 12508",831,0,0,133.52871999999999,100,92.07,15.1,2.8490000000000002,0,0,0,0,0,343.54771999999997]
[{"$nulls":7},"1002","17 2 05 12508",851,47.5,71,125,165.05,235.74,206,678.24,200,51,51,40.700000000000003,41.8,1913.03]
[{"$nulls":7},"1002","17 2 05 12508",852,187.7,388.9,135.20222999999999,127.05,46.152999999999999,14.9,12,12,5,5,4,4.0999999999999996,942.00522999999987]
[{"$nulls":7},"1002","17 2 05 12508",853,0,0,88.749650000000003,218.35,17.634,105.8,49.893999999999998,100,7,7,5.6,5.7,605.72765000000015]
[null,"кроме того, финансирование из других источников:","тыс. рублей","Х","Х","2022-2023","Х","всего",null,null,0,0,0,0,0,0,0,0,{"$f":"S283","v":57.5},0,0,0,57.5]
[null," - из Фонда ","тыс. рублей","Х","Х","2022-2023","Х","1002","17 2 05 12508",244,0,0,0,0,0,0,0,0,57.5,0,0,0,57.5]
["1.2.5-ПОМ1","Показатель «Полнота предоставления государственных услуг по реализации мер социальной поддержки отдельных категорий граждан»","%","Х","Упред / У потр *100, где:\nУпред - объем предоставленных услуг по реализации мер социальной поддержки отдельных категорий граждан;\nУпотр - потребность в предоставлении услуг по реализации мер социально поддержки отдельных категорий граждан в пределах компетенции ГКУ «Краевой центр социальной защиты населения».","Х","Х","Х","Х","Х",100,100,100,100,100,100,100,100,100,100,100,100,"Х"]
["1.2.6."," Основное мероприятие  «Повышение эффективности государственной поддержки социально ориентированных некоммерческих организаций»","Х",1,"Х","2014-2025","Министерство труда и социальной защиты  населения Забайкальского края","Х","Х","Х","Х","Х","Х","Х","Х","Х","Х","Х","Х","Х","Х","Х","Х"]
[null,"финансирование за счет краевого бюджета","тыс.рублей","Х","Х","Х","Х","всего",null,null,{"$f":"K287+K288","v":3496.4},{"$f":"L287+L288","v":2981},{"$f":"M287+M288","v":2500},{"$f":"N287+N288","v":4150.7},{"$f":"O287+O288","v":3249.5},{"$f":"P290+P293","v":2462},2584,3098.7,{"$f":"S290+S293","v":3636.4},3916.9,3010.9,{"$f":"V290+V293","v":3753.4},38839.9]
[{"$nulls":7},"1006","17 2 06 02401",633,1540,924.7,1000,1000,1000,0,0,0,0,0,0,0,5464.7]
[{"$nulls":7},"1006","17 2 06 02402",631,1956.4,2056.3000000000002,1500,3150.7,2249.5,0,0,0,0,0,0,0,10912.900000000001]
["1.2.6.1","Мероприятие «Реализация мероприятий, проводимых в целях реабилитации и интеграции инвалидов»","Х",1,"Х","Х","Х","Х","Х","Х","Х","Х","Х","Х","Х","Х","Х","Х","Х","Х","Х","Х","Х"]
[null,"финансирование за счет краевого бюджета","тыс. рублей","Х","Х","Х","Х","1006","17 2 06 02401",633,0,0,0,0,0,1680,1802,905,1129.5,1200,922.4,1149.9000000000001,8788.7999999999993]
["1.2.6.1-ПМ1","Показатель  «Количество проведенных социально значимых  мероприятий»","ед.",1,"Абсолютный показатель","Х","Х","Х","Х","Х","не менее 3","не менее 3","не менее 3","не менее 3","не менее 3","не менее 4","не менее 4","не менее 4","не менее 4","не менее 4","не менее 4","не менее 4","Х"]
["1.2.6.2","Мероприятие \"Предоставление субсидий общественным объединениям и организациям инвалидов на возмещение части затрат за потребленную электрическую и тепловую энергию»","Х",1,"Х","Х","Х","Х","Х","Х","Х","Х","Х","Х","Х","Х","Х","Х","Х","Х","Х","Х","Х"]
[null,"финансирование за счет краевого бюджета","тыс. рублей","Х","Х","Х","Х","1006","17 2 06 02402",631,0,0,0,0,0,782,782,2193.6999999999998,2506.9,2716.9,2088.5,2603.5,13673.5]
["1.2.7.","Основное мероприятие  «Привлечение социально ориентированных некоммерческих и негосударственных организаций, а также благотворителей и добровольцев (волонтеров) к деятельности по предоставлению социальных услуг гражданам»","Х",1,"Х","2017-2025","Министерство труда и социальной защиты  населения Забайкальского края","Х","Х","Х","Х","Х","Х","Х","Х","Х","Х","Х","Х","Х","Х","Х","Х"]
[null,"финансирование за счет краевого бюджета","тыс. рублей","Х","Х","Х","Х","Х","Х","Х",0,0,0,{"$f":"N298","v":14515.6},29900.01,37712,{"$f":"Q298","v":39113.9},{"$f":"R298","v":37488.9},40656.5,{"$f":"T298","v":43980.7},{"$f":"U298","v":33807.9},{"$f":"V298","v":42141.599999999999},319317.11]
["1.2.7.-ПОМ1","Показатель «Удельный вес негосударственных организаций, оказывающих социальные услуги, от общего количества организаций  всех форм собственности»\n","%",1,"ВНК / ВОСУ *100, где:\nВНК – количество негосударственных организаций, оказывающих социальные услуги;\nВОСУ - общее количество организаций всех форм собственности, оказывающих социальные услуги.\n","2017-2025","Министерство труда и социальной защиты  населения Забайкальского края","Х","Х","Х","Х","Х","Х",6.6,10,10,10,26.5,26.5,26.5,26.5,26.5,"Х"]
["1.2.7.1","Мероприятие «Проведение конкурсных процедур по закупу государственной услуги  (государственный заказ) «Предоставление социального обслуживания» на территории  Забайкальского края»","Х",1,"Х","2017-2025","Министерство труда и социальной защиты  населения Забайкальского края","Х","Х","Х","Х","Х","Х","Х","Х","Х","Х","Х","Х","Х","Х","Х","Х"]
[null,"финансирование за счет краевого бюджета","тыс. рублей","Х","Х","Х","Х",1006,"17 2 07 02630",633,"Х","Х","Х",14515.6,29900.01,37712,39113.9,37488.9,40656.5,43980.7,33807.9,42141.599999999999,319317.11]
["1.2.7.2"," Мероприятие  «Предоставление имущественной поддержки  (предоставление на условиях безвозмездного пользования) при создании СО НКО, оказывающих  услуги  «Предоставление социального обслуживания»  на  территории Забайкальского края»","Х",1,"Х","Х","Министерство труда и социальной защиты населения Забайкальского края","Х","Х","Х","Х","Х","Х","Х","Х","Х","Х","Х","Х","Х","Х","Х","Х"]
["1.2.8.","Основное мероприятие  «Региональный проект «Разработка и реализация программы системной поддержки и повышения качества жизни граждан старшего поколения (Старшее поколение)»","тыс. рублей",1,"Х","2019-2025","Министерство труда и социальной защиты населения Забайкальского края","Х","Х","Х","Х","Х","Х","Х","Х","Х","Х","Х","Х","Х","Х","Х","Х"]
[null,"финансирование за счет краевого бюджета","тыс. рублей","Х","Х","Х","Х","Х","Х","Х","Х","Х","Х","Х","Х",{"$f":"P307+P306+P311+P312+P317+P318","v":404.59999999999997},0,{"$f":"R307+R306+R311+R312+R317+R318","v":10962.4},{"$f":"S307+S306+S311+S312+S317+S318","v":1161.5},11355.5,11026.11,{"$f":"V307+V306+V311+V312+V317+V318","v":0},34910.11]
[null,"финансирование за счет федерального бюджета","тыс. рублей","Х","Х","Х","Х","Х","Х","Х","Х","Х","Х","Х","Х",{"$f":"P309+P308+P319","v":19825.300000000003},{"$f":"Q309+Q308+Q319","v":0},{"$f":"R309+R308+R313+R314+R319","v":50606.8},56912.599000000002,63727.5,540279,{"$f":"V309+V308+V313+V314+V319","v":0},731351.19900000002]
["1.2.8. ПОМ1","Показатель «Численность граждан старше 65 лет, доставленных в медицинские организации из сельской местности на профилактические осмотры и диспансеризацию»","чел.",1,"Абсолютный показатель","Х","Х","Х","Х","Х","Х","Х","Х","Х","Х","Х","Х",1700,1900,2100,2400,0,"Х"]
["1.2.8. ПОМ2","Показатель «Доля граждан старше трудоспособного возраста и инвалидов, получивших социальные услуги в организациях социального обслуживания, от общего числа граждан старше трудоспособного возраста и инвалидов»","%",1,"ГСВп/ГСВо*100, где: ГСВп - численность граждан старше трудоспособного возраста и инвалидов, получивших услуги в организациях социального обслуживания; ГСВо - общее число граждан старшего трудоспособного возраста и инвалидов.","2021-2025","Х","Х","Х","Х","Х","Х","Х","Х","Х","Х","Х",4.3,4.3,11.34,11.35,0,"Х"]
["1.2.8.1"," Мероприятие  «Приобретение автотранспорта для осуществления доставки лиц старше 65 лет, проживающих в сельской местности, в медицинские организации»","Х",1,"Х","2019-2025","Х","Всего",null,null,"Х","Х","Х","Х","Х",{"$f":"P306+P307+P308+P309","v":20229.900000000001},"Х","Х","Х","Х","Х","Х","Х"]
[null,"финансирование за счет краевого бюджета","тыс. рублей","Х","Х","Х","Х",1002,"17 2 Р3 52930",612,"Х","Х","Х","Х","Х",336.4,0,0,0,0,0,0,{"$f":"SUM(K306:S306)+T306+U306+V306","v":336.4}]
[null,null,null,"Х","Х","Х","Х",1002,"17 2 Р3 52930",622,"Х","Х","Х","Х","Х",68.2,0,0,0,0,0,0,68.2]
[null,"финансирование за счет федерального бюджета","тыс. рублей","Х","Х","Х","Х",1002,"17 2 Р3 52930",612,"Х","Х","Х","Х","Х",16483.900000000001,0,0,0,0,0,0,16483.900000000001]
[null,null,null,"Х","Х","Х","Х",1002,"17 2 Р3 52930",622,"Х","Х","Х","Х","Х",3341.4,0,0,0,0,0,0,3341.4]
["1.2.8.2","Мероприятие «Создание системы долговременного ухода за гражданами пожилого возраста и инвалидами, включающей социальное обслуживание и медицинскую помощь на дому, а также в полустационарной и стационарной форме с привлечением патронажной службы и сиделок»","Х",1,"Х","2021-2025","Министерство труда и социальной защиты  населения Забайкальского края","Всего",null,null,0,0,0,0,0,0,0,{"$f":"R311+R312+R313+R314","v":51639.600000000006},{"$f":"S311+S312+S313+S314","v":58074.099000000002},{"$f":"T311+T312+T313+T314","v":65028.1},{"$f":"U311+U312+U313+U314","v":69420.209999999992},{"$f":"V311+V312+V313+V314","v":0},244162.00899999999]
[null,"финансирование за счет краевого бюджета","тыс. рублей","Х","Х","Х","Х",1002,"17 2 Р3 51630",612,"Х","Х","Х","Х","Х",0,0,866.3,1003.7,1142.8,1216.6199999999999,0,4229.42]
[null,null,null,"Х","Х","Х","Х",1002,"17 2 Р3 51630",622,"Х","Х","Х","Х","Х",0,0,166.5,157.80000000000001,157.80000000000001,171.79,0,653.89]
[null,"финансирование за счет федерального бюджета","тыс. рублей","Х","Х","Х","Х",1002,"17 2 Р3 51630",612,"Х","Х","Х","Х","Х",0,0,42449.3,49180.311999999998,55995.199999999997,59614.415000000001,0,207239.22699999998]
[null,null,null,"Х","Х","Х","Х",1002,"17 2 Р3 51630",622,"Х","Х","Х","Х","Х",0,0,8157.5,7732.2870000000003,7732.3,8417.3850000000002,0,32039.472000000002]
["1.2.8.2 ПМ1","Показатель «Доля граждан старше трудоспособного возраста и инвалидов, получающих услуги в рамках системы долговременного ухода, от общего числа граждан старшего трудоспособного возраста и инвалидов нуждающихся в долговременном уходе»","%",1,"СДУп/СДУн*100; где: СДКп - численность граждан старше трудоспособного возраста и инвалидов, получающих услуги в рамках системы долговременного ухода; СДУн - общее число  граждан старшего трудоспособного возраста и инвалидов нуждающихся в долговременном уходе.","Х","Х","Х","Х","Х","Х","Х","Х","Х","Х","Х","Х",5.8,9.4,11.7,12.7,0,"Х"]
["1.2.8.3","Мероприятие «Капитальные вложения в объекты государственной (муниципальной) собственности и в объекты недвижимого имущества, приобретаемые в государственную (муниципальную) собственность в области социальной политики»",null,1,"Х","2021-2025",{"$f":"G16","v":"Министерство строительства, дорожного хозяйства  и транспорта Забайкальского края"},"Всего",null,null,0,0,0,0,0,0,0,{"$f":"R317+R318+R319","v":9929.6},{"$f":"S317+S318+S319","v":0},{"$f":"T317+T318+T319","v":10054.9},{"$f":"U317+U318+U319","v":481884.9},{"$f":"V317+V318+V319","v":0},501869.4]
[null,"финансирование за счет краевого бюджета","тыс. рублей","Х","Х","Х","Х",1002,"17 2 Р3 04102",414,0,0,0,0,0,0,0,9929.6,0,10054.9,0,0,19984.5]
[null,null,null,"Х","Х","Х","Х",1002,"17 2 Р3 51210",414,0,0,0,0,0,0,0,0,0,0,9637.7000000000007,0,9637.7000000000007]
[null,"финансирование за счет федерального бюджета","тыс. рублей","Х","Х","Х","Х",1002,"17 2 Р3 51210",414,0,0,0,0,0,0,0,0,0,0,472247.2,0,472247.2]
["1.2.8.3 ПМ1","Показатель «Количество введенных в эксплуатацию объектов»","единиц",1,"Абсолютный показатель","Х","Х","Х","Х","Х","Х","Х","Х","Х","Х","Х","Х",0,0,0,0,1,1]
[null,"Задача 3.  «Снижение уровня бедности. Создание благоприятных  условий для жизнедеятельности семьи, функционирования института семьи, рождения детей»","Х","Х","Х","Х","Х","Х","Х","Х","Х","Х","Х","Х","Х","Х","Х","Х","Х","Х","Х","Х","Х"]
["1.3.","Подпрограмма 3. «Совершенствование социальной поддержки семьи и детей»","Х",1,"Х","2014-2025","Министерство труда и социальной защиты  населения Забайкальского края, Министерство строительства, дорожного хозяйства и транспорта Забайкальского края, Департамент государственного имущества и земельных отношений Забайкальского края","Х","Х","Х","Х","Х","Х","Х","Х","Х","Х","Х","Х","Х","Х","Х","Х"]
[null,"финансирование за счет краевого бюджета","тыс. рублей","Х","Х","Х","Х","всего",null,null,{"$f":"K330+K391+K421+K386+K379","v":2160839.2999999998},{"$f":"L330+L391+L421+L386+L379","v":2998316.4999999995},{"$f":"M330+M391+M421+M525","v":2911866.1476699999},{"$f":"N330+N391+N421+N525","v":3574281.42},{"$f":"O330+O386+O391+O421+O525+O534","v":3195555.9350000001},{"$f":"P330+P391+P421+P525+P534","v":3137156.9},3407000.8880000003,3529703.3059999999,4138754.1719999998,4545404.5999999996,3916870.6,4923880,42439629.76867]
[null,"кроме того, финансирование из других источников:","тыс. рублей","Х","Х","Х","Х","Х","Х","Х",0,0,0,0,0,0,0,0,0,0,0,0,0]
[null," - из федерального бюджета","тыс. рублей","Х","Х","Х","Х","всего",null,null,{"$f":"K331+K422","v":1167343.7},{"$f":"L331+L422","v":1178054.7},{"$f":"M331+M422","v":1348337.3000000003},{"$f":"N331+N422","v":1375208.92},{"$f":"O331+O422","v":1363841.8990000002},{"$f":"P331+P422+P535","v":2213912.5999999996},6295336.2939999998,9125740.6000000015,9240914,5086926,2159256,1576788.6,42131660.612999998]
[null," - из Фонда","тыс.рублей","Х","Х","Х","Х","всего",null,null,0,0,0,0,0,0,0,0,{"$f":"S332","v":8336.5},0,0,0,8336.5]
["1.3-ПП1","Показатель  «Доля семей с детьми, состоявших на социальном сопровождении в государственных организациях социального обслуживания, в общем числе семей с детьми, имеющих право на  предоставление социального сопровождения  и обратившихся за его получением в организации социального обслуживания»","%",1,"Б / Д *100, где:\nБ - численность  семей с детьми, состоявших на социальном сопровождении в государственных организациях социального обслуживания,                    Д- общее число семей с детьми, имеющих право на  предоставление социального сопровождения и обратившихся за  его получением  в организации социального обслуживания\n","Х","Х","Х","Х","Х",0,0,0,0,0,0,95,95.5,96,98,100,100,"Х"]
["1.3-ПП2","Показатель  «Удельный вес детей-инвалидов, получивших социальные услуги в учреждениях социального обслуживания, в общей численности  детей-инвалидов»","коэф",1,"Дис / ДИ , где:\nДис - количество детей-инвалидов, получивших социальные услуги в учреждениях социального обслуживания населения;\nДИ - общее количество детей- инвалидов.","Х","Х","Х","Х","Х",0.4,0.7,0.65,0.5,0.2,0.22,0.22,0.22,0.22,0.23,0.24,0.25,"Х"]
["1.3.1.","Основное мероприятие  «Социальная поддержка и социальное обслуживание детей, находящихся в социально опасном положении или иной трудной жизненной ситуации»","Х",1,"Х","2014-2025","Министерство труда и социальной защиты  населения Забайкальского края, Министерство образования и науки Забайкальского края, Министерство строительства, дорожного хозяйства и транспорта Забайкальского края, Департамент государственного имущества и земельных отношений Забайкальского края","Х","Х","Х","Х","Х","Х","Х","Х","Х","Х","Х","Х","Х","Х","Х","Х"]
[null,"финансирование за счет краевого бюджета","тыс. рублей","Х","Х","Х","Х","всего",null,null,{"$f":"K340+K343+K350+K379","v":1050983.5},{"$f":"L340+L343+L350+L379","v":1285142},{"$f":"M350+M379+M339+M343+M345+M340+M380","v":1219324.9411799998},{"$f":"N350+N379+N339+N343+N345+N340+N380+N341","v":1570567.04},{"$f":"O350+O379+O339+O343+O345+O340+O380+O342","v":1546401.679},{"$f":"P350+P379+P339+P343+P345+P340+P380","v":1521521.0999999999},{"$f":"Q350+Q379+Q339+Q343+Q345+Q340+Q380+Q344","v":1566733.2910000002},{"$f":"R350+R379+R339+R343+R345+R340+R380+R344","v":1768976.3},{"$f":"S350+S379+S339+S343+S345+S340+S380+S344+S384","v":1813409.61},{"$f":"T350+T379+T339+T343+T345+T340+T380+T344+T384","v":1731354.5999999999},{"$f":"U350+U379+U339+U343+U345+U340+U380+U344+U384","v":1271718.1999999997},{"$f":"V350+V379+V339+V343+V345+V340+V380+V344+V384","v":1570987.3},17917119.561179999]
[null,"финансирование за счет федерального бюджета","тыс. рублей","Х","Х","Х","Х","всего",null,null,{"$f":"K338+K378+K382","v":191208.40000000002},{"$f":"L382+L338+L378","v":234125.1},{"$f":"M338+M378+M382+M368+M381","v":294777.59999999998},{"$f":"N338+N378+N382+N368+N381+N335+N337","v":465397.89999999997},{"$f":"O338+O378+O382+O368+O381+O335+O337","v":269649.99900000001},{"$f":"P338+P378+P382+P368+P381+P335+P337","v":302469.89999999997},{"$f":"Q338+Q378+Q382+Q368+Q381+Q335+Q337","v":307908.7},{"$f":"R338+R378+R382+R368+R381+R335+R337+R336","v":680242.2},{"$f":"S338+S378+S382+S368+S381+S335+S337+S336","v":696781.9},{"$f":"T338+T378+T382+T368+T381+T335+T337+T336","v":409598.80000000005},{"$f":"U338+U378+U382+U368+U381+U335+U337+U336","v":409598.80000000005},{"$f":"V338+V378+V382+V368+V381+V335+V337+V336","v":401581.9},4663341.199]
[null," - из Фонда ","тыс. рублей","Х","Х","Х","Х","всего",null,null,0,0,0,0,0,0,0,0,{"$f":"S372","v":8336.5},{"$f":"T372","v":0},0,0,8336.5]
[" 1.3.1.1.","Мероприятие  «Предоставление жилых помещений детям-сиротам и детям, оставшимся без попечения родителей, лицам из их  числа по договорам найма специализированных жилых помещений»","Х",1,"Х","2014-2025","Министерство строительства, дорожного хозяйства и транспорта Забайкальского края,  Департамент государственного имущества и земельных отношений Забайкальского края, Министерство труда и социальной защиты  населения Забайкальского края","Х","Х","Х","Х","Х","Х","Х","Х","Х","Х","Х","Х","Х","Х","Х","Х"]
[{"$nulls":7},"Всего",null,null,{"$f":"K335+K336+K337+K338+K339+K340+K341+K342+K343+K344+K345","v":524712.20000000007},342552.9,308955.59999999998,558114.5,313339.99799999996,354236,331623.85800000001,850321.8,781466.2,449926.80000000005,449926.80000000005,{"$f":"V335+V336+V337+V338+V339+V340+V341+V342+V343+V344+V345","v":451029.8},5716206.4559999993]
[null,"финансирование за счет федерального бюджета","тыс. рублей","Х","Х","Х","Х",1004,"17 3 01 R0820",412,0,0,0,{"$f":"99202.97+171377.53","v":270580.5},{"$f":"25071.899+244471.9","v":269543.799},{"$f":"193274+109039.3","v":302313.3},{"$f":"153266.3+154472.7","v":307739},507429,260013.7,70616,null,null,1988235.2989999999]
[{"$nulls":7},1004,"17 3 01 R0820",414,0,0,0,0,0,0,0,172650.3,436610,338817.4,409433.4,401416.5,1758927.6]
[{"$nulls":7},1004,"17 3 01 R082F",412,0,0,0,{"$f":"32979.7+161735.6","v":194715.3},0,0,0,0,0,0,0,0,194715.3]
[{"$nulls":7},1004,"17 3 01 50820",412,190807.7,233924.1,282544.8,0,0,0,0,0,0,0,0,0,707276.60000000009]
[null,"финансирование за счет краевого бюджета","тыс. рублей","Х","Х","Х","Х",1004,"17 3 01 R0820",412,0,0,0,{"$f":"7466.89+14157.5+9276.16+58294.9","v":89195.45},{"$f":"1600.285+15604.614","v":17204.899000000001},{"$f":"6960+12336.7","v":19296.7},19642.914000000001,{"$f":"118495+25623.2","v":144118.20000000001},27824.6,6984,0,0,324266.76299999998]
[{"$nulls":7},1004,"17 3 01 R0820",414,332028.7,108628.8,26410.799999999999,0,0,0,0,26124.3,57017.9,33509.4,40493.4,49613.3,673826.60000000009]
[{"$nulls":7},1004,"17 3 01 R0820",853,0,0,0,3623.25,0,0,0,0,0,0,0,0,3623.25]
[{"$nulls":7},1004,"17 3 01 R0820",853,0,0,0,0,6023,0,0,0,0,0,0,0,6023]
[{"$nulls":7},1006,"17 3 01 04701",321,1875.8,0,0,0,0,0,0,0,0,0,0,0,1875.8]
[{"$nulls":7},"1004","17 3 01 04820",853,0,0,0,0,0,0,4241.9440000000004,0,0,0,0,0,4241.9440000000004]
[{"$nulls":7},"1004","173 01 04082",412,0,0,0,0,20568.3,32626,null,0,0,0,0,0,53194.3]
["1.3.1.1.- ПМ1","Показатель «Численность детей-сирот и детей, оставшихся без попечения родителей, у которых возникло и не реализовано на конец отчетного года право на предоставление жилых помещений»","чел.",1,"Абсолютный показатель","2014-2025","Х","Х","Х","Х",4388,4904,5426,5836,6337,6497,6730,6826,6894,6755,6622,6494,"Х"]
["1.3.1.1. - ПМ2","Показатель  «Численность детей-сирот и детей, оставшихся без попечения родителей, лиц из их числа обеспеченных жилыми помещениями»\n","чел.",null,"Абсолютный показатель","2014-2018","Х","Х","Х","Х",583,320,340,264,265,"Х","Х","Х","Х","Х","Х","Х","Х"]
["1.3.1.1. - ПМ3","Показатель  «Численность детей-сирот и детей, оставшихся без попечения родителей, лиц из их числа детей-сирот и детей, оставшихся без попечения родителей, обеспеченных благоустроенными жилыми помещениями специализированного жилищного фонда по договорам найма специализированных помещений (нарастающим итогом)»\n","чел.",1,"Абсолютный показатель","2014-2025","Х","Х","Х","Х",0,0,0,0,0,714,960,1097,1344,1483,1616,1744,"Х"]
["1.3.1.2. ","Мероприятие  «Предоставление социальных услуг несовершеннолетним, находящимся в социально опасном положении или иной трудной жизненной ситуации, с ослабленным здоровьем в учреждениях социального обслуживания Забайкальского края»","Х",1,"Х","2014-2025","Министерство труда и социальной защиты  населения Забайкальского края","Х","Х","Х","Х","Х","Х","Х","Х","Х","Х","Х","Х","Х","Х","Х","Х"]
[null,"финансирование за счет краевого бюджета","тыс. рублей","Х","Х","Х","Х","всего",null,null,{"$f":"K351+K353+K354+K355+K357+K358+K360+K364+K367+K371+K352","v":717035},{"$f":"L351+L353+L354+L355+L357+L358+L360+L364+L367+L371+L352","v":1176487.3},{"$f":"M360+M364+M371+M367","v":1192914.1411799998},{"$f":"N360+N364+N371+N361+N370+N369","v":1477628.34},{"$f":"SUM(O353:O371)","v":1502605.48},{"$f":"P360+P364+P371+P363+P365+P367+P368+P369+P361+P362+P370+P366","v":1469598.4},{"$f":"Q360+Q364+Q371+Q363+Q365+Q367+Q368+Q369+Q362+Q366","v":1542848.4330000002},{"$f":"SUM(R352:R371)","v":1598733.8},{"$f":"SUM(S352:S371)","v":1698517.11},{"$f":"SUM(T351:T371)","v":1610811.2},{"$f":"SUM(U351:U371)","v":1203691.2999999998},1491326.1,16682196.604179999]
[{"$nulls":7},"1002","17 3 01 12509",111,{"$f":"22967.3+35376.3","v":58343.600000000006},29785.599999999999,0,0,0,0,0,0,0,33855.1,26024.400000000001,32439.4,180448.1]
[{"$nulls":7},"1002","17 3 01 12509",119,{"$f":"6226.2+9713.6","v":15939.8},8892.2000000000007,0,0,0,0,0,0,0,10224.299999999999,7859.4,9796.7000000000007,52712.400000000009]
[{"$nulls":7},"1002","17 3 01 12509",112,{"$f":"59.9+29.6+26.2+106.8+3.9+142","v":368.4},155.30000000000001,0,0,0,0,0,0,0,0,0,0,523.70000000000005]
[{"$nulls":7},"1002","17 3 01 12509",242,{"$f":"392.2+138+3.5+386.8+63","v":983.5},314.2,0,0,0,0,0,0,0,76.8,59,73.5,1507]
[{"$nulls":7},"1002","17 3 01 12509",244,{"$f":"10+2313.8+4449.9+677.1+5072.2+629.9+1365.2+438.6+172.2+342.8+6.4+2518.8+7379.4","v":25376.300000000003},12033.6,0,0,0,0,0,0,0,14213.8,10926,13619.3,76169]
[{"$nulls":7},"1002","17 3 01 12509",247,0,0,0,0,0,0,0,0,0,3963.8,3046.9,3798,10808.7]
[{"$nulls":7},"1002","17 3 01 12509",851,{"$f":"600+1001","v":1601},772,0,0,0,0,0,0,0,537.5,413.2,515,3838.7]
[{"$nulls":7},"1002","17 3 01 12509",852,{"$f":"25+60","v":85},108.8,0,0,0,0,0,0,0,35,26.9,33.5,289.20000000000005]
[{"$nulls":7},"1002","17 3 01 12509",853,0,0,0,0,0,0,0,0,0,10,7.7,9.8000000000000007,27.5]
[{"$nulls":7},"1002","17 3 01 12509",611,391167.3,867134.7,923565.95117999997,1105139.25,0,0,0,0,0,0,0,0,3287007.2011799999]
[{"$nulls":7},"1002","17 3 01 12509",612,0,0,0,44273.3,0,0,0,0,0,0,0,0,44273.3]
[{"$nulls":7},"1004","17 3 01 12509",612,0,0,0,0,13132.15,13421.8,6698.59,2423.1,4835.8,0,0,0,40511.439999999995]
[{"$nulls":7},"1004","17 3 01 12509",611,0,0,0,0,1112527.46,1031099.1,1098199.1710000001,{"$f":"1134593.3-424.4","v":1134168.9000000001},1211454.83,1064380.8999999999,778321.4,986675.8,8416827.5610000007]
[{"$nulls":7},"1002","17 3 01 12509",621,132566,171550.8,177774.5,211436.03,246749.77,277992.8,289226.50400000002,305075.59999999998,313261.7,313522.2,242099.5,301777,2983032.4040000001]
[{"$nulls":7},"1004","17 3 01 12509",621,0,0,0,0,15177.3,15641.8,16436.5,22394.400000000001,22891.599999999999,23720.1,18240.5,22736.799999999999,157239]
[{"$nulls":7},"1002","17 3 01 12509",622,0,0,0,0,0,5100,424,0,2268,0,0,0,7792]
[{"$nulls":7},1002,"17 3 01 12509",321,0,0,622.49,0,0,0,0,0,0,0,0,0,622.49]
[{"$nulls":7},1002,"17 3 01 51720",612,0,0,12000,0,0,0,0,0,0,0,0,0,12000]
[{"$nulls":7},1002,"17 3 01 56140",612,0,0,0,12000,0,0,0,0,0,0,0,0,12000]
[{"$nulls":7},1002,"17 3 01 12502",612,0,0,0,1719.66,1121.2,1420,0,0,0,0,0,0,{"$f":"SUM(K370:S370)+T370+U370+V370","v":4260.8600000000006}]
[{"$nulls":7},1002,"17 3 01 12502",611,90604.1,85740.1,90951.2,103060.1,113897.60000000001,124922.9,131863.66800000001,134671.79999999999,143805.18,146271.70000000001,116666.4,119851.3,{"$f":"SUM(K371:S371)+T371+U371+V371","v":1402306.048}]
[null,"кроме того, финансирование из других источников:","тыс. рублей","Х","Х","2022-2023","Х","всего",null,null,0,0,0,0,0,0,0,0,{"$f":"S373+S374","v":8336.5},{"$f":"T373+T374","v":0},0,0,8336.5]
[null," - из Фонда ","тыс. рублей","Х","Х","2022-2023","Х","1004","17 3 01 12509",612,0,0,0,0,0,0,0,0,8207.5,0,0,0,{"$f":"SUM(K373:V373)","v":8207.5}]
[{"$nulls":7},"1004","17 3 01 12509",622,0,0,0,0,0,0,0,0,129,0,0,0,{"$f":"SUM(K374:V374)","v":129}]
["1.3.1.2-ПМ1","Показатель «Удовлетворенность качеством услуг»","%",1,"Ок/О *100, где:\n Ок- число опрошенных потребителей услуги, имеющих высокий и средний уровень удовлетворенности качеством услуги; \nО- общее число опрошенных потребителей услуги.\n","Х","Х","Х","Х","Х",90,90,90,90,90,90,90,90,90,90.2,90.3,90.4,"Х"]
["1.3.1.2-ПМ2","Показатель \"Численность детей, охваченных технологиями по  формированию компетенций, направленных на достижение личного профессионального успеха и финансовой независимости в будущем»","чел.",1,"Абсолютный показатель","2022-2023","Министерство труда и социальной защиты  населения Забайкальского края","Х","Х","Х","Х","Х","Х","Х","Х","Х","Х","Х",550,650,"Х","Х","Х"]
["1.3.1.3.","Мероприятие  «Перевозка несовершеннолетних, самовольно ушедших из семей, организаций для детей-сирот и детей, оставшихся без попечения родителей, образовательных организаций и иных организаций»","Х",1,"Х","2014-2025","Министерство труда и социальной защиты  населения Забайкальского края","Х","Х","Х","Х","Х","Х","Х","Х","Х","Х","Х","Х","Х","Х","Х","Х"]
[null,"финансирование за счет федерального бюджета","тыс. рублей","Х","Х","Х","Х"," 1004","17 3 01 59400",112,40,23.3,0,0,0,0,0,0,0,0,0,0,63.3]
[null,"финансирование за счет краевого бюджета","тыс. рублей","Х","Х","Х","Х","1004","17 3 01 02511",323,44,25.9,0,0,0,0,0,0,0,0,0,0,69.900000000000006]
[null,"финансирование за счет краевого бюджета","тыс. рублей","Х","Х","Х","Х","1004","17 3 01 02511",612,0,0,0,120,0,0,0,0,50,50,38.4,47.9,306.29999999999995]
[null,"финансирование за счет федерального бюджета","тыс. рублей","Х","Х","Х","Х","1004","17 3 01 59400",612,0,0,232.8,102.1,106.2,156.6,169.7,162.9,158.19999999999999,165.4,165.4,165.4,1584.7]
[null,null,"тыс. рублей","Х","Х","Х","Х","1004","17 3 01 59400",323,360.7,177.7,0,0,0,0,0,0,0,0,0,0,538.4]
["1.3.1.4.","Мероприятие «Предоставление лицам из числа детей-сирот и детей, оставшихся без попечения родителей, достигшим возраста 23 лет, социальной выплаты на приобретение жилого помещения на территории Забайкальского края в собственность, удостоверяемой сертификатом»","Х",1,"Х","2022-2024","Министерство труда и социальной защиты населения Забайкальского края","Х","Х","Х","Х","Х","Х","Х","Х","Х","Х","Х","Х","Х","Х","Х","Х"]
[null,"финансирование за счет краевого бюджета","тыс. рублей","Х","Х","Х","Х","1004","17 3 01 04104",360,"Х","Х","Х","Х","Х","Х","Х","Х",30000,80000,27495.1,30000,167495.1]
["1.3.2.","Основное мероприятие  «Методологическое и организационное совершенствование социальной поддержки и социального  обслуживания детей и семей с детьми, находящихся в трудной жизненной ситуации»","Х",1,"Х","2014-2025","Министерство труда и социальной защиты населения Забайкальского края","Х","Х","Х","Х","Х","Х","Х","Х","Х","Х","Х","Х","Х","Х","Х","Х"]
[null,"финансирование за счет краевого бюджета","тыс. рублей","Х","Х","Х","Х","Х","Х","Х",{"$f":"K389","v":0},0,0,0,0,0,0,0,{"$f":"S389","v":0},{"$f":"T389","v":0},{"$f":"U389","v":0},{"$f":"V389","v":0},0]
["1.3.2-ПОМ1","Показатель «Доля семей с детьми, преодолевших трудную жизненную ситуацию, посредством социального сопровождения»","%",1,"Чсем / Ч *100, где:\nЧсем - число семей с детьми, преодолевших трудную жизненную ситуацию, посредством социального сопровождения;\nЧ - общее количество семей с детьми, состоящих на социальном сопровождении","2021-2025","Х","Х","Х","Х","Х","Х","Х","Х","Х","Х","Х",25,30,32,35,35,"Х"]
["1.3.2.1.","Мероприятие  «Внедрение успешных моделей социальной работы с семьями с детьми и детьми на местном уровне, включая развитие службы социального сопровождения и «участковой социальной службы»","Х",1,"Х","2014-2025","Министерство труда и социальной защиты  населения Забайкальского края","Х","Х","Х","Х","Х","Х","Х","Х","Х","Х","Х","Х","Х","Х","Х","Х"]
[null,"финансирование за счет краевого бюджета","тыс. рублей","Х","Х","Х","Х","Х","Х","Х",0,0,0,0,0,0,0,0,0,0,0,0,0]
["1.3.3.","Основное мероприятие  «Принятие мер, направленных на расширение семейных форм устройства детей»","Х",1,"Х","2014-2025","Министерство труда и социальной защиты  населения Забайкальского края","Х","Х","Х","Х","Х","Х","Х","Х","Х","Х","Х","Х","Х","Х","Х","Х"]
[null,"финансирование за счет краевого бюджета","тыс.рублей","Х","Х","Х","Х","всего",null,null,{"$f":"K394+K397+K400+K404+K406+K407+K409+K411+K413+K414+K416+K418","v":187555.09999999998},{"$f":"L403+L418","v":517731.3},{"$f":"M403+M418","v":524711.4},{"$f":"N394+N397+N400+N404+N406+N407+N409+N411+N413+N414+N416+N408+N410+N412+N418","v":625035.6},583481.29799999995,584736.20000000007,600203.69999999995,{"$f":"R394+R397+R400+R404+R406+R407+R409+R411+R413+R414+R416+R408+R410+R412+R418","v":613933.70000000007},{"$f":"S394+S397+S400+S404+S406+S407+S409+S411+S413+S414+S416+S408+S410+S412+S418","v":637021.6},{"$f":"T394+T397+T400+T404+T406+T407+T409+T411+T413+T414+T416+T408+T410+T412+T418","v":681430.4},{"$f":"U394+U397+U400+U404+U406+U407+U409+U411+U413+U414+U416+U408+U410+U412+U418","v":520905.6},{"$f":"V394+V397+V400+V404+V406+V407+V409+V411+V413+V414+V416+V408+V410+V412+V418","v":646907.4},6723653.2980000004]
["1.3.3-ПОМ1","Показатель  «Доля детей-сирот и детей, оставшихся без попечения родителей, устроенных в семьи, от общего числа детей-сирот и детей, оставшихся без попечения родителей»","%",1,"Дсем / Д *100, где:\nДсем - число детей-сирот и детей, оставшихся без попечения родителей, устроенных в семьи;\nД - общее количество детей-сирот и детей, оставшихся без попечения родителей.","Х","Х","Х","Х","Х",72,72.8,72.2,72.3,74,76,76.5,77,77.5,77.5,77.5,77.5,"Х"]
["1.3.3.1.","Мероприятие  «Принятие мер для возвращения детей в кровные семьи»","Х",1,"Х","2014-2025","Министерство труда и социальной защиты  населения Забайкальского края","Х","Х","Х","Х","Х","Х","Х","Х","Х","Х","Х","Х","Х","Х","Х","Х"]
[null,"финансирование за счет краевого бюджета","тыс. рублей","Х","Х","Х","Х","Х","Х","Х",0,0,0,0,0,0,0,0,0,0,0,0,0]
["1.3.3.1.- ПМ1","Показатель  «Доля несовершеннолетних, вернувшихся в семьи, от общего числа помещенных в учреждения социального обслуживания   несовершеннолетних»","%",1,"Чс/ Чо * 100, где:\n Чс - число несовершеннолетних, вернувшихся в семьи; \nЧо - число несовершеннолетних , обратившихся в учреждения.","Х","Х","Х","Х","Х",72,75,80,80,80,80,80,80,80,80,80,80,"Х"]
["1.3.3.2.","Мероприятие  «Принятие совместно с органами опеки и попечительства мер для устройства детей в замещающие  семьи»","Х",1,"Х","2014-2025","Министерство труда и социальной защиты  населения Забайкальского края","Х","Х","Х","Х","Х","Х","Х","Х","Х","Х","Х","Х","Х","Х","Х","Х"]
[null,"финансирование за счет краевого бюджета","тыс.рублей","Х","Х","Х","Х","Х","Х","Х",0,0,0,0,0,0,0,0,0,0,0,0,0]
["1.3.3.2-ПМ2","Показатель  «Количество детей, устроенных в замещающие семьи  (под опеку, на усыновление, в приемные семьи)» (нарастающим итогом)","чел.",1,"Абсолютный показатель","Х","Х","Х","Х","Х",1413,1478,1353,774,894,1014,1042,1016,1185,1185,1185,1185,"Х"]
["1.3.3.3.","Мероприятие  «Организация подготовки граждан, выразивших желание стать приемными родителями, опекунами, попечителями, проведение тестирования для кандидатов в опекуны»","Х",1,"Х","2014-2025","Министерство труда и социальной защиты  населения Забайкальского края","Х","Х","Х","Х","Х","Х","Х","Х","Х","Х","Х","Х","Х","Х","Х","Х"]
[null,"финансирование за счет краевого бюджета","тыс. рублей","Х","Х","Х","Х","Х","Х","Х",0,0,0,0,0,0,0,0,0,0,0,0,0]
["1.3.3.3-ПМ1","Показатель  «Количество человек, прошедших подготовку»","чел.",1,"Абсолютный показатель","Х","Х","Х","Х","Х",620,670,691,692,692,692,540,545,550,550,550,550,"Х"]
["1.3.3.4.","Мероприятие  «Сопровождение семей, принявших  на воспитание детей-сирот и детей, оставшихся без попечения родителей»","Х",1,"Х","2014-2025","Министерство труда и социальной защиты  населения Забайкальского края","Х","Х","Х","Х","Х","Х","Х","Х","Х","Х","Х","Х","Х","Х","Х","Х"]
[null,"финансирование за счет краевого бюджета","тыс. рублей","Х","Х","Х","Х","всего",null,null,{"$f":"K408+K410+K413+K414","v":325648.09999999998},{"$f":"L408+L410+L413+L414","v":453022.89999999997},{"$f":"M408+M410+M413+M414","v":464012.7},{"$f":"N404+N406+N407+N408+N409+N410+N411+N412+N413+N414+N405","v":536326.5},493726.598,496442.4,501112.3,505992.4,525190,{"$f":"T404+T406+T407+T408+T409+T410+T411+T412+T413+T414+T405","v":554847.30000000005},{"$f":"U404+U406+U407+U408+U409+U410+U411+U412+U413+U414+U405","v":426510.8},{"$f":"V404+V406+V407+V408+V409+V410+V411+V412+V413+V414+V405","v":531684.9},5814516.898]
[{"$nulls":7},"0709",5200211,530,1114.9000000000001,0,0,0,0,0,0,0,0,0,0,0,1114.9000000000001]
[{"$nulls":7},"0709",5210211,530,0,0,0,0,0,0,0,0,0,0,0,0,0]
[{"$nulls":7},"1004",5201000,530,135000,0,0,0,0,0,0,0,0,0,0,0,135000]
[{"$nulls":7},"1004","17 3 03 72400",530,null,0,0,536326.5,493726.598,496442.4,501112.3,505992.4,525190,554847.30000000005,426510.8,531684.9,4571833.1980000008]
[{"$nulls":7},"1004","17 3 03 72401",530,319703.59999999998,443914.9,454950.18816000002,0,0,0,0,0,0,0,0,0,1218568.6881599999]
[{"$nulls":7},"1004",5204010,530,0,0,0,0,0,0,0,0,0,0,0,0,0]
[{"$nulls":7},"1004","17 3 03 72402",530,1559.1,2132.8000000000002,2147.5304900000001,0,0,0,0,0,0,0,0,0,5839.4304900000006]
[{"$nulls":7},"1004",5210220,530,0,0,0,0,0,0,0,0,0,0,0,0,0]
[{"$nulls":7},"1004",5210228,530,0,0,0,0,0,0,0,0,0,0,0,0,0]
[{"$nulls":7},"1004","17 3 03 72403",530,1735.9,2516.6,3011.3663099999999,0,0,0,0,0,0,0,0,0,7263.8663099999994]
[{"$nulls":7},"1004","17 3 03 72404",530,2649.5,4458.6000000000004,3903.6150400000001,0,0,0,0,0,0,0,0,0,11011.715040000001]
["1.3.3.5.","Мероприятие  «Расширение банка видеопаспортов детей-сирот и детей, оставшихся без попечения родителей, воспитывающихся в государственных учреждениях»","Х",1,"Х","2014-2025","Министерство труда и социальной защиты  населения Забайкальского края","Х","Х","Х","Х","Х","Х","Х","Х","Х","Х","Х","Х","Х","Х","Х","Х"]
[null,"финансирование за счет краевого бюджета","тыс. рублей","Х","Х","Х","Х","Х","Х","Х",0,0,0,0,0,0,0,0,0,0,0,0,0]
["1.3.3.5-ПМ1","Показатель  «Численность детей , информация о которых внесена в региональный банк данных о детях-сиротах»","чел.",1,"Абсолютный показатель","2014-2025","Х","Х","Х","Х",2409,2469,1944,1794,1570,1420,1362,1280,1200,1121,1121,1121,"Х"]
["1.3.3.6","Мероприятие  «Администрирование государственных  полномочий по организации и осуществления деятельности по опеки и попечительству над несовершеннолетними»","тыс. рублей",1,"Х","2014-2025","Министерство труда и социальной защиты  населения Забайкальского края","0709","17 3 03 79211",530,{"$f":"K419","v":47054.8},64708.4,60698.7,88709.1,89754.7,88293.8,99091.4,{"$f":"R419","v":107941.3},111831.6,126583.1,94394.8,115222.5,1094284.2000000002]
[null,"финансирование за счет краевого бюджета","тыс. рублей",null,"Х","Х","Х",null,null,null,47054.8,64708.4,60698.7,88709.1,89754.7,88293.8,99091.4,107941.3,111831.6,85335.5,86647.8,86647.8,1016714.9000000001]
["1.3.4.","Основное мероприятие  «Социальная поддержка семей с детьми»","Х",1,"Х","2014-2025","Министерство труда и социальной защиты  населения Забайкальского края","Х","Х","Х","Х","Х","Х","Х","Х","Х","Х","Х","Х","Х","Х","Х","Х"]
[null,"финансирование за счет краевого бюджета","тыс. рублей","Х","Х","Х","Х","всего",null,null,{"$f":"K426+K432+K438+K444+K450+K454+K501+K485+K479+K502+K498++K497+K496","v":922256.7},{"$f":"L426+L432+L438+L444+L450+L454+L501+L485+L479+L502+L491","v":1195417.2999999998},{"$f":"M426+M432+M438+M444+M450+M454+M485+M501+M496+M498","v":1142566.5064900001},{"$f":"N426+N432+N438+N444+N450+N454+N485+N501+N496+N498","v":1378678.7799999998},{"$f":"O426+O432+O438+O444+O450+O454+O485+O501+O496+O498","v":1041110.639},{"$f":"P426+P432+P438+P444+P450+P454+P485+P501+P496+P498+P502","v":619530.70000000007},{"$f":"Q426+Q432+Q438+Q444+Q450+Q454+Q485+Q501+Q496+Q498+Q502+Q512+Q514+Q513","v":839006.47200000007},{"$f":"R426+R432+R438+R444+R450+R454+R485+R501+R496+R498+R502+R512+R514+R513","v":878471.55599999998},{"$f":"S426+S432+S438+S444+S450+S454+S485+S501+S496+S498+S502+S512+S514+S513+S520+S518+S522","v":1498255.162},{"$f":"T426+T432+T438+T444+T450+T454+T485+T501+T496+T498+T502+T512+T514+T513+T520+T518+T522","v":1960825.5},{"$f":"U426+U432+U438+U444+U450+U454+U485+U501+U496+U498+U502+U512+U514+U513+U520+U518+U522","v":2010718.1},{"$f":"V426+V432+V438+V444+V450+V454+V485+V501+V496+V498+V502+V512+V514+V513+V520+V518+V522","v":2642194.5},16129031.91549]
[null,"финансирование за счет федерального бюджета","тыс. рублей","Х","Х","Х","Х","всего",null,null,{"$f":"K492+K494+K498+K458+K464+K475+K495","v":976135.29999999993},{"$f":"L492+L494+L458+L464+L475+L495","v":943929.6},{"$f":"M492+M494+M458+M464+M475+M495+M493","v":1053559.7000000002},{"$f":"N492+N494+N458+N464+N475+N495+N493","v":909811.02},{"$f":"O492+O494+O458+O464+O475+O495+O493+O504","v":1094191.9000000001},{"$f":"P492+P494+P458+P464+P475+P495+P493+P504","v":903767.89999999991},{"$f":"Q492+Q494+Q458+Q464+Q475+Q495+Q493+Q504+Q511+Q510","v":4150138.5999999996},5338919.5,4685655.8,2400002.7000000002,0,0,22456112.02]
["1.3.4.- ПОМ1","Показатель  «Удельный вес семей с детьми, получивших меры социальной поддержки, в общей численности семей с детьми, проживающих на территории Забайкальского края»","%",1,"СД под / СД *100, где:\nСД под - число семей с детьми, получивших меры социальной поддержки;\nСД - общая численность семей с детьми, проживающих на территории края.","2014-2025","Министерство труда и социальной защиты  населения Забайкальского края","Х","Х","Х",31.5,33.6,33.9,33.9,33.9,33.9,33.9,30.7,31,31,31,31,"Х"]
["1.3.4.1.","Мероприятие  «Совершенствование нормативной правовой базы по выплате государственных пособий семьям с детьми, предоставлению дополнительных мер государственной поддержки семьям, имеющим детей»","тыс. рублей",1,"Х","2014-2024","Х","Х","Х","Х","Х","Х","Х","Х","Х","Х","Х","Х","Х","Х","Х","Х","Х"]
["1.3.4.1.1","Мероприятие «Предоставление  пособия на ребенка»","Х",1,"Х","2014-2025","Министерство труда и социальной защиты  населения Забайкальского края","Х","Х","Х","Х","Х","Х","Х","Х","Х","Х","Х","Х","Х","Х","Х","Х"]
[null,"финансирование за счет краевого бюджета","тыс. рублей","Х","Х","Х","Х","Всего",null,null,{"$f":"K427+K429","v":277681.40000000002},{"$f":"L427+L429","v":292243.80000000005},{"$f":"M427+M429","v":311454.42000000004},{"$f":"N427+N429","v":377753.8},{"$f":"O427+O429","v":320653.60500000004},{"$f":"P427+P429+P428+P430","v":340181.3},372898.64999999997,348685.429,157020.5,62944.4,48256,{"$f":"V427+V429+V428+V430","v":63249.4},2973022.7039999999]
[{"$nulls":7},1003,"17 3 04 82511",244,1621.4,1687.9,1628.33,1812.3,1594.4,0,0,0,0,0,0,0,8344.33]
[{"$nulls":7},1004,"17 3 04 82511",244,0,0,0,0,0,1172.5,1318.05,924.22900000000004,360,161.30000000000001,123.7,162.1,4221.8790000000008]
[{"$nulls":7},1003,"17 3 04 82511",313,276060,290555.90000000002,309826.09000000003,375941.5,319059.20500000002,0,0,0,0,0,0,0,1571442.6950000001]
[{"$nulls":7},1004,"17 3 04 82511",313,0,0,0,0,0,339008.8,371580.6,347761.2,156660.5,62783.1,48132.3,63087.3,1389013.8]
["1.3.4.1.2","Мероприятие  «Предоставление ежемесячной денежной выплаты многодетным семьям»","Х",1,"Х","2014-2025","Министерство труда и социальной защиты  населения Забайкальского края","Х","Х","Х","Х","Х","Х","Х","Х","Х","Х","Х","Х","Х","Х","Х","Х"]
[null,"финансирование за счет краевого бюджета","тыс. рублей","Х","Х","Х","Х","Всего",null,null,{"$f":"K433+K435","v":85929.900000000009},{"$f":"L433+L435","v":95876.599999999991},{"$f":"M433+M435","v":98296.5},{"$f":"N433+N435","v":137519.6},{"$f":"O433+O435","v":122206.39999999999},{"$f":"P433+P435+P434+P436","v":128422},129783.70000000001,127975.11900000001,110031,132794.20000000001,101805.90000000001,{"$f":"V433+V435+V434+V436","v":132712.5},1403353.4189999998]
[{"$nulls":7},1003,"17 3 04 82512",244,1314.6,1462.7,1469.7,1877,1781.2,0,0,0,0,0,0,0,7905.2]
[{"$nulls":7},1004,"17 3 04 82512",244,0,0,0,0,0,1800,1904.6,1823.6189999999999,1221,1658.2,1271.3,1657.2,11335.919]
[{"$nulls":7},1003,"17 3 04 82512",313,84615.3,94413.9,96826.8,135642.6,120425.2,0,0,0,0,0,0,0,531923.79999999993]
[{"$nulls":7},1004,"17 3 04 82512",313,0,0,0,0,0,126622,127879.1,126151.5,108810,131136,100534.6,131055.3,852188.5]
["1.3.4.1.3","Мероприятие  «Ежемесячная компенсация расходов на оплату жилого помещения и коммунальных услуг  многодетным семьям»","Х",1,"Х","2014-2025","Министерство труда и социальной защиты  населения Забайкальского края","Х","Х","Х","Х","Х","Х","Х","Х","Х","Х","Х","Х","Х","Х","Х","Х"]
[null,"финансирование за счет краевого бюджета","тыс. рублей","Х","Х","Х","Х","Всего",null,null,{"$f":"K439+K441","v":72774.899999999994},{"$f":"L439+L441","v":83928.1},{"$f":"M439+M441","v":72934.55},{"$f":"N439+N441","v":126588.3},{"$f":"O439+O441","v":86609.131999999998},{"$f":"P439+P441+P440+P442","v":85957},86039.349999999991,73401.222000000009,{"$f":"S439+S441+S440+S442","v":61737},74213.599999999991,56895.4,{"$f":"V439+V441+V440+V442","v":74573.2},{"$f":"SUM(K438:S438)+T438+U438+V438","v":955651.75399999996}]
[{"$nulls":7},1003,"17 3 04 84514",244,1074.9000000000001,1259.8,1105.0999999999999,1596.1,1380,0,0,0,0,0,0,0,6415.9]
[{"$nulls":7},1004,"17 3 04 84514",244,0,0,0,0,0,1175,1232.6500000000001,1097.3,685.6,930.4,713.3,934.9,6769.15]
[{"$nulls":7},1003,"17 3 04 84514",313,71700,82668.3,71829.45,124992.2,85229.131999999998,0,0,0,0,0,0,0,436419.08199999999]
[{"$nulls":7},1004,"17 3 04 84514",313,0,0,0,0,0,84782,84806.7,72303.922000000006,61051.4,73283.199999999997,56182.1,73638.3,506047.62200000003]
["1.3.4.1.4","Мероприятие  «Возмещение части стоимости проезда на междугородном транспорте детей к месту санаторно-курортного лечения или оздоровления»",null,1,null,"2014-2025","Министерство труда и социальной защиты  населения Забайкальского края","Х","Х","Х","Х","Х","Х","Х","Х","Х","Х","Х","Х","Х","Х","Х","Х"]
[null,"финансирование за счет краевого бюджета","тыс. рублей","Х","Х","Х","Х","Всего",null,null,{"$f":"K445+K447","v":142.29999999999998},{"$f":"L445+L447","v":146.69999999999999},{"$f":"M445+M447","v":8.7000000000000011},{"$f":"N445+N447","v":128.69999999999999},{"$f":"O445+O447","v":128.1},{"$f":"P445+P447+P446+P448","v":113.3},31.228999999999999,119.63,74,119.9,91.899999999999991,{"$f":"V445+V447+V446+V448","v":120.5},1224.9590000000001]
[{"$nulls":7},1003,"17 3 04 82601",244,0.7,1.1000000000000001,0.55000000000000004,1,0.6,0,0,0,0,0,0,0,3.95]
[{"$nulls":7},1004,"17 3 04 82601",244,0,0,0,0,0,1.1000000000000001,0.249,0.13,0.1,0.4,0.3,0.4,2.6789999999999998]
[{"$nulls":7},1003,"17 3 04 82601",313,141.6,145.6,8.15,127.7,127.5,0,0,0,0,0,0,0,550.54999999999995]
[{"$nulls":7},1004,"17 3 04 82601",313,0,0,0,0,0,112.2,30.98,119.5,73.900000000000006,119.5,91.6,120.1,667.78000000000009]
["1.3.4.2.","Мероприятие  «Организация предоставления материнского (семейного) капитала»","Х",1,"Х","2014-2025","Министерство труда и социальной защиты  населения Забайкальского края","Х","Х","Х","Х","Х","Х","Х","Х","Х","Х","Х","Х","Х","Х","Х","Х"]
[null,"финансирование за счет краевого бюджета","тыс. рублей","Х","Х","Х","Х",1003,"17 3 04 82513","Х",{"$f":"K451+K452","v":174668.5},164680.5,149835.16464,240415.5,73922.301999999996,0,0,0,0,0,0,{"$f":"V451+V452","v":0},803521.96664]
[{"$nulls":7},1003,"17 3 04 82513",244,2566.6,2574.1,2141.4899999999998,3668.1,635.29999999999995,0,0,0,0,0,0,0,11585.589999999998]
[{"$nulls":7},1003,"17 3 04 82513",313,172101.9,162106.4,147693.67464000001,236747.4,73287.001999999993,0,0,0,0,0,0,0,791936.37664000003]
["1.3.4.3.","Мероприятие  «Предоставление нуждающимся в поддержке семьям ежемесячной денежной выплаты, назначаемой в случае рождения после 31 декабря 2012 года третьего ребенка или последующих детей до достижения ребенком возраста трех лет»","Х",1,"Х","2014-2025","Министерство труда и социальной защиты  населения Забайкальского края","Х","Х","Х","Х","Х","Х","Х","Х","Х","Х","Х","Х","Х","Х","Х","Х"]
[null,"финансирование за счет краевого бюджета","тыс. рублей","Х","Х","Х","Х",1003,"17 3 04 82515","Х",{"$f":"K455+K456","v":295928.7},516855.6,462014.87185000005,453801,389105.80000000005,0,0,0,{"$f":"S455+S456","v":0},{"$f":"T455+T456","v":0},{"$f":"U455+U456","v":0},{"$f":"V455+V456","v":0},2117705.9718500003]
[{"$nulls":7},1003,"17 3 04 82515",244,4455.3999999999996,7877.8,6859.59,6038.3,5855.4,0,0,0,0,0,0,0,31086.489999999998]
[{"$nulls":7},1003,"17 3 04 82515",313,291473.3,508977.8,455155.28185000003,447762.7,383250.4,0,0,0,0,0,0,0,2086619.4818500001]
["1.3.4.4.","Мероприятие  «Единовременное пособие беременной жене военнослужащего, проходящего военную службу по призыву, а также ежемесячное пособие на ребенка военнослужащего, проходящего военную службу по призыву»","Х",1,"Х","2014-2025","Министерство труда и социальной защиты  населения Забайкальского края","Х","Х","Х","Х","Х","Х","Х","Х","Х","Х","Х","Х","Х","Х","Х","Х"]
[null,"финансирование за счет федерального  бюджета","Х","Х","Х","Х","Х","всего",null,null,{"$f":"K459+K461","v":37543.1},{"$f":"L459+L461","v":24812.199999999997},{"$f":"M459+M461","v":23751.7},{"$f":"N459+N461","v":24186.35},{"$f":"O459+O461","v":28130.399999999998},{"$f":"P459+P461+P460+P462","v":17106.599999999999},14405.8,16838.2,0,0,0,{"$f":"V459+V461+V460+V462","v":0},186774.35]
[{"$nulls":7},1003,"17 3 04 52700",244,178,77.599999999999994,59.15,53.55,53.8,0,0,0,0,0,0,0,422.1]
[{"$nulls":7},1004,"17 3 04 52700",244,0,0,0,0,0,14,0,219.3,0,0,{"$f":"T460","v":0},{"$f":"U460","v":0},233.3]
[{"$nulls":7},1003,"17 3 04 52700",313,37365.1,24734.6,23692.55,24132.799999999999,28076.6,0,0,0,0,0,0,0,138001.65]
[{"$nulls":7},1004,"17 3 04 52700",313,0,0,0,0,0,17092.599999999999,14405.8,16618.900000000001,0,0,{"$f":"T462","v":0},{"$f":"U462","v":0},48117.3]
["1.3.4.5.","Мероприятие  «Выплата государственных пособий лицам, не подлежащим обязательному социальному страхованию на случай временной нетрудоспособности и в связи с материнством, и лицам, уволенным в связи с ликвидацией организаций (прекращением деятельности, полномочий физическими лицами)»","Х",1,"Х","2014-2025","Министерство труда и социальной защиты  населения Забайкальского края","Х","Х","Х","Х","Х","Х","Х","Х","Х","Х","Х","Х","Х","Х","Х","Х"]
[null,"финансирование за счет федерального  бюджета","Х","Х","Х","Х","Х","Всего",null,null,{"$f":"K465+K468","v":846794.6},{"$f":"L465+L468","v":899972.6},{"$f":"M465+M468","v":943746.8},{"$f":"N465+N468","v":868929.67},{"$f":"O465+O468","v":852663.1},{"$f":"P465+P468+P467+P473","v":871210.1},{"$f":"Q465+Q468+Q467+Q473+Q469+Q470+Q471+Q472","v":892696.9},{"$f":"R465+R468+R467+R473+R466+R469+R470","v":995385.2},{"$f":"S465+S468+S467+S473+S466","v":0},{"$f":"T465+T468+T467+T473+T466","v":0},{"$f":"U465+U468+U467+U473+U466","v":0},{"$f":"V465+V468+V467+V473+V466","v":0},7171398.9699999997]
[{"$nulls":7},1003,"17 3 04 53800",244,4133,4163,3895,3163.5,2910,0,0,0,0,0,0,0,18264.5]
[{"$nulls":7},1004,"17 3 04 53800",242,0,0,0,0,0,0,0,1572.5,0,0,{"$f":"T466","v":0},{"$f":"U466","v":0},1572.5]
[{"$nulls":7},1004,"17 3 04 53800",244,0,0,0,0,0,2158.1,1433,2400,0,0,{"$f":"T467","v":0},{"$f":"U467","v":0},5991.1]
[{"$nulls":7},1003,"17 3 04 53800",313,842661.6,895809.6,939851.8,865766.17,849753.1,0,0,0,0,0,0,0,4393842.2699999996]
[{"$nulls":7},1004,"17 3 04 53800",111,0,0,0,0,0,0,7752.4369999999999,7163.98,0,0,0,0,14916.416999999999]
[{"$nulls":7},1004,"17 3 04 53800",119,0,0,0,0,0,0,2341.2379999999998,2163.52,0,0,0,0,4504.7579999999998]
[{"$nulls":7},1004,"17 3 04 5380F",244,0,0,0,0,0,0,50,0,0,0,0,0,50]
[{"$nulls":7},1004,"17 3 04 5380F",313,0,0,0,0,0,0,112368.9,0,0,0,0,0,112368.9]
[{"$nulls":7},1004,"17 3 04 53800",313,0,0,0,0,0,869052,768751.32499999995,982085.2,0,0,{"$f":"T473","v":0},{"$f":"U473","v":0},2619888.5249999999]
["1.3.4.6.","Мероприятие  «Выплата единовременного пособия при всех формах устройства детей, лишенных родительского попечения, в семью»","Х",1,"Х","2014-2025","Министерство труда и социальной защиты  населения Забайкальского края","Х","Х","Х","Х","Х","Х","Х","Х","Х","Х","Х","Х","Х","Х","Х","Х"]
[null,"финансирование за счет федерального  бюджета","Х","Х","Х","Х","Х",1004,"17 3 04 52600","Х",{"$f":"K476+K477","v":30878.5},19144.8,18181.3,16695,15550.300000000001,15451.2,13301.1,17141.099999999999,{"$f":"S476+S477","v":0},{"$f":"T476+T477","v":0},{"$f":"U476+U477","v":0},{"$f":"V476+V477","v":0},146343.30000000002]
[{"$nulls":7},1004,"17 3 04 52600",244,19,26.5,24,24.5,17.100000000000001,0.5,6,16.100000000000001,null,0,{"$f":"T476","v":0},{"$f":"U476","v":0},133.69999999999999]
[{"$nulls":7},1004,"17 3 04 52600",313,30859.5,19118.3,18157.3,16670.5,15533.2,15450.7,13295.1,17125,null,0,{"$f":"T477","v":0},{"$f":"U477","v":0},146209.60000000001]
["1.3.4.7.","Мероприятие  «Внедрение в Забайкальском крае социальных контрактов при оказании государственной социальной помощи малоимущим гражданам для повышения доходов нуждающихся семей с детьми»","тыс. рублей",1,"Х","2014-2025","Министерство труда и социальной защиты  населения Забайкальского края","Х","Х","Х","Х","Х","Х","Х","Х","Х","Х","Х","Х","Х","Х","Х","Х"]
[null,"финансирование за счет краевого бюджета","тыс. рублей","Х","Х","Х","Х","Х","Х","Х",0,0,0,0,0,0,0,0,0,0,0,0,0]
["1.3.4.7.-ПМ1","Показатель  «Доля социальных контрактов, заключенных с семьями, имеющими детей, в общем количестве социальных контрактов»","%",1,"Дскс/Дскв*100, где: Дскс - число социальных контрактов, заключенных с семьями имеющими детей; Дскв - всего  заключенных социальных контрактов.","Х","Министерство труда и социальной защиты  населения Забайкальского края","Х","Х","Х",15,16,94.6,94.6,94.6,94.6,94.6,94.6,94.6,"Х","Х","Х","Х"]
["1.3.4.7.-ПМ2","Показатель  «Доля граждан, охваченных государственной социальной помощью на основании социального контракта, в общей численности малоимущих граждан»","%",1,"Чск/Чм*100, где:   Чск - число граждан, охваченных государственной социальной помощью на основании социального контракта; Чм - численность малоимущих граждан","Х","Министерство труда и социальной защиты  населения Забайкальского края","Х","Х","Х","Х","Х","Х","Х","Х","Х","Х","Х","Х",6,6.5,7,"Х"]
["1.3.4.7.-ПМ3","Показатель  «Доля граждан, охваченных государственной социальной помощью на основании социального контракта, среднедушевой доход которых (среднедушевой доход\nсемьи которых) превысил величину прожиточного минимума, установленную в субъекте Российской Федерации, по окончании срока действия социального контракта в общей численности граждан, охваченных государственной социальной\nпомощью на основании социального контракта»","%",1,"Ч/Чск*100, где:   Ч - число граждан, охваченных государственной социальной помощью на основании социального контракта, среднедушевой доход которых (среднедушевой доход семьи которых) превысил величину прожиточного минимума, установленную в субъекте РФ, по окончании срока действия социального контракта, Чск - число граждан, охваченных государственной социальной помощью на основании социального контракта","Х","Министерство труда и социальной защиты  населения Забайкальского края","Х","Х","Х","Х","Х","Х","Х","Х","Х","Х","Х","Х",30.5,34.799999999999997,36,"Х"]
["1.3.4.7.-ПМ4","Показатель  «Доля граждан, охваченных государственной социальной помощью на основании социального контракта, среднедушевой доход которых (среднедушевой доход семьи которых) увеличился по окончании срока действия социального контракта в сравнении со среднедушевым доходом этих граждан (семьи) до заключения социального контракта, в общей численности граждан, охваченных государственной социальной помощью на основании социального контракта»","%",1,"Чд/Чск*100, где:   Чд - число граждан, охваченных государственной социальной помощью  на основании социального контракта, среднедушевой доход которых (семьи которых) увеличился по окончании срока действия социального контракта в сравнении со среднедушевым доходом этих граждан (семьи) до заключения социального контракта; Чск - число граждан, охваченных государственной социальной помощью на основании социального контракта","Х","Министерство труда и социальной защиты  населения Забайкальского края","Х","Х","Х","Х","Х","Х","Х","Х","Х","Х","Х","Х",73.900000000000006,79,80.599999999999994,"Х"]
["1.3.4.8.","Мероприятие  «Оказание адресной помощи семьям с детьми, оказавшимся в трудной жизненной ситуации в связи с проведением социально значимых мероприятий (День семьи, День защиты детей, День знаний, День Матери и т.п.)»","тыс. рублей",1,null,"2014-2025","Министерство труда и социальной защиты  населения Забайкальского края","Х","Х","Х","Х","Х","Х","Х","Х","Х","Х","Х","Х","Х","Х","Х","Х"]
[null,"финансирование за счет краевого бюджета","Х","Х","Х","Х","Х",1003,"17 3 04 02514","Х",{"$f":"K486+K488+K487","v":5448.3},{"$f":"L486+L488+L487","v":7617},4917,0,0,{"$f":"P486+P488+P487+P489","v":14350},0,0,{"$f":"S486+S488+S487","v":0},{"$f":"T486+T488+T487","v":0},{"$f":"U486+U488+U487","v":0},{"$f":"V486+V488+V487","v":0},32332.3]
[{"$nulls":7},1003,"17 3 04 02514",244,31.3,84,56,0,0,0,0,0,0,0,0,0,171.3]
[{"$nulls":7},1003,"17 3 04 02514",360,500,500,0,0,0,0,0,0,0,0,0,0,1000]
[{"$nulls":7},1003,"17 3 04 02514",321,4917,7033,4861,0,0,0,0,0,0,0,0,0,16811]
[{"$nulls":7},1004,"17 3 04 02635",633,0,0,0,0,0,14350,0,0,0,0,0,0,14350]
["1.3.4.9.","Мероприятие  «Организация отдыха и оздоровления детей, находящихся в трудной жизненной ситуации»","тыс. рублей",1,"Х","2014-2025","Министерство труда и социальной защиты  населения Забайкальского края","Х","Х","Х","Х","Х","Х","Х","Х","Х","Х","Х","Х","Х","Х","Х","Х"]
[null,null,"тыс. рублей","Х","Х","Х","Х","Всего",null,null,{"$f":"K492+K494+K498+K496+K497","v":22059},{"$f":"L492+L494+L495+L496+L498","v":34069},{"$f":"M492+M494+M498+M495+M496","v":63436.999999999993},{"$f":"N492+N494+N498+N496","v":37069.880000000005},37485.300000000003,43589.9,24905.832999999999,48148.2,51032.800000000003,51032.800000000003,39243.699999999997,{"$f":"V492+V494+V498+V496","v":48917.3},500990.71299999999]
[null,"финансирование за счет федерального бюджета",{"$nulls":5},"0707","17 3 04 02432",323,4422.6000000000004,0,0,0,0,0,0,0,0,0,0,0,4422.6000000000004]
[{"$nulls":7},"0707","17 3 04 54570",323,0,0,41511.9,0,0,0,0,0,0,0,0,0,41511.9]
[{"$nulls":7},"0707","17 3 04 54570",612,7953.7,0,6427.2,0,0,0,0,0,0,0,0,0,14380.9]
[{"$nulls":7},"0707","17 3 04 54570",622,42741.7,0,19940.8,0,0,0,0,0,0,0,0,0,62682.5]
[null,"финансирование за счет краевого бюджета","тыс. рублей","Х","Х","Х",null,"0707","17 3 04 02432",612,3681.6,8863.7000000000007,9325.18,8715.18,8520.6,9255.1,5887.53,12066.2,13869.82,12066,9278.6,11565.8,113095.31000000001]
[{"$nulls":6},"Х","0707","17 3 04 02432",244,200,0,0,0,0,0,0,0,0,0,0,0,200]
[{"$nulls":7},"0707","17 3 04 02432",622,5801.1,25205.3,27743.82,28354.7,28964.7,34334.800000000003,19018.303,36082,37162.980000000003,38966.800000000003,29965.1,37351.5,348951.103]
["1.3.4.9-ПМ1","Показатель  «Количество оздоровленных детей»","чел.",1,"Абсолютный показатель","Х","Х","Х","Х","Х",934,3970,5757,2672,3210,3210,3210,2656,2700,2700,2700,2700,"Х"]
["1.3.4.10.","Мероприятие  «Предоставление жилых помещений из жилищного фонда Забайкальского края по договорам социального найма многодетным семьям»","Х",1,"Х","Х","Министерство труда и социальной защиты  населения Забайкальского края, Департамент государственного имущества и земельных отношений Забайкальского края","Х","Х","Х","Х","Х","Х","Х","Х","Х","Х","Х","Х","Х","Х","Х","Х"]
[null,"финансирование за счет краевого бюджета","тыс. рублей","Х","Х","Х","Х",1006,"17 3 04 04410",244,0,0,6036.3,5402,11000,0,0,0,0,0,0,0,22438.3]
[{"$nulls":7},1006,"17 3 04 04410",412,0,0,0,0,0,6917.2,16158.2,0,23114.9,29150,29145.3,0,104485.6]
["1.3.4.11"," Мероприятие  «Ежемесячная выплата в связи с рождением (усыновлением) первого ребенка»","Х",1,"Х","2018-2025","Министерство труда и социальной защиты  населения Забайкальского края","Х","Х","Х","Х","Х","Х","Х","Х","Х","Х","Х","Х","Х","Х","Х","Х"]
[null,"финансирование за счет федерального бюджета","тыс. рублей","Х","Х","Х","Х","Всего",null,null,"Х","Х","Х","Х",{"$f":"O505+O507+O506","v":197848.1},{"$f":"P505+P506+P507","v":0},0,0,0,0,0,{"$f":"V505+V506+V507","v":0},197848.1]
[{"$nulls":7},1004,"17 3 04 55730",244,"Х","Х","Х","Х",603.6,0,0,0,0,0,0,0,{"$f":"SUM(K505:S505)+T505+U505+V505","v":603.6}]
[{"$nulls":7},1004,"17 3 04 55730",242,"Х","Х","Х","Х",2000,0,0,0,0,0,0,0,2000]
[{"$nulls":7},1004,"17 3 04 55730",313,"Х","Х","Х","Х",195244.5,0,0,0,0,0,0,0,195244.5]
["1.3.4.12"," Мероприятие «Предоставление ежемесячной  денежной выплаты на детей в возрасте от трех  до семи лет включительно»","Х",1,"Х","2020-2025","Министерство труда и социальной защиты  населения Забайкальского края","Х","Х","Х","Х","Х","Х","Х","Х","Х","Х","Х","Х","Х","Х","Х","Х"]
[null,"финансирование за счет федерального бюджета","тыс. рублей","Х","Х","Х","Министерство труда и социальной защиты  населения Забайкальского края","Всего",null,null,"Х","Х","Х","Х","Х","Х",{"$f":"Q511+Q512+Q514+Q510+Q513","v":3438924.3099999996},4589696.9560000002,5152518.2620000001,2639252.6,0,0,15820392.128]
[{"$nulls":7},1004,"17 3 04 R302F",313,"Х","Х","Х","Х","Х","Х",1095841.8,477269.7,649443.19999999995,0,0,0,2222554.7000000002]
[{"$nulls":7},1004,"17 3 04 R3020",313,"Х","Х","Х","Х","Х","Х",2133893,3832285.3,4036212.6,2400002.7000000002,0,0,12402393.600000001]
[null,"финансирование за счет краевого бюджета",{"$nulls":5},1004,"17 3 04 82020",244,"Х","Х","Х","Х","Х","Х",3036.31,5064,3446,1887,0,0,13433.31]
[{"$nulls":7},1004,"17 3 04 R302F",313,"Х","Х","Х","Х","Х","Х",69947.3,30464,64230.6,0,0,0,164641.9]
[{"$nulls":7},1004,"17 3 04 R3020",313,"Х","Х","Х","Х","Х","Х",136205.9,244613.95600000001,399185.86200000002,237362.9,0,0,1017368.6180000001]
["1.3.4.12-ПМ1","Показатель «Число детей в возрасте от 3 до7 лет включительно, в отношении которых в отчетном году произведена ежемесячная выплата в целях повышения доходов семей с детьми»","чел","Х",null,"Х","Министерство труда и социальной защиты  населения Забайкальского края","Х","Х","Х","Х","Х","Х","Х","Х","Х",32000,30014,29411,14528,0,0,"Х"]
["1.3.4.12-ПМ2","Показатель «Доля детей в возрасте от 3 до7 лет включительно, в отношении которых в отчетном году произведена ежемесячная выплата, в общей численности детей этого возраста»","%","Х","Ч д/Чод*100, где Чд - численность детей от 3 до 7 лет включительно в отношении которых произведена выплата, Чод - общая численность детей от 3 до 7 лет","2020-2025","Министерство труда и социальной защиты  населения Забайкальского края","Х","Х","Х","Х","Х","Х","Х","Х","Х",35.5,0,0,22,0,0,"Х"]
["1.3.4.13","Мероприятие «Предоставление многодетным семьям денежной компенсации расходов на оплату за жилое помещение по договору найма жилого помещения частного жилищного фонда на территории Забайкальского края»","Х",1,"Х","2022-2025","Министерство труда и социальной защиты  населения Забайкальского края","Х","Х","Х","Х","Х","Х","Х","Х","Х","Х","Х","Х","Х","Х","Х","Х"]
[null,"финансирование за счет краевого бюджета","тыс.рублей","Х","Х","Х","Х",1004,"17 3 04 84516",313,"Х","Х","Х","Х","Х","Х","Х","Х",0,500,389.7,502.4,1392.1]
["1.3.4.14","Мероприятие «Субвенции бюджету Фонда пенсионного и социального страхования Российской Федерации на осуществление ежемесячной денежной выплаты на ребенка в возрасте от восьми до семнадцати лет»","Х",1,"Х","2022-2023","Министерство труда и социальной защиты  населения Забайкальского края","Х","Х","Х","Х","Х","Х","Х","Х","Х","Х","Х","Х","Х","Х","Х","Х"]
[null,"финансирование за счет краевого бюджета","тыс.рублей","Х","Х","Х","Х",1004,"17 3 04 31440",530,"Х","Х","Х","Х","Х","Х","Х","Х",628382.5,606311,0,0,1234693.5]
[" 1.3.4.15","Мероприятие «Субвенции бюджету Фонда пенсионного и социального страхования Российской Федерации на осуществление выплаты ежемесячного пособия в связи с рождением и воспитанием ребенка»","Х",1,"Х","2023-2025","Министерство труда и социальной защиты  населения Забайкальского края","Х","Х","Х","Х","Х","Х","Х","Х","Х","Х","Х","Х","Х","Х","Х","Х"]
[null,"финансирование за счет краевого бюджета","тыс.рублей","Х","Х","Х","Х",1004,"17 3 04 31460",530,"Х","Х","Х","Х","Х","Х","Х","Х",0,764509.7,1734890.2,2322119.2000000002,4821519.0999999996]
["1.3.4.16","Мероприятие «Реализация Комплекса мер Забайкальского края «Развитие в Забайкальском крае на 2022-2023 годы социальной поддержки семей с низким уровнем дохода»","Х",1,"Х","2022-2023","Министерство труда и социальной защиты  населения Забайкальского края, Министерство образования и науки Забайкальского края","Х","Х","Х","Х","Х","Х","Х","Х","Х","Х","Х",0,0,"Х","Х"," Х "]
[null,"финансирование за счет внебюджетных источников","тыс.рублей","Х","Х","Х","Х","Х","Х","Х","Х","Х","Х","Х","Х","Х","Х","Х",0,0,"Х","Х"," Х "]
["1.3.5.","Основное мероприятие  «Предоставление жилых помещений по договорам социального найма и капитальный ремонт жилых помещений, принадлежащих на праве собственности детям-сиротам и детям, оставшимся без попечения родителей, а также лицам из числа детей-сирот и детей, оставшимся без попечения родителей»","тыс. рублей",1,"Х","2016-2025","Министерство труда и социальной защиты  населения Забайкальского края","Всего",null,null,"Х","Х",{"$f":"M527+M530","v":25263.3},{"$f":"N527+N530","v":0},24562.319,26206.800000000003,36439.355000000003,{"$f":"R527+R530","v":29991.7},{"$f":"S527+S530","v":18006.899999999998},{"$f":"T527+T530","v":6706.3},{"$f":"U527+U530","v":3312},{"$f":"V527+V530","v":5302.5},175791.174]
[null,"финансирование за счет краевого бюджета","тыс. рублей",1,"Х","Х","Х","Х",null,null,"Х","Х","Х","Х","Х","Х","Х","Х","Х","Х","Х","Х","Х"]
["1.3.5.1","Мероприятие  «Приобретение (строительство) жилых помещений в целях исполнения вступивших в законную силу судебных постановлений о предоставлении жилых помещений по договорам социального найма детям-сиротам и детям, оставшимся без попечения родителей, лицам из числа детей-сирот и детей, оставшимся без попечения родителей»","тыс. рублей","Х","Х","Х","Министерство труда и социальной защиты  населения Забайкальского края","Всего",null,null,0,0,{"$f":"M528+M529","v":25263.3},0,24546.319,24858.9,36403.355000000003,29723.3,{"$f":"S528+S529","v":17838.3},{"$f":"T528+T529","v":6390},3312,5302.5,173637.97399999999]
[null,"финансирование за счет краевого бюджета",null,"Х","Х","Х","Х",1004,"17 3 05 74580",530,0,0,25250.3,0,24546.319,24858.9,36403.355000000003,29723.3,17838.3,6390,3312,5302.5,173624.97399999999]
[null,null,null,"Х","Х","Х","Х",1004,"17 3 05 79580",530,0,0,13,0,0,0,0,0,0,0,0,0,13]
["1.3.5.2","Мероприятие  «Обеспечение проведения капитального ремонта жилых помещений, нуждающихся в капитальном ремонте и принадлежащих на праве собственности детям-сиротам и детям, оставшимся без попечения родителей, а также лицам из числа детей-сирот и детей, оставшимся без попечения родителей»","тыс. рублей",1,"Х","Х","Министерство труда и социальной защиты  населения Забайкальского края","Всего",null,null,0,0,{"$f":"M531+M532","v":0},0,16,1347.9,36,268.39999999999998,{"$f":"S531+S532","v":168.6},{"$f":"T531+T532","v":316.3},{"$f":"U531+U532","v":0},{"$f":"V531+V532","v":0},2153.2000000000003]
[null,"финансирование за счет краевого бюджета",null,"Х","Х","Х","Х",1004,"17 3 05 74581",530,0,0,0,0,0,1337.9,0,261.39999999999998,157.1,316.3,0,0,2072.7000000000003]
[null,null,null,"Х","Х","Х","Х",1004,"17 3 05 79581",530,0,0,0,0,16,10,36,7,11.5,0,0,0,80.5]
["1.3.6.","Основное мероприятие «Региональный проект  «Финансовая поддержка семей при рождении детей»","Х",1,"Х","Х","Министерство труда и социальной защиты  населения Забайкальского края","Х","Х","Х","Х","Х","Х","Х","Х","Х","Х","Х","Х","Х","Х","Х","Х"]
[null,"финансирование за счет краевого бюджета","тыс. рублей","Х","Х","Х","Х","Х","Х","Х","Х","Х","Х","Х",0,{"$f":"P549+P553+P562","v":385162.1},{"$f":"Q549+Q553+Q562+Q563","v":364618.07},{"$f":"R549+R553+R562+R563+R550","v":238330.05000000002},{"$f":"S549+S553+S562+S563+S550","v":172060.9},{"$f":"T549+T553+T562+T563+T550","v":165087.79999999999},{"$f":"U549+U553+U562+U563+U550","v":110216.7},{"$f":"V549+V553+V562+V563+V550","v":58488.299999999996},1493963.92]
[null,"финансирование за счет федерального бюджета","тыс. рублей","Х","Х","Х","Х","Х","Х","Х","Х","Х","Х","Х",0,{"$f":"P538+P546+P560","v":1007674.8},{"$f":"Q538+Q546+Q560+Q561","v":1837288.9940000002},{"$f":"R538+R546+R560+R561+R547","v":3106578.9000000004},{"$f":"S538+S546+S560+S561+S547","v":3858476.3},{"$f":"T538+T546+T560+T561+T547","v":2277324.5},{"$f":"U538+U546+U560+U561+U547","v":1749657.2000000002},{"$f":"V538+V546+V560+V561+V547","v":1175206.7},15012207.393999998]
["1.3.6.ПОМ1","Показатель  «Доля семей с детьми, которые  проинформированы о возникновении прав на получение мер социальной поддержки, от обратившихся на основании заявления»","%",1,"Дсп/Дсо*100, где: Дсп - доля семей с детьми, которые  проинформированы о возникновении прав на получение мер социальной поддержки; Дсо - всего   семей с детьми, обратившихся на основании заявления","2019-2025","Министерство труда и социальной защиты  населения Забайкальского края","Х","Х","Х","Х","Х","Х","Х","Х",0,0,100,100,100,100,100,"Х"]
["1.3.6.1"," Мероприятие  «Ежемесячная выплата в связи с рождением (усыновлением) первого ребенка»","Х",1,"Х","Х","Министерство труда и социальной защиты  населения Забайкальского края","Х","Х","Х","Х","Х","Х","Х","Х","Х","Х","Х","Х","Х","Х","Х","Х"]
[null,"финансирование за счет федерального бюджета","тыс. рублей","Х","Х","Х","Х","всего",null,null,"Х","Х","Х","Х","Х",{"$f":"P541+P542+P543+P539+P540","v":547211.10000000009},1142455.6940000001,1521771.7,1676299.2,0,0,{"$f":"V541+V542+V543+V539+V540","v":0},4887737.6940000001]
[{"$nulls":7},1004,"17 3 Р1 55730",111,"Х","Х","Х","Х","Х",1430.8,7930.1090000000004,13118.3,0,0,0,0,22479.208999999999]
[{"$nulls":7},1004,"17 3 Р1 55730",119,"Х","Х","Х","Х","Х",432.1,2394.8910000000001,3961.7,0,0,0,0,6788.6909999999998]
[{"$nulls":7},1004,"17 3 Р1 55730",244,"Х","Х","Х","Х","Х",1465.5,1581.88,850,4226.8,0,0,0,8124.18]
[{"$nulls":7},1004,"17 3 Р1 55730",242,"Х","Х","Х","Х","Х",3132.4,3061.5210000000002,4559.2,19537.7,0,0,0,30290.821]
[{"$nulls":7},1004,"17 3 Р1 55730",313,"Х","Х","Х","Х","Х",540750.30000000005,1127487.2930000001,1499282.5,1652534.7,0,0,0,4820054.7930000005]
["1.3.6.1 ПМ","Показатель  «Количество семей, получивших ежемесячную  денежную выплату в связи с рождением (усыновлением) первого ребенка»","семей",1,"Абсолютный показатель","2019-2025","Министерство труда и социальной защиты  населения Забайкальского края","Х","Х","Х","Х","Х","Х","Х","Х",2371,2219,12228,12077,0,0,0,"Х"]
["1.3.6.2."," Мероприятие «Осуществление ежемесячной денежной выплаты, назначаемой в случае рождения третьего ребенка или последующих детей до достижения ребенком возраста  трех лет, предусмотренной пунктом 2 Указа Президента Российской Федерации от 7 мая 2012 года № 606  «О мерах реализации демографической политики Российской Федерации»","тыс.рублей",1,"Х","2019-2025","Министерство труда и социальной защиты  населения Забайкальского края","всего",null,null,0,0,0,0,0,{"$f":"P546+P549","v":113716},{"$f":"Q546+Q549","v":434726.1},{"$f":"R546+R549+R547+R550","v":1184867.7},{"$f":"S546+S549","v":1479469.3},{"$f":"T546+T549","v":1660565.5},{"$f":"U546+U549","v":1043131.8},{"$f":"V546+V549","v":375715.8},6292192.1999999993]
[null,"финансирование за счет федерального бюджета","тыс.рублей","Х","Х","Х","Х",1004,"17 3 Р1 50840",313,"Х","Х","Х","Х","Х",106893,408642.5,714990.4,1346317.1,1511114.6,949249.9,334387.09999999998,5371594.5999999996]
[null,null,null,"Х","Х","Х","Х",1004,"17 3 Р1 5084F",313,"Х","Х","Х","Х","Х",0,0,366478.1,278373.09999999998,0,0,0,644851.19999999995]
[null,"финансирование за счет краевого бюджета",null,"Х","Х","Х","Х",1004,"17 3 Р1 50840",244,"Х","Х","Х","Х","Х",0,0,0,0,0,0,0,0]
[null,null,null,"Х","Х","Х","Х",1004,"17 3 Р1 50840",313,"Х","Х","Х","Х","Х",6823,26083.599999999999,80007,133152.20000000001,149450.9,93881.9,41328.699999999997,530727.29999999993]
[null,null,null,"Х","Х","Х","Х",1004,"17 3 Р1 5084F",313,"Х","Х","Х","Х","Х",0,0,23392.2,27531.4,0,0,0,50923.600000000006]
["1.3.6.2 ПМ","Показатель  «Количество семей, получивших ежемесячную  денежную выплату»","семей",1,"Абсолютный показатель","Х","Х","Х","Х","Х","Х","Х","Х","Х","Х",500,530,7527,10420,7128,4268,1478,"Х"]
[null,"Мероприятие  «Предоставление нуждающимся в поддержке семьям ежемесячной денежной выплаты, назначаемой в случае рождения после 31 декабря 2012 года третьего ребенка или последующих детей до достижения ребенком возраста трех лет»","Х",1,"Х","2019-2025","Министерство труда и социальной защиты  населения Забайкальского края","Х","Х","Х","Х","Х","Х","Х","Х","Х","Х","Х","Х","Х","Х","Х","Х"]
[null,"финансирование за счет краевого бюджета","Х",1,"Х","2019-2025","Министерство труда и социальной защиты  населения Забайкальского края",1004,"17 3 Р1 82515","Х","Х","Х","Х","Х","Х",{"$f":"P554+P556+P555+P557","v":371123.3},{"$f":"Q554+Q556+Q555+Q557","v":332693.80000000005},{"$f":"R554+R556+R555+R557","v":124658.65},0,0,0,{"$f":"V554+V556+V555+V557","v":0},828475.75000000012]
[{"$nulls":7},1003,"17 3 04 82515",244,"Х","Х","Х","Х","Х",0,0,0,0,0,0,0,0]
[{"$nulls":7},1004,"17 3 Р1 82515",244,"Х","Х","Х","Х","Х",5110,4397.8999999999996,1671.75,0,0,0,0,11179.65]
[{"$nulls":7},1003,"17 3 Р1 82515",313,"Х","Х","Х","Х","Х",0,0,0,0,0,0,0,0]
[{"$nulls":7},1004,"17 3 Р1 82515",313,"Х","Х","Х","Х","Х",366013.3,328295.90000000002,122986.9,0,0,0,0,817296.1]
["1.3.6.3 ПМ","Показатель  «Количество семей , получивших ежемесячную  денежную выплату» ","семей",1,"Абсолютный показатель",null,null,"Х","Х","Х","Х","Х","Х","Х","Х",3700,3341,1849,0,0,0,0,"Х"]
["1.3.6.4","Мероприятие  «Осуществление единовременной выплаты при рождении первого ребенка, а также предоставление регионального материнского (семейного) капитала при рождении второго ребенка в субъектах Российской Федерации, входящих в состав Дальневосточного федерального округа ","Х",1,"Х","2019-2025","Министерство труда и социальной защиты  населения Забайкальского края","Х","Х","Х","Х","Х","Х","Х","Х","Х","Х","Х","Х","Х","Х","Х","Х"]
[null,"финансирование за счет федерального бюджета","Х","Х","Х","Х","Х",1004,"17 3 Р1 56400",313,"Х","Х","Х","Х","Х",353570.7,0,0,0,0,0,0,353570.7]
[{"$nulls":7},1004,"17 3 Р1 50780",313,"Х","Х","Х","Х","Х",0,286190.8,503338.7,557486.9,766209.9,800407.3,840819.6,3754453.1999999997]
[null,"финансирование за счет краевого бюджета","Х","Х","Х","Х","Х",1004,"17 3 Р1 56400",313,"Х","Х","Х","Х","Х",7215.8,0,0,0,0,0,0,7215.8]
[{"$nulls":7},1004,"17 3 Р1 50780",313,"Х","Х","Х","Х","Х",0,5840.67,10272.200000000001,11377.3,15636.9,16334.8,17159.599999999999,76621.47]
["1.3.6.4 ПМ","Показатель «Количество семей, получивших единовременную выплату при рождении первого ребенка, а также которым предоставлен региональный материнский (семейный) капитал при рождении второго ребенка в субъектах Российской Федерации, входящих в состав Дальневосточного федерального округа» ","семей",1,"Абсолютный показатель","2019-2025","Министерство труда и социальной защиты  населения Забайкальского края","Х","Х","Х","Х","Х","Х","Х","Х",0,4080,6197,5880,4223,4229,4144,"Х"]
[null,"Задача 4.  «Профилактика преступности и правонарушений несовершеннолетних, развитие системы социального сопровождения, социальной адаптации и реабилитации несовершеннолетних, находящихся в конфликте с законом»","Х","Х","Х","Х","Х","Х","Х","Х","Х","Х","Х","Х","Х","Х","Х","Х","Х","Х","Х","Х","Х"]
[" 1.4","Подпрограмма 4.  «Правильный выбор»","Х","Х","Х","2014-2015","Министерство труда и социальной защиты  населения Забайкальского края; Министерство образования и науки Забайкальского края;\nФедеральное казенное учреждение уголовно-исполнительная инспекция УФСИН России по Забайкальскому краю (далее - ФКУ УИИ УФСИН России по Забайкальскому краю);\n Управление судебного департамента в Забайкальском крае;\n федеральное государственное бюджетное образовательное учреждение высшего профессионального образования «Забайкальский государственный университет» (далее - ЗабГУ); государственные учреждения социального обслуживания (социально-реабилитационные центры, комплексные центры социального обслуживания населения) (далее - ГУСО); Ассоциация государственных учреждений социального обслуживания «Содружество» Забайкальского края","Х","Х","Х","Х","Х","Х","Х","Х","Х","Х","Х","Х","Х","Х","Х","Х"]
[null,"финансирование за счет краевого бюджета","тыс. рублей",1,"Х","2014-2015","Министерство труда и социальной защиты  населения Забайкальского края; Министерство образования и науки Забайкальского края;\nФедеральное казенное учреждение уголовно-исполнительная инспекция УФСИН России по Забайкальскому краю (далее - ФКУ УИИ УФСИН России по Забайкальскому краю);\n Управление судебного департамента в Забайкальском крае;\n федеральное государственное бюджетное образовательное учреждение высшего профессионального образования «Забайкальский государственный университет» (далее - ЗабГУ); государственные учреждения социального обслуживания (социально-реабилитационные центры, комплексные центры социального обслуживания населения) (далее - ГУСО); Ассоциация государственных учреждений социального обслуживания «Содружество» Забайкальского края","Х","Х","Х",{"$f":"K580+K603","v":19481},{"$f":"L580+L603","v":20178},"Х","Х","Х","Х","Х","Х","Х","Х","Х","Х",{"$f":"SUM(K567:S567)","v":39659}]
[null,"кроме того, финансирование из других источников:",null,"Х","Х","Х",null,"Х","Х","Х","Х","Х","Х","Х","Х","Х","Х","Х","Х","Х","Х","Х","Х"]
[null," - из Фонда ","тыс. рублей",null,null,null,"ВСЕГО","Х","Х","Х",{"$f":"K582+K605","v":8169.02},{"$f":"L582+L605","v":8064.5869999999995},"Х","Х","Х","Х","Х","Х","Х","Х","Х","Х",{"$f":"SUM(K569:L569)","v":16233.607}]
[null," - из внебюджетных источников","тыс. рублей","Х","Х","Х",null,"Х","Х","Х",{"$f":"K583","v":300},{"$f":"L583","v":400},"Х","Х","Х","Х","Х","Х","Х","Х","Х","Х",{"$f":"SUM(K570:L570)","v":700}]
["1.4-ПП1","Показатель  «Численность несовершеннолетних, состоящих на учете в подразделениях по делам несовершеннолетних органов внутренних дел»","чел.","Х","Х","Х","Х","Х","Х","Х",2200,2050,"Х","Х","Х","Х","Х","Х","Х","Х","Х","Х","Х"]
["1.4-ПП2","Показатель «Численность несовершеннолетних, состоящих на учете в КДН и ЗП»","чел.","Х","Абсолютный показатель","Х","Х","Х","Х","Х",2150,1900,"Х","Х","Х","Х","Х","Х","Х","Х","Х","Х","Х"]
["1.4-ПП3","Показатель «Удельный вес несовершеннолетних, совершивших преступления или принявших в них участие, в общей численности несовершеннолетних»","%","Х","Абсолютный показатель","Х","Х","Х","Х","Х",1.7,1.5,"Х","Х","Х","Х","Х","Х","Х","Х","Х","Х","Х"]
["1.4-ПП4","Показатель  «Удельный вес несовершеннолетних, совершивших преступления повторно,  в общей численности несовершеннолетних, совершивших преступление»","%","Х","Нпр / Н *100, где:\nНпр - количество несовершеннолетних, совершивших преступления или принявших в них участие;\nН - общая численность несовершеннолетних.","Х","Х","Х","Х","Х",15.8,13.7,"Х","Х","Х","Х","Х","Х","Х","Х","Х","Х","Х"]
["1.4-ПП5","Показатель  «Выявление аддитивных расстройств на ранних стадиях у несовершеннолетних, заключенных под стражу и осужденных к отбыванию наказания без лишения свободы»","чел.","Х","Нповт / Нпр *100, где:\nНповт - количество несовершеннолетних, совершивших преступление повторно;\nНпр - общее количество несовершеннолетних, совершивших преступление.","Х","Х","Х","Х","Х",75,100,"Х","Х","Х","Х","Х","Х","Х","Х","Х","Х","Х"]
["1.4-ПП6","Показатель  «Удельный вес безнадзорных детей в общей численности детского населения»","%","Х","Абсолютный показатель","Х","Х","Х","Х","Х",0.3,0.2,"Х","Х","Х","Х","Х","Х","Х","Х","Х","Х","Х"]
["1.4-ПП7","Показатель «Число семей, находящихся в социально опасном положении»","ед.","Х","Дбн / Д *100, где:\nДбн - число безнадзорных детей;\nД - общая численность детского населения.","Х","Х","Х","Х","Х",1050,950,"Х","Х","Х","Х","Х","Х","Х","Х","Х","Х","Х"]
["1.4-ПП8","Показатель «Число различных категорий специалистов социальных служб, работающих с несовершеннолетними, находящимися в конфликте с законом, повысивших свой профессиональный уровень»","чел.","Х","Абсолютный показатель","Х","Х","Х","Х","Х",1050,950,"Х","Х","Х","Х","Х","Х","Х","Х","Х","Х","Х"]
["1.4.1.","Основное мероприятие «Внедрение новых форм и методов сопровождения несовершеннолетних, вступивших в конфликт с законом, а также несовершеннолетних, отбывающих или отбывших наказание в местах лишения и ограничения свободы»","Х","Х","Абсолютный показатель","2014-2015","Министерство труда и социальной защиты  населения Забайкальского края","Х","Х","Х",200,250,"Х","Х","Х","Х","Х","Х","Х","Х","Х","Х","Х"]
[null,"финансирование за счет краевого бюджета","тыс. рублей",0.5,"Х","Х","Х","  1002","5089900","611",{"$f":"K586+K590+K594+K598","v":12471},{"$f":"L586+L590+L594+L598","v":11598},"Х","Х","Х","Х","Х","Х","Х","Х","Х","Х",{"$f":"SUM(K580:L580)","v":24069}]
[null,"кроме того, финансирование из других источников:","тыс. рублей","Х","Х","Х","Х","Х","Х","Х",0,0,0,0,0,0,0,0,0,0,0,0,0]
[null," - из Фонда","тыс. рублей","Х","Х","Х","Х","Х","Х","Х",{"$f":"K588+K592+K596+K600","v":4976.6000000000004},{"$f":"L588+L592+L596+L600","v":4781.5},"Х","Х","Х","Х","Х","Х","Х","Х","Х","Х",{"$f":"SUM(K582:L582)","v":9758.1}]
[null," - из внебюджетных источников","тыс. рублей","Х","Х","Х","Х","Х","Х","Х",300,400,"Х","Х","Х","Х","Х","Х","Х","Х","Х","Х",{"$f":"SUM(K583:L583)","v":700}]
["1.4.1-ПОМ1","Показатель  «Степень охвата муниципальных районов, муниципальных и городских округов Забайкальского края деятельностью организаций, занимающихся сопровождением несовершеннолетних, вступивших в конфликт с законом, а также несовершеннолетних, отбывающих или отбывших наказание в местах лишения и ограничения свободы»","%","Х","Х","Х","Х","Х","Х","Х",100,100,"Х","Х","Х","Х","Х","Х","Х","Х","Х","Х","Х"]
["1.4.1.1.","Мероприятие  «Создание на базе учреждения социального обслуживания отделения социального сопровождения несовершеннолетних, вступивших в конфликт с законом, а также несовершеннолетних, отбывших наказание в местах лишения и ограничения свободы»","Х",null,"МРГОс / МРГО * 100, где:\nМРГОс - количество муниципальных районов, муниципальных и городских округов, в которых действуют организации, занимающиеся сопровождением несовершеннолетних;\nМРГО - общее количество муниципальных районов и городских округов, в которых требуется проведение такой работы.","2014-2015","Министерство труда и социальной защиты  населения Забайкальского края, Чернышевский СРЦ «Дружба», ФКУ УИИ УФСИН России по Забайкальскому краю","Х","Х","Х","Х","Х","Х","Х","Х","Х","Х","Х","Х","Х","Х","Х","Х"]
[null,"финансирование за счет краевого бюджета","тыс. рублей","Х","Х","Х","Х","  1002","5089900","611",2000,2000,"Х","Х","Х","Х","Х","Х","Х","Х","Х","Х",{"$f":"SUM(K586:L586)","v":4000}]
[null,"кроме того, финансирование из других источников:","тыс. рублей","Х","Х","Х","Х",0,0,0,0,0,0,0,0,0,0,0,0,0,0,0,0]
[null," - из Фонда","тыс. рублей","Х","Х","Х","Х","Х","Х","Х",650,631.5,"Х","Х","Х","Х","Х","Х","Х","Х","Х","Х",{"$f":"SUM(K588:L588)","v":1281.5}]
["1.4.1.2.","Мероприятие «Создание кабинетов «Правосудие в защиту детей»","Х","Х","Х","2014-2015","Министерство труда и социальной защиты  населения Забайкальского края, Петровск-Забайкальский КЦСОН «Ветеран», Нерчинский СРЦ «Гарант», Красночикойский КЦСОН «Черемушки», Улетовский СРЦ «Кедр», Сретенский КЦСОН «Березка», Шерловогорский РЦ «Топаз»","Х","Х","Х","Х","Х","Х","Х","Х","Х","Х","Х","Х","Х","Х","Х","Х"]
[null,"финансирование за счет краевого бюджета","тыс. рублей","Х","Х","Х","Х","1002","5089900","611",1000,1000,"Х","Х","Х","Х","Х","Х","Х","Х","Х","Х",2000]
[null,"кроме того, финансирование из других источников:","тыс. рублей","Х","Х","Х","Х",0,0,0,0,0,0,0,0,0,0,0,0,0,0,0,0]
[null," - из Фонда","тыс. рублей","Х","Х","Х","Х","Х","Х","Х",150,150,"Х","Х","Х","Х","Х","Х","Х","Х","Х","Х",300]
["1.4.1.3.","Мероприятие  «Внедрение инновационных оздоровительных и физкультурно-спортивных технологий в работу учреждений социального обслуживания как средство реализации методов по формированию установки на здоровый образ жизни подростков, находящихся в конфликте с законом»","Х","Х","Х","2014-2015","Министерство труда и социальной защиты  населения Забайкальского края, СРЦ «Надежда», Черновский КЦСОН «Берегиня», ЦППН «Доверие», РЦ «Шиванда», Улетовский СРЦ «Кедр», Шерловогорский РЦ «Топаз»","Х","Х","Х","Х","Х","Х","Х","Х","Х","Х","Х","Х","Х","Х","Х","Х"]
[null,"финансирование за счет краевого бюджета","тыс. рублей","Х","Х","Х","Х","1002","5089900","611",4971,4098,"Х","Х","Х","Х","Х","Х","Х","Х","Х","Х",9069]
[null,"кроме того, финансирование из других источников:","тыс. рублей","Х","Х","Х","Х",0,0,0,0,0,0,0,0,0,0,0,0,0,0,0,0]
[null," - из Фонда","тыс. рублей","Х","Х","Х","Х","Х","Х","Х",627,0,"Х","Х","Х","Х","Х","Х","Х","Х","Х","Х",627]
["1.4.1.4.","Мероприятие  «Внедрение модели учебно-трудовой бригады на базе учреждений социального обслуживания как средство реализации методов социально-трудовой профориентации несовершеннолетних, находящихся в конфликте с законом»","Х","Х","Х","2014-2015","Министерство труда и социальной защиты Забайкальского края, Улетовский СРЦ «Кедр», Малетинский СРЦ «Гармония», Ясногорский СРЦ «Родник», СРЦ «Надежда», Шилкинский СРЦ «Сибиряк», Карымский КЦСОН «Багульник», Красночикойский КЦСОН «Черемушки», Кыринский СРЦ «Перекресток», Могойтуйский КЦСОН «Элбэг», Бадинский СРЦ «Искра»,Приаргунский КЦСОН «Солнышко», Акшинский СРЦ «Задор», РЦ «Шиванда», КЦСОН «Орловский», Газимуро-Заводский СРЦ «Семья», Верхнецасучейский СРЦ «Росинка»","Х","Х","Х","Х","Х","Х","Х","Х","Х","Х","Х","Х","Х","Х","Х","Х"]
[null,"финансирование за счет краевого бюджета","тыс. рублей","Х","Х","Х","Х","  1002","5089900","611",4500,4500,"Х","Х","Х","Х","Х","Х","Х","Х","Х","Х",9000]
[null,"кроме того, финансирование из других источников:","тыс. рублей","Х","Х","Х","Х",0,0,0,0,0,0,0,0,0,0,0,0,0,0,0,0]
[null," - из Фонда","тыс. рублей","Х","Х","Х","Х","Х","Х","Х",3549.6,4000,"Х","Х","Х","Х","Х","Х","Х","Х","Х","Х",7549.6]
[null," - из внебюджетных источников","тыс. рублей","Х","Х","Х","Х","Х","Х","Х",300,400,"Х","Х","Х","Х","Х","Х","Х","Х","Х","Х",700]
["1.4.2.","Основное мероприятие «Социальная адаптация несовершеннолетних, находящихся в конфликте с законом, создание и развитие ювенальных служб в Забайкальском крае»","Х","Х","Х","2014-2015","Министерство труда и социальной защиты  населения Забайкальского края","Х","Х","Х","Х","Х","Х","Х","Х","Х","Х","Х","Х","Х","Х","Х","Х"]
[null,"финансирование за счет краевого бюджета","тыс. рублей",0.5,"Х","Х","Х","  1002","5089900","611",{"$f":"K608+K612+K616+K620+K624+K628+K632+K636+K640","v":7010},{"$f":"L608+L612+L616+L620+L624+L628+L632+L636+L640","v":8580},"Х","Х","Х","Х","Х","Х","Х","Х","Х","Х",15590]
[null,"кроме того, финансирование из других источников:","тыс. рублей","Х","Х","Х","Х",0,0,0,0,0,0,0,0,0,0,0,0,0,0,0,0]
[null," - из Фонда","тыс. рублей","Х","Х","Х","Х","Х","Х","Х",{"$f":"K610+K614+K618+K622+K626+K630+K634+K638+K642","v":3192.42},{"$f":"L610+L614+L618+L622+L626+L630+L634+L638+L642","v":3283.087},"Х","Х","Х","Х","Х","Х","Х","Х","Х","Х",6475.5069999999996]
["1.4.2-ПОМ1","Показатель  «Число несовершеннолетних, находящихся в конфликте с законом, получивших услуги по социальной адаптации и реабилитации»","чел.","Х","Х","Х","Х","Х","Х","Х",500,550,"Х","Х","Х","Х","Х","Х","Х","Х","Х","Х",1050]
["1.4.2.1.","Мероприятие  «Внедрение эффективных методов профилактической и коррекционной работы с несовершеннолетним, склонными к совершению преступлений и правонарушений, на базе ГУСО «Черновский комплексный центр социального обслуживания населения «Берегиня»","Х","Х","Абсолютный показатель","2014-2015","Министерство труда и социальной защиты населения Забайкальского края, Черновский КЦСОН «Берегиня»","Х","Х","Х","Х","Х","Х","Х","Х","Х","Х","Х","Х","Х","Х","Х","Х"]
[null,"финансирование за счет краевого бюджета","тыс. рублей","Х","Х","Х","Х","  1002","5089900","611",1730.4,2509.6999999999998,"Х","Х","Х","Х","Х","Х","Х","Х","Х","Х",4240.1000000000004]
[null,"кроме того, финансирование из других источников:","тыс. рублей","Х","Х","Х","Х",0,0,0,0,0,0,0,0,0,0,0,0,0,0,0,0]
[null," - из Фонда","тыс. рублей","Х","Х","Х","Х","Х","Х","Х",475.5,526.48199999999997,"Х","Х","Х","Х","Х","Х","Х","Х","Х","Х",{"$f":"SUM(K610:L610)","v":1001.982}]
["1.4.2.2.","Мероприятие  «Внедрение эффективных методов комплексной организации здоровьесберегающей среды для подростков, склонных к совершению правонарушений, и семей с детьми, находящихся в трудной жизненной ситуации, «Мое будущее в моих руках»","Х","Х","Х","2014-2015","Министерство труда и социальной защиты  населения Забайкальского края, СРЦ «Надежда»","Х","Х","Х","Х","Х","Х","Х","Х","Х","Х","Х","Х","Х","Х","Х","Х"]
[null,"финансирование за счет краевого бюджета","тыс. рублей","Х","Х","Х","Х","  1002","5089900","244",187,743,"Х","Х","Х","Х","Х","Х","Х","Х","Х","Х",{"$f":"SUM(K612:L612)","v":930}]
[null,"кроме того, финансирование из других источников:","тыс. рублей","Х","Х","Х","Х",0,0,0,0,0,0,0,0,0,0,0,0,0,0,0,0]
[null," - из Фонда","тыс. рублей","Х","Х","Х","Х","Х","Х","Х",52.62,131.33500000000001,"Х","Х","Х","Х","Х","Х","Х","Х","Х","Х",183.95500000000001]
["1.4.2.3.","Мероприятие  «Внедрение эффективных методов профилактической и коррекционной работы с несовершеннолетними, совершившими преступления и правонарушения, и их семьями на базе ГСУВУ «Сретенская школа»","Х","Х","Х","2014-2015","Минобразования, ГСУВУ «Сретенская школа»","Х","Х","Х","Х","Х","Х","Х","Х","Х","Х","Х","Х","Х","Х","Х","Х"]
[null,"финансирование за счет краевого бюджета","тыс. рублей","Х","Х","Х","Х",260702,4339900,611,1494,1523,"Х","Х","Х","Х","Х","Х","Х","Х","Х","Х",3017]
[null,"кроме того, финансирование из других источников:","тыс. рублей","Х","Х","Х","Х",0,0,0,0,0,0,0,0,0,0,0,0,0,0,0,0]
[null," - из Фонда","тыс. рублей","Х","Х","Х","Х","Х","Х","Х",78.3,43.8,"Х","Х","Х","Х","Х","Х","Х","Х","Х","Х",122.1]
["1.4.2.4.","Мероприятие  «Внедрение технологии социальных контактов с несовершеннолетними, находящимися в конфликте с законом. Обучение команд специалистов системы профилактики безнадзорности и правонарушений основам разработки, внедрения и управления эффективными социальными проектами»","Х","Х","Х","2014-2015","Министерство труда и социальной защиты населения Забайкальского края, ЦППН «Доверие», ЗабГУ","Х","Х","Х","Х","Х","Х","Х","Х","Х","Х","Х","Х","Х","Х","Х","Х"]
[null,"финансирование за счет краевого бюджета","тыс. рублей","Х","Х","Х","Х","  1002","5089900","611",1118.5999999999999,1724.3,"Х","Х","Х","Х","Х","Х","Х","Х","Х","Х",2842.8999999999996]
[null,"кроме того, финансирование из других источников:","тыс. рублей","Х","Х","Х","Х",0,0,0,0,0,0,0,0,0,0,0,0,0,0,0,0]
[null," - из Фонда","тыс. рублей","Х","Х","Х","Х","Х","Х","Х",535.6,571.07000000000005,"Х","Х","Х","Х","Х","Х","Х","Х","Х","Х",1106.67]
["1.4.2.5.","Мероприятие  «Создание на базе учреждений социального обслуживания выездных межведомственных служб экстренной социально-психологической помощи в целях организации работы модельных реабилитационных площадок для семей и детей в отдаленных районах Забайкальского края»","Х","Х","Х","2014-2015","Министерство труда и социальной защиты  населения Забайкальского края, Ясногорский СРЦ «Родник», Могойтуйский КЦСОН «Элбэг», Бадинский СРЦ «Искра», Шерловогорский РЦ «Топаз», Краснокаменский СРЦ «Доброта», Приаргунский КЦСОН «Солнышко», Краснокаменский СРЦ «Доброта»","Х","Х","Х","Х","Х","Х","Х","Х","Х","Х","Х","Х","Х","Х","Х","Х"]
[null,"финансирование за счет краевого бюджета","тыс. рублей","Х","Х","Х","Х","  1002","5089900","611",1500,1050,"Х","Х","Х","Х","Х","Х","Х","Х","Х","Х",2550]
[null,"кроме того, финансирование из других источников:","тыс. рублей","Х","Х","Х","Х",0,0,0,0,0,0,0,0,0,0,0,0,0,0,0,0]
[null," - из Фонда","тыс.рублей","Х","Х","Х","Х","Х","Х","Х",1540,1500,"Х","Х","Х","Х","Х","Х","Х","Х","Х","Х",3040]
["1.4.2.6.","Мероприятие  «Внедрение методов комплексной социальной адаптации несовершеннолетних, имеющих проблемы с законом, путем внедрения информационно-консультационных, психологических и интегративных технологий»","Х","Х","Х","2014-2015","Министерство труда и социальной защиты  населения Забайкальского края, ФКУ УИИ УФСИН России по Забайкальскому краю","Х","Х","Х","Х","Х","Х","Х","Х","Х","Х","Х","Х","Х","Х","Х","Х"]
[null,"финансирование за счет краевого бюджета","тыс. рублей","Х","Х","Х","Х"," 0305","4230049","244",30,30,"Х","Х","Х","Х","Х","Х","Х","Х","Х","Х",60]
[null,"кроме того, финансирование из других источников:","тыс. рублей","Х","Х","Х","Х",0,0,0,0,0,0,0,0,0,0,0,0,0,0,0,0]
[null," - из Фонда","тыс. рублей","Х","Х","Х","Х","Х","Х","Х",100,100,"Х","Х","Х","Х","Х","Х","Х","Х","Х","Х",200]
["1.4.2.7.","Мероприятие «Создание мобильного отделения «Шанс»","Х","Х","Х","2014-2015","Министерство труда и социальной защиты  населения Забайкальского края, ФКУ УИИ УФСИН России по Забайкальскому краю, ЗабГУ","Х","Х","Х","Х","Х","Х","Х","Х","Х","Х","Х","Х","Х","Х","Х","Х"]
[null,"финансирование за счет краевого бюджета","тыс. рублей","Х","Х","Х","Х"," 0305","4230049","244",200,200,"Х","Х","Х","Х","Х","Х","Х","Х","Х","Х",400]
[null,"кроме того, финансирование из других источников:","тыс. рублей","Х","Х","Х","Х",0,0,0,0,0,0,0,0,0,0,0,0,0,0,0,0]
[null," - из Фонда","тыс. рублей","Х","Х","Х","Х","Х","Х","Х",0,0,"Х","Х","Х","Х","Х","Х","Х","Х","Х","Х","Х"]
["1.4.2.8.","Мероприятие «Создание сети социально-психологических служб для работы с несовершеннолетними, находящимися в конфликте с законом, и их социальным окружением»","Х","Х","Х","2014-2015","Министерство труда и социальной защиты  населения Забайкальского края, Забайкальский краевой суд, Управление Судебного департамента в Забайкальском крае","Х","Х","Х","Х","Х","Х","Х","Х","Х","Х","Х","Х","Х","Х","Х","Х"]
[null,"финансирование за счет краевого бюджета","тыс. рублей","Х","Х","Х","Х","1002","5089900","611",750,800,"Х","Х","Х","Х","Х","Х","Х","Х","Х","Х",{"$f":"SUM(K636:L636)","v":1550}]
[null,"кроме того, финансирование из других источников:","тыс. рублей","Х","Х","Х","Х",0,0,0,0,0,0,0,0,0,0,0,0,0,0,0,0]
[null," - из Фонда","тыс.рублей","Х","Х","Х","Х","Х","Х","Х",410.4,410.4,"Х","Х","Х","Х","Х","Х","Х","Х","Х","Х",{"$f":"SUM(K638:L638)","v":820.8}]
["1.4.2.9.","Мероприятие  «Информационное освещение в средствах массовой информации хода реализации программы и достигнутых результатов исполнения мероприятий подпрограммы»","Х","Х","Х","2014-2015","Министерство труда и социальной защиты  населения Забайкальского края, Забайкальский краевой суд, Управление Судебного департамента в Забайкальском крае","Х","Х","Х","Х","Х","Х","Х","Х","Х","Х","Х","Х","Х","Х","Х","Х"]
[null,"финансирование за счет краевого бюджета","тыс. рублей","Х","Х","Х","Х","Х","Х","Х",0,0,"Х","Х","Х","Х","Х","Х","Х","Х","Х","Х","Х"]
[null,"кроме того, финансирование из других источников:","тыс. рублей","Х","Х","Х","Х",0,0,0,0,0,0,0,0,0,0,0,0,0,0,0,0]
[null," - из Фонда","тыс. рублей","Х","Х","Х","Х","Х","Х","Х",0,0,"Х","Х","Х","Х","Х","Х","Х","Х","Х","Х","Х"]
[null,"Задача 5.   «Улучшение качества жизни семей с детьми-инвалидами, организация комплексной помощи по абилитации и реабилитации детей-инвалидов, детей с ограниченными возможностями здоровья»","Х","Х","Х","Х","Х","Х","Х","Х","Х","Х","Х","Х","Х","Х","Х","Х","Х","Х","Х","Х","Х"]
["1.5.","Подпрограмма 5.  «Право быть равным»","Х","Х","Х","2014-2015","Министерство труда и социальной защиты  населения Забайкальского края, Минобразования, Министерство здравоохранения Забайкальского края, Министерство культуры Забайкальского края,  Министерство физической культуры и спорта Забайкальского края , Федеральное казенное учреждение «Главное бюро медико-социальной экспертизы» Забайкальского края; Государственное учреждение «Забайкальское региональное отделение Фонда социального страхования Российской Федерации»; Забайкальская региональная организация Общероссийской общественной организации «Всероссийское общество инвалидов», Ассоциация государственных учреждений социального обслуживания Забайкальского края","Х","Х","Х","Х","Х","Х","Х","Х","Х","Х","Х","Х","Х","Х","Х","Х"]
[null,"финансирование за счет краевого бюджета","тыс. рублей",1,"Х","Х","Х","Х","Х","Х",{"$f":"K658+K677+K711+K729+K750+K758","v":67973.259999999995},{"$f":"L658+L677+L711+L729+L750+L758","v":69522.819999999992},"Х","Х","Х","Х","Х","Х","Х","Х","Х","Х",{"$f":"SUM(K645:L645)","v":137496.07999999999}]
[null,"кроме того, финансирование из других источников:","тыс. рублей","Х","Х","Х","Х",0,0,0,0,0,0,0,0,0,0,0,0,0,0,0,0]
[null," - из Фонда ","тыс. рублей","Х","Х","Х","Х","Х","Х","Х",{"$f":"K660+K679+K713+K731+K756+K760","v":28333.56},{"$f":"L660+L679+L713+L731+L756+L760","v":27557.137000000002},"Х","Х","Х","Х","Х","Х","Х","Х","Х","Х",{"$f":"SUM(K647:L647)","v":55890.697}]
["1.5-ПП1","Показатель «Удельный вес детей-инвалидов, получивших реабилитационные услуги, в общей численности детей-инвалидов»","%","Х","Х","Х","Х","Х","Х","Х",60,70,"Х","Х","Х","Х","Х","Х","Х","Х","Х","Х","Х"]
["1.5-ПП2","Показатель  «Удельный вес детей до 3 лет с ограниченными возможностями здоровья, получивших реабилитационные услуги, в общей численности детей до 3 лет с ограниченными возможностями здоровья»","%","Х","ДИ у / ДИ *100, где:\nДИ у - количество детей-инвалидов, получивших реабилитационные услуги;\nДИ - общая численность детей-инвалидов.","Х","Х","Х","Х","Х",18,25,"Х","Х","Х","Х","Х","Х","Х","Х","Х","Х","Х"]
["1.5-ПП3","Показатель «Удельный вес детей-инвалидов, получивших услуги по оздоровлению и отдыху, в общей численности детей-инвалидов»","%","Х","ДОВ(3)у / ДОВ(3) * 100, где:\nДОВ(3)у - количество детей до 3 лет с ограниченными возможностями здоровья, получивших реабилитационные услуги;\nДОВ(3) - общая численность детей до 3 лет с ограниченными возможностями здоровья.","Х","Х","Х","Х","Х",55,65,"Х","Х","Х","Х","Х","Х","Х","Х","Х","Х",{"$f":"SUM(K650:L650)","v":120}]
["1.5-ПП4","Показатель  «Удельный вес семей с детьми-инвалидами, получивших социальные услуги (группы кратковременного и дневного пребывания, «Мери Поппинс- няня на час») на период занятости родителей, в общей численности семей с детьми-инвалидами»","%","Х","ДИ о / ДИ *100, где:\nДИ о - количество детей-инвалидов, получивших услуги по оздоровлению и отдыху;\nДИ - общая численность детей-инвалидов.","Х","Х","Х","Х","Х",60,90,"Х","Х","Х","Х","Х","Х","Х","Х","Х","Х","Х"]
["1.5-ПП5","Показатель  «Численность трудоустроенных родителей (одного из родителей), воспитывающих детей-инвалидов»","чел.","Х","СДИ у / СДИ *100, где:\nСДИ у - число семей с детьми-инвалидами, получивших социальные услуги (группы краткосрочного пребывания, «Мери Поппинс - няня на час»);\nСДИ - общая численность семей с детьми-инвалидами.","Х","Х","Х","Х","Х",76,113,"Х","Х","Х","Х","Х","Х","Х","Х","Х","Х","Х"]
["1.5-ПП6","Показатель  «Число некоммерческих организаций, привлеченных к решению проблем детей-инвалидов»","ед.","Х","Абсолютный показатель","Х","Х","Х","Х","Х",3,5,"Х","Х","Х","Х","Х","Х","Х","Х","Х","Х","Х"]
["1.5-ПП7","Показатель  «Численность волонтеров (добровольцев), оказывающих услуги детям-инвалидам и семьям с детьми-инвалидами»","чел.","Х","Абсолютный показатель","Х","Х","Х","Х","Х",80,120,"Х","Х","Х","Х","Х","Х","Х","Х","Х","Х","Х"]
["1.5-ПП8","Показатель  «Доля семей с детьми-инвалидами, охваченных службами сопровождения, в общей численности семей с детьми-инвалидами»","%","Х","Абсолютный показатель","Х","Х","Х","Х","Х",35,50,"Х","Х","Х","Х","Х","Х","Х","Х","Х","Х","Х"]
["1.5-ПП9","Показатель  «Численность родителей, информированных об особенностях ухода и воспитания ребенка-инвалида, об услугах для детей-инвалидов, которые можно получить на территории Забайкальского края»","чел.","Х","СДИ с / СДИ *100, где:\nСДИ с - число семей с детьми-инвалидами, охваченных службами сопровождения;\nСДИ - общая численность семей с детьми-инвалидами.","Х","Х","Х","Х","Х",3850,4200,"Х","Х","Х","Х","Х","Х","Х","Х","Х","Х","Х"]
["1.5.1.","Основное мероприятие  «Организация психолого-педагогической работы с детьми-инвалидами, семьями, имеющими детей с ограниченными возможностями здоровья»","Х","Х","Абсолютный показатель","2014-2015","Министерство труда и социальной защиты  населения Забайкальского края","Х","Х","Х","Х","Х","Х","Х","Х","Х","Х","Х","Х","Х","Х","Х","Х"]
[null,"финансирование за счет краевого бюджета","тыс. рублей",0.2,"Х","Х","Х","Х","Х","Х",{"$f":"K663+K667+K671","v":12940.7},{"$f":"L663+L667+L671","v":13230.55},"Х","Х","Х","Х","Х","Х","Х","Х","Х","Х",{"$f":"SUM(K658:L658)","v":26171.25}]
[null,"кроме того, финансирование из других источников:","тыс. рублей","Х","Х","Х","Х",0,0,0,0,0,0,0,0,0,0,0,0,0,0,0,0]
[null," - из Фонда","тыс. рублей","Х","Х","Х","Х","Х","Х","Х",{"$f":"K665+K669+K673","v":7011.34},{"$f":"L665+L669+L673","v":5301.5},"Х","Х","Х","Х","Х","Х","Х","Х","Х","Х",{"$f":"SUM(K660:L660)","v":12312.84}]
["1.5.1-ПОМ1","Показатель «Доля семей, имеющих детей-инвалидов, детей с ограниченными возможностями здоровья, охваченных психолого-педагогическими мероприятиями, в общем числе семей, имеющих детей-инвалидов, детей с ограниченными возможностями здоровья»","%","Х","Х","Х","Х","Х","Х","Х",60,70,"Х","Х","Х","Х","Х","Х","Х","Х","Х","Х","Х"]
["1.5.1.1.","Мероприятие  «Создание «Страницы доверия» на официальном сайте Министерства труда и социальной защиты населения Забайкальского края»","Х","Х","СДИ ппм / СДИ *100, где:\nСДИппм - количество семей, имеющих детей-инвалидов,  детей с ограниченными возможностями здоровья, охваченных психолого-педагогическими мероприятиями;\nСДИ - общее количество семей, имеющих детей-инвалидов, детей с ограниченными возможностями здоровья.","2014-2015","Министерство труда и социальной защиты  населения Забайкальского края","Х","Х","Х","Х","Х","Х","Х","Х","Х","Х","Х","Х","Х","Х","Х","Х"]
[null,"финансирование за счет краевого бюджета","тыс. рублей","Х","Х","Х","Х","  1002","5089900","611",35,35,"Х","Х","Х","Х","Х","Х","Х","Х","Х","Х",70]
[null,"кроме того, финансирование из других источников:","тыс. рублей","Х","Х","Х","Х",0,0,0,0,0,0,0,0,0,0,0,0,0,0,0,0]
[null," - из Фонда","тыс. рублей","Х","Х","Х","Х","Х","Х","Х",0,0,"Х","Х","Х","Х","Х","Х","Х","Х","Х","Х","Х"]
["1.5.1.2.","Мероприятие «Создание на территории Забайкальского края служб сопровождения и совершенствование их деятельности, основанной на внедрении инновационных технологий: \n1) психолого-педагогического сопровождения семей с детьми-инвалидами(диагностика семейной ситуации, психологическое консультирование, психологическая помощь в установлении благоприятного семейного климата, консультирование родителей по вопросам воспитания детей, содействие в определении образовательного маршрута ребенка-инвалида в рамках индивидуальной программы реабилитации, содействие в реализации внутреннего потенциала ребенка-инвалида и воспитывающей его семьи через вовлечение в творческую, физкультурно-оздоровительную деятельность)\n2) технологии социальной поддержки семьи (услуга «Мери Поппинс - няня на час» по уходу за ребенком-инвалидом при кратковременном отсутствии родителей;\n3) технологии «Мир вокруг нас» (содействие в социально адаптации детей с нарушениями опорно-двигательного аппарата). Деятельность службы сопровождения детей-инвалидов, семей с детьми-инвалидами реализуется при ГУСО»","Х","Х","Х","2014-2015","Министерство труда и социальной защиты  населения Забайкальского края, государственные учреждения социального обслуживания Забайкальского края: Акшинский СРЦ «Задор», \n«Александрово-Заводский СРЦ «Детство»,  Балейский КЦСОН «Золотинка»,  «Билитуйский СРЦ «Подросток»,  «Борзинский КЦСОН «Саранка», «Верхнецасучейский СРЦ «Росинка», «Верх-Усуглинский СРЦ «Аистенок», «Железнодорожный КЦСОН  «Радуга»,  «Ингодинский КЦСОН «Милосердие», «Калганский СРЦ «Улыбка», «Карымский КЦСОН «Багульник», «Краснокаменский СРЦ «Доброта»,  «Красночикойский КЦСОН «Черемушки», «Кыринский СРЦ «Перекресток», «Нерчинский СРЦ «Гарант», «Новоширокинский СРЦ «Семья», «Петровск-Забайкальский КЦСОН «Ветеран», «Приаргунский КЦСОН «Солнышко», «Сретенский КЦСОН «Березка», «Улетовский СРЦ  «Кедр», «Центр медико-социальной реабилитации инвалидов «Росток», «Черновский КЦСОН «Берегиня», «Шилкинский СРЦ «Сибиряк», «Ясногорский СРЦ «Родник»","Х","Х","Х","Х","Х","Х","Х","Х","Х","Х","Х","Х","Х","Х","Х","Х"]
[null,"финансирование за счет краевого бюджета","тыс. рублей","Х","Х","Х","Х","  1002","5089900","611",8471.7000000000007,8666.5499999999993,"Х","Х","Х","Х","Х","Х","Х","Х","Х","Х",{"$f":"SUM(K667:L667)","v":17138.25}]
[null,"кроме того, финансирование из других источников:","тыс. рублей","Х","Х","Х","Х","Х","Х","Х",0,0,"Х","Х","Х","Х","Х","Х","Х","Х","Х","Х","Х"]
[null," - средства Фонда","тыс. рублей","Х","Х","Х","Х","Х","Х","Х",6547.34,5283.1,"Х","Х","Х","Х","Х","Х","Х","Х","Х","Х",{"$f":"SUM(K669:L669)","v":11830.44}]
["1.5.1.3.","Мероприятие «Внедрение инновационной технологии социальной адаптации и реабилитации детей-инвалидов - воспитанников ГСУСО «Петровск-Забайкальский детский дом-интернат для умственно отсталых детей» Забайкальского края в условиях семейной воспитательной группы, созданной при ГСУСО «Петровск-Забайкальский детский дом-интернат для умственно отсталых детей» Забайкальского края»","Х","Х","Х","2014-2015","Министерство труда и социальной защиты населения Забайкальского края, ГСУСО «Петровск-Забайкальский детский дом-интернат для умственно отсталых детей» Забайкальского края","Х","Х","Х","Х","Х","Х","Х","Х","Х","Х","Х","Х","Х","Х","Х","Х"]
[null,"финансирование за счет краевого бюджета","тыс. рублей","Х","Х","Х","Х","  1002","5019900","611",4434,4529,"Х","Х","Х","Х","Х","Х","Х","Х","Х","Х",{"$f":"SUM(K671:L671)","v":8963}]
[null,"кроме того, финансирование из других источников:","тыс. рублей","Х","Х","Х","Х",0,0,0,0,0,0,0,0,0,0,0,0,0,0,0,0]
[null," - из Фонда","тыс. рублей","Х","Х","Х","Х","Х","Х","Х",464,18.399999999999999,"Х","Х","Х","Х","Х","Х","Х","Х","Х","Х",{"$f":"SUM(K673:L673)","v":482.4}]
["1.5.1.3-ПМ1","Показатель  «Число детей-инвалидов из воспитанников детского дома-интерната для умственно отсталых детей, переданных в семейные воспитательные группы, в общем числе воспитанников детского дома-интерната»","чел.","Х","Х","Х","Х","Х","Х","Х",6,9,"Х","Х","Х","Х","Х","Х","Х","Х","Х","Х","Х"]
["1.5.1.3-ПМ2","Показатель  «Количество созданных семейных воспитательных групп при детском доме-интернате для умственно отсталых детей»","шт.","Х","Абсолютный показатель","Х","Х","Х","Х","Х","  3-4"," 3-4","Х","Х","Х","Х","Х","Х","Х","Х","Х","Х","Х"]
["1.5.2.","Основное мероприятие  «Организация и проведение абилитационных и реабилитационных мероприятий с детьми с ограниченными возможностями здоровья","Х","Х","Абсолютный показатель","2014-2015","Х","Х","Х","Х","Х","Х","Х","Х","Х","Х","Х","Х","Х","Х","Х","Х","Х"]
[null,"финансирование за счет краевого бюджета","тыс. рублей",0.2,"Х","Х","Министерство труда и социальной защиты  населения Забайкальского края, Минобразования, Министерство здравоохранения Забайкальского края","Х","Х","Х",{"$f":"K682+K686+K691+K695+K699+K703+K707","v":44389.06},{"$f":"L682+L686+L691+L695+L699+L703+L707","v":45598.77},"Х","Х","Х","Х","Х","Х","Х","Х","Х","Х",{"$f":"SUM(K677:L677)","v":89987.829999999987}]
[null,"кроме того, финансирование из других источников:","тыс. рублей","Х","Х","Х","Х",0,0,0,0,0,0,0,0,0,0,0,0,0,0,0,0]
[null," - из Фонда","тыс. рублей","Х","Х","Х","Х","Х","Х","Х",{"$f":"K684+K688+K693+K697+K701+K705+K709","v":15959.150000000001},{"$f":"L684+L688+L693+L697+L701+L705+L709","v":17587.257000000001},"Х","Х","Х","Х","Х","Х","Х","Х","Х","Х",{"$f":"SUM(K679:L679)","v":33546.407000000007}]
["1.5.2-ПОМ1","Показатель  «Доля детей-инвалидов, детей с ограниченными возможностями здоровья с положительным результатом реабилитации, абилитации от общего числа получивших реабилитационные услуги в условиях учреждений»","%","Х","Х","Х","Х","Х","Х","Х",80,90,"Х","Х","Х","Х","Х","Х","Х","Х","Х","Х","Х"]
["1.5.2.1.","Мероприятие  «Внедрение технологии раннего выявления детей с риском инвалидности на базах ГАУСО «Реабилитационный центр для детей с ограниченными возможностями «Спасатель», Реабилитационный центр «Шиванда» Забайкальского края, ГУЗ «Краевой детский консультативный диагностический центр» Забайкальского края","Х","Х","ДИ рез / ДИ р *100, где:\nДИ рез - количество детей-инвалидов, детей с ограниченными возможностями здоровья с положительным результатом реабилитации;\nДИ р - общее число детей-инвалидов, получивших реабилитационные услуги в условиях учреждений.","2014-2015","Министерство труда и социальной защиты  населения Забайкальского края, Министерство здравоохранения Забайкальского края, ГАУСО  «Реабилитационный центр для детей с ограниченным возможностями  «Спасатель»","Х","Х","Х","Х","Х","Х","Х","Х","Х","Х","Х","Х","Х","Х","Х","Х"]
[null,"финансирование за счет краевого бюджета","тыс. рублей","Х","Х","Х","Х","1002","5089900","621",2175.77,2273.6799999999998,"Х","Х","Х","Х","Х","Х","Х","Х","Х","Х",{"$f":"SUM(K682:L682)","v":4449.45}]
[null,"кроме того, финансирование из других источников:","тыс. рублей","Х","Х","Х","Х",0,0,0,0,0,0,0,0,0,0,0,0,0,0,0,0]
[null," - из Фонда","тыс. рублей","Х","Х","Х","Х","Х","Х","Х",860,0,"Х","Х","Х","Х",null,"Х","Х","Х","Х","Х",{"$f":"SUM(K684:L684)","v":860}]
["1.5.2.2.","Мероприятие «Внедрение инновационных технологий содействия детям-инвалидам с детским церебральным параличом и детям с заболеваниями (синдром Дауна) в социальной адаптации и интеграции на базе ГКУСО «Центр медико-социальной реабилитации инвалидов «Росток» Забайкальского края посредством реализации программ:\n1) «Особый ребенок»(ранняя реабилитация детей с синдромом Дауна);\n2)  «Модульная адаптивная школа для детей с ДЦП» (медико-социальная реабилитация детей с ДЦП);\n3) «Школа для родителей детей с ДЦП) (информирование и обучение родителей детей с ДЦП приемам реабилитационной деятельности в домашних условиях по основным аспектам: медицинскому, психологическому и социальному);\n4) «Ступеньки к школе» (формирование готовности к школе у детей с ДЦП);\n5) «Волшебная лошадка» (лечебная верховая езда, занятия конным спортом»\n","Х","Х","Х","2014-2015","Министерство труда и социальной защиты  населения Забайкальского края, ГКУСО «Центр медико-социальной реабилитации инвалидов «Росток»","Х","Х","Х","Х","Х","Х","Х","Х","Х","Х","Х","Х","Х","Х","Х","Х"]
[null,"финансирование за счет краевого бюджета","тыс. рублей","Х","Х","Х","Х","  1002","5089900","244",5300.7,5539.2,"Х","Х","Х","Х","Х","Х","Х","Х","Х","Х",{"$f":"SUM(K686:L686)","v":10839.9}]
[null,"кроме того, финансирование из других источников:","тыс. рублей","Х","Х","Х","Х","Х","Х","Х"]
[null," - из Фонда","тыс. рублей","Х","Х","Х","Х","Х","Х","Х",3226.41,4148.1090000000004,"Х","Х","Х","Х","Х","Х","Х","Х","Х","Х",{"$f":"SUM(K688:L688)","v":7374.5190000000002}]
["1.5.2.2-ПМ7","Показатель «Количество специалистов ГКУСО «Центр медико-социальной реабилитации инвалидов «Росток» (инструкторы иппотерапии), которые прошли повышение уровня профессиональной компетенции по использованию метода иппотерапии в реабилитации детей-инвалидов в г.Москве","чел.","Х","Х","Х","Х","Х","Х","Х","Х",7,"Х","Х","Х","Х","Х","Х","Х","Х","Х","Х","Х"]
["1.5.2.3.","Мероприятие «Внедрение инновационной технологии \"Содействие социальной адаптации детей с отклонениями в развитии в условиях группы дневного пребывания при ГСУСО «Петровск-Забайкальский детский дом-интернат для умственно отсталых детей» Забайкальского края»","Х","Х","Абсолютный показатель","2014-2015","Министерство труда и социальной защиты  населения Забайкальского края,  ГСУСО «Петровск-Забайкальский детский дом-интернат для умственно отсталых детей» Забайкальского края","Х","Х","Х","Х","Х","Х","Х","Х","Х","Х","Х","Х","Х","Х","Х","Х"]
[null,"финансирование за счет краевого бюджета","тыс. рублей","Х","Х","Х","Х","1002","5019900","611",4182.3999999999996,4380.7,"Х","Х","Х","Х","Х","Х","Х","Х","Х","Х",8563.0999999999985]
[null,"кроме того, финансирование из других источников:","тыс. рублей","Х","Х","Х","Х",0,0,0,0,0,"Х","Х","Х","Х","Х","Х","Х","Х","Х","Х",0]
[null," - из Фонда","тыс. рублей","Х","Х","Х","Х","Х","Х","Х",1255.01,1459.56,"Х","Х","Х","Х","Х","Х","Х","Х","Х","Х",2714.5699999999997]
["1.5.2.4.","Мероприятие «Внедрение инновационных технологий социокультурной и социально-педагогической реабилитации детей-инвалидов на базе ГОУ «Центр образования» для детей-инвалидов Забайкальского края:\n1) технология «Киноман» (развитие творческих способностей, содействие самореализации детей-инвалидов посредством вовлечения в занятия в детской киностудии);\n2)  технология «Открой свое сердце добру» (социально-педагогическая реабилитация детей с ДЦП дошкольного возраста);\n3) технология «Мне мир доступен стал» (социально-педагогическая реабилитация детей с нарушением слуха)»","Х","Х","Х","2014-2015","Минобразования, ГОУ «Центр образования» для детей-инвалидов Забайкальского края","Х","Х","Х","Х","Х","Х","Х","Х","Х","Х","Х","Х","Х","Х","Х","Х"]
[null,"финансирование за счет краевого бюджета","тыс. рублей","Х","Х","Х","Х","Х","Х","Х",8381.02,8381.02,"Х","Х","Х","Х","Х","Х","Х","Х","Х","Х",16762.04]
[null,"кроме того, финансирование из других источников:","тыс. рублей","Х","Х","Х","Х",0,0,0,0,0,0,0,0,0,0,0,0,0,0,0,0]
[null," - из Фонда","тыс. рублей","Х","Х","Х","Х","Х","Х","Х",4227.1400000000003,5190.6499999999996,"Х","Х","Х","Х","Х","Х","Х","Х","Х","Х",9417.7900000000009]
["1.5.2.5.","Мероприятие «Внедрение технологии социокультурной и социально-педагогической реабилитации слепых и слабовидящих детей «И я смогу» на базе ГСКОУ для воспитанников с ограниченными возможностями здоровья \"Петровск-Забайкальская специализированная общеобразовательная школа» Забайкальского края","Х","Х","Х","2014-2015"," Минобразования, ГСКОУ для воспитанников с ограниченными возможностями здоровья «Петровск-Забайкальская специализированная общеобразовательная школа» Забайкальского края","Х","Х","Х","Х","Х","Х","Х","Х","Х","Х","Х","Х","Х","Х","Х","Х"]
[null,"финансирование за счет краевого бюджета","тыс. рублей","Х","Х","Х","Х","Х","Х","Х",5468.47,5468.47,"Х","Х","Х","Х","Х","Х","Х","Х","Х","Х",{"$f":"SUM(K699:L699)","v":10936.94}]
[null,"кроме того, финансирование из других источников:","тыс. рублей","Х","Х","Х","Х",0,0,0,0,0,0,0,0,0,0,0,0,0,0,0,0]
[null," - из Фонда","тыс. рублей","Х","Х","Х","Х","Х","Х","Х",1830.99,603.79,"Х","Х","Х","Х","Х","Х","Х","Х","Х","Х",{"$f":"SUM(K701:L701)","v":2434.7799999999997}]
["1.5.2.6.","Мероприятие «Реализация специальной социально-реабилитационной программы летнего отдыха и оздоровления неорганизованных детей-инвалидов «Академия укрепления здоровья» на базах государственных учреждений социального обслуживания: «Реабилитационный центр для детей и подростков с ограниченными возможностями  «Спасатель», «Шерловогорский реабилитационный центр «Топаз», «Реабилитационный центр «Шиванда»","Х","Х","Х","2014-2015","Министерство труда и социальной защиты  населения Забайкальского края, ГАУСО","Х","Х","Х","Х","Х","Х","Х","Х","Х","Х","Х","Х","Х","Х","Х","Х"]
[null,"финансирование за счет краевого бюджета","тыс. рублей","Х","Х","Х","Х","Х","Х","Х",14999.5,15674.5,"Х","Х","Х","Х","Х","Х","Х","Х","Х","Х",30674]
[null,"кроме того, финансирование из других источников:","тыс. рублей","Х","Х","Х","Х",0,0,0,0,0,0,0,0,0,0,0,0,0,0,0,0]
[null," - из Фонда","тыс. рублей","Х","Х","Х","Х","Х","Х","Х",3439.6,5322.5379999999996,"Х","Х","Х","Х","Х","Х","Х","Х","Х","Х",8762.137999999999]
["1.5.2.7.","Мероприятие «Реализация программы реабилитации семьи с ребенком-инвалидом «Ах, лето!»  (на базе детского лагеря отдыха «Солнышко» при ГОУ «Центр образования\" для детей-инвалидов Забайкальского края»)","Х","Х","Х","2014-2015","Минобразования ","Х","Х","Х","Х","Х","Х","Х","Х","Х","Х","Х","Х","Х","Х","Х","Х"]
[null,"финансирование за счет краевого бюджета","тыс. рублей","Х","Х","Х","Х","Х","Х","Х",3881.2,3881.2,"Х","Х","Х","Х","Х","Х","Х","Х","Х","Х",7762.4]
[null,"кроме того, финансирование из других источников:","тыс. рублей","Х","Х","Х","Х",0,0,0,0,0,0,0,0,0,0,0,0,0,0,0,0]
[null," - из Фонда","тыс. рублей","Х","Х","Х","Х","Х","Х","Х",1120,862.61,"Х","Х","Х","Х","Х","Х","Х","Х","Х","Х",1982.6100000000001]
["1.5.3.","Основное мероприятие «Формирование комфортной и доступной среды жизнедеятельности для детей-инвалидов, в том числе создание условий для творческой, спортивной деятельности детей с ограниченными возможностями здоровья и их семей»","Х","Х","Х","2014-2015","Министерство труда и социальной защиты  населения Забайкальского края, Министерство образования и науки Забайкальского края, Министерство культуры Забайкальского края, Министерство здравоохранения Забайкальского края, Министерство физической культуры и спорта Забайкальского края","Х","Х","Х","Х","Х","Х","Х","Х","Х","Х","Х","Х","Х","Х","Х","Х"]
[null,"финансирование за счет краевого бюджета","тыс. рублей",0.2,"Х","Х","Х","Х","Х","Х",{"$f":"K721+K725+K716","v":9916.5},{"$f":"L721+L725+L716","v":9916.5},"Х","Х","Х","Х","Х","Х","Х","Х","Х","Х",19833]
[null,"кроме того, финансирование из других источников:","тыс. рублей","Х","Х","Х","Х",0,0,0,0,0,0,0,0,0,0,0,0,0,0,0,0]
[null," - из Фонда","тыс. рублей","Х","Х","Х","Х","Х","Х","Х",{"$f":"K718+K723+K727","v":5363.07},{"$f":"L718+L723+L727","v":4668.38},"Х","Х","Х","Х","Х","Х","Х","Х","Х","Х",10031.450000000001]
["1.5.3-ПОМ1","Показатель «Удельный вес детей-инвалидов, систематически занимающихся физкультурой, спортом и творчеством, в общей численности детей-инвалидов»","%","Х","Х","Х","Х","Х","Х","Х",36,39,"Х","Х","Х","Х","Х","Х","Х","Х","Х","Х","Х"]
["1.5.3.1.","Мероприятие «Реализация программы «Обеспечение доступности современного высокотехнологичного реабилитационного оборудования (средств реабилитации) для детей-инвалидов, в том числе проживающих в отдаленных районах края» на базах государственных учреждений социального обслуживания Забайкальского края «Центр медико-социальной реабилитации инвалидов «Росток»,«Шерловогорский реабилитационный  центр «Топаз», «Акшинский СРЦ для несовершеннолетних «Задор», «Балейский КЦСОН «Золотинка», «Билитуйский СРЦ для несовершеннолетних «Подросток», «Борзинский КЦСОН  «Саранка», «Железнодорожный КЦСОН «Радуга», «Ингодинский КЦСОН  «Милосердие», «Карымский КЦСОН «Багульник», «Красночикойский КЦСОН «Черемушки»,«Краснокаменский СРЦ для несовершеннолетних «Доброта», «Нерчинский СРЦ для несовершеннолетних  «Гарант», «Петровск-Забайкальский КЦСОН «Ветеран», «Приаргунский КЦСОН «Солнышко»,«Улетовский СРЦ для несовершеннолетних «Кедр», «Черновский КЦСОН «Берегиня», «Шилкинский СРЦ для несовершеннолетних «Сибиряк», «Ясногорский СРЦ для несовершеннолетних «Родник»","Х",null,"ДИ зан / ДИ *100, где:\nДИ зан - число детей-инвалидов, систематически занимающихся физкультурой, спортом и творчеством;\nДИ - общая численность детей-инвалидов.","2014-2015","Министерство труда и социальной защиты  населения Забайкальского края, ГУСО","Х","Х","Х","Х","Х","Х","Х","Х","Х","Х","Х","Х","Х","Х","Х","Х"]
[null,"финансирование за счет краевого бюджета","тыс. рублей","Х","Х","Х","Х","1002","5089900","611",5910.2,5910.2,"Х","Х","Х","Х","Х","Х","Х","Х","Х","Х",11820.4]
[null,"кроме того, финансирование из других источников:",null,"Х","Х",{"$nulls":11},"Х","Х","Х","Х","Х","Х",0]
[null," - из Фонда","тыс. рублей","Х","Х","Х","Х","Х","Х","Х",3975.8,4047.8,"Х","Х","Х","Х","Х","Х","Х","Х","Х","Х",8023.6]
["1.5.3.1-ПМ1","Показатель «Количество пунктов проката современного высокотехнологичного оборудования (средств реабилитации) для детей-инвалидов»","Шт.","Х","Х",null,null,"Х","Х","Х",16,24,"Х","Х","Х","Х","Х","Х","Х","Х","Х","Х","Х"]
["1.5.3.2.","Мероприятие «Внедрение технологии социокультурной реабилитации семей с детьми-инвалидами «Арттерапия» на базах ГУК Забайкальского края «Забайкальская краевая детско-юношеская библиотека Г.Р.Граубина», «Специализированная библиотека для слабовидящих и незрячих» (система творческой реабилитации  инвалидов)»","Х","Х","Абсолютный показатель","2014-2015","Министерство культуры Забайкальского края, ГУК Забайкальского края «Забайкальская краевая детско-юношеская библиотека Г.Р.Граубина», «Специализированная библиотека для слабовидящих и незрячих»","Х","Х","Х","Х","Х","Х","Х","Х","Х","Х","Х","Х","Х","Х","Х","Х"]
[null,"финансирование за счет краевого бюджета","тыс.рублей","Х","Х","Х","Х",null,null,null,4006.3,4006.3,"Х","Х","Х","Х","Х","Х","Х","Х","Х","Х",{"$f":"SUM(K721:L721)","v":8012.6}]
[null,"кроме того, финансирование из других источников:","тыс. рублей","Х","Х","Х","Х",0,0,0,0,0,0,0,0,0,0,0,0,0,0,0,0]
[null," - из Фонда","тыс.рублей","Х","Х","Х","Х","Х","Х","Х",1387.27,620.58000000000004,"Х","Х","Х","Х","Х","Х","Х","Х","Х","Х",{"$f":"SUM(K723:L723)","v":2007.85}]
["1.5.3.3","Мероприятие «Реализация программы вовлечения семей с детьми-инвалидами в занятия физической культурой и спортом на спортивных комплексах, стадионах учреждений образования: ГОУ «Центр образования» для детей инвалидов Забайкальского края, ГСКОУ для воспитанников с ограниченными возможностями здоровья Петровск-Забайкальская специальная коррекционная общеобразовательная школа» Забайкальского края, ГОУ «Урульгинская специально-коррекционная школа-интернат для детей с нарушением интеллекта», ГОУ «Центр психолого-медико-социального сопровождения «ДАР»","Х","Х","Х","2013-2015","Министерство физической культуры и спорта Забайкальского края, Министерство образования и науки Забайкальского края, краевые общественные объединения инвалидов",{"$nulls":10},"Х","Х","Х","Х","Х","Х"]
[null,"финансирование за счет краевого бюджета","тыс.рублей","Х","Х","Х","Х","Х","Х","Х",0,0,"Х","Х","Х","Х","Х","Х","Х","Х","Х","Х","Х"]
[null,"кроме того, финансирование из других источников:","тыс. рублей","Х","Х","Х","Х",0,0,0,0,0,0,0,0,0,0,0,0,0,0,0,0]
[null," - из Фонда","тыс.рублей","Х","Х","Х","Х","Х","Х","Х",0,0,"Х","Х","Х","Х","Х","Х","Х","Х","Х","Х","Х"]
["1.5.4.","Основное мероприятие «Совершенствование организационно-методических основ социальной реабилитации детей с ограниченными возможностями здоровья»","Х","Х","Х","2014-2015","Министерство труда и социальной защиты  населения Забайкальского края, Минобразования, Минздрав, ФКУ «Главное бюро медико-социальной экспертизы по Забайкальскому краю«, Отделение Пенсионного фонда Российской Федерации (государственное учреждение) по Забайкальскому краю","Х","Х","Х","Х","Х","Х","Х","Х","Х",null,"Х","Х","Х","Х","Х","Х"]
[null,"финансирование за счет краевого бюджета","тыс. рублей",0.2,"Х","Х","Х","Х","Х","Х",{"$f":"K734+K738+K746","v":727},{"$f":"L734+L738+L746","v":777},"Х","Х","Х","Х","Х","Х","Х","Х","Х","Х",{"$f":"SUM(K729:L729)","v":1504}]
[null,"кроме того, финансирование из других источников:","тыс. рублей","Х","Х","Х","Х",0,0,0,0,0,0,0,0,0,0,0,0,0,0,0,0]
[null," - из Фонда","тыс. рублей",null,null,"Х","Х","Х","Х","Х",{"$f":"K736+K740+K748","v":0},{"$f":"L736+L740+L748","v":0},"Х","Х","Х","Х","Х","Х","Х","Х","Х","Х","Х"]
["1.5.4-ПОМ1","Показатель «Доля детей-инвалидов, информация о которых включена в автоматизированную систему «Адресная социальная помощь», в общей численности детей-инвалидов»","%","Х","Х","Х","Х","Х","Х","Х",70,75,"Х","Х","Х","Х","Х","Х","Х","Х","Х","Х","Х"]
["1.5.4.1.","Мероприятие «Формирование и ведение информационной базы данных детей-инвалидов и граждан, осуществляющих уход за ними, в составе автоматизированной системы «Адресная социальная помощь» Министерства труда и социальной защиты Забайкальского края»","Х","Х","ДВ / ДО *100, где:\nДВ - количество детей-инвалидов, включенных в «АСП»;\nДО - общее количество детей-инвалидов  в Забайкальском крае.\n","2014-2015","Министерство труда и социальной защиты  населения Забайкальского края, Минобразования, Минздрав, ФКУ «Главное бюро медико-социальной экспертизы по Забайкальскому краю», Отделение Пенсионного фонда Российской Федерации (государственное учреждение)  по Забайкальскому краю","Х","Х","Х","Х","Х","Х","Х","Х","Х","Х","Х","Х","Х","Х","Х","Х"]
[null,"финансирование за счет краевого бюджета","тыс. рублей","Х","Х","Х","Х","  1002","5089900","611",292,292,"Х","Х","Х","Х","Х","Х","Х","Х","Х","Х",{"$f":"SUM(K734:L734)","v":584}]
[null,"кроме того, финансирование из других источников:","тыс. рублей","Х","Х","Х","Х",0,0,0,0,0,0,0,0,0,0,0,0,0,0,0,0]
[null," - из Фонда","тыс. рублей","Х","Х","Х","Х","Х","Х","Х",0,0,"Х","Х","Х","Х","Х","Х","Х","Х","Х","Х","Х"]
["1.5.4.2.","Мероприятие «Проведение мониторинга с последующим анализом социального статуса семей с детьми-инвалидами, определение приоритетов в оказании социальной, профориентационной, образовательной помощи»","Х","Х","Х","2014-2015","Министерство труда и социальной защиты  населения Забайкальского края, ГУСО","Х","Х","Х","Х","Х","Х","Х","Х","Х","Х","Х","Х","Х","Х","Х","Х"]
[null,"финансирование за счет краевого бюджета","тыс. рублей","Х","Х","Х","Х","  1002","5089900","611",250,300,"Х","Х","Х","Х","Х","Х","Х","Х","Х","Х",{"$f":"SUM(K738:L738)","v":550}]
[null,"кроме того, финансирование из других источников:","тыс. рублей","Х","Х","Х","Х",0,0,0,0,0,0,0,0,0,0,0,0,0,0,0,0]
[null," - из Фонда","тыс. рублей","Х","Х","Х","Х","Х","Х","Х",0,0,"Х","Х","Х","Х","Х","Х","Х","Х","Х","Х","Х"]
["1.5.4.3","Мероприятие \"Внедрение инновационной технологии «Электронный банк данных современных методов медико-социальной, социально-психологической реабилитации детей-инвалидов» на базе ГСУСО «Центр медико-социальной реабилитации «Росток» Забайкальского края»","Х","Х","Х","2013-2015",null,"Х","Х","Х","Х","Х","Х","Х","Х","Х","Х","Х","Х","Х","Х","Х","Х"]
[null,"финансирование за счет краевого бюджета","тыс. рублей","Х","Х","Х","Х","Х","Х","Х",0,0,"Х","Х","Х","Х","Х","Х","Х","Х","Х","Х","Х"]
[null,"кроме того, финансирование из других источников:","тыс. рублей","Х","Х","Х","Х",0,0,0,0,0,0,0,0,0,0,0,0,0,0,0,0]
[null," - из Фонда","тыс. рублей","Х","Х","Х","Х","Х","Х","Х",0,0,"Х","Х","Х","Х","Х","Х","Х","Х","Х","Х","Х"]
["1.5.4.4.","Мероприятие «Организация на базе Министерства труда и социальной защиты Забайкальского края постоянно действующего методического семинара для специалистов различных ведомств, занимающихся проблемами детей с ограниченными возможностями»","Х","Х","Х","2014-2015","Министерство труда и социальной защиты  населения Забайкальского края, Минобразования, Минздрав, Министерство культуры Забайкальского края, Министерство физической культуры и спорта Забайкальского края,  ВУЗы","Х","Х","Х","Х","Х","Х","Х","Х","Х","Х","Х","Х","Х","Х","Х","Х"]
[null,"финансирование за счет краевого бюджета","тыс. рублей","Х","Х","Х","Х","1002","5089900","611",185,185,"Х","Х","Х","Х","Х","Х","Х","Х","Х","Х",{"$f":"SUM(K746:V746)","v":370}]
[null,"кроме того, финансирование из других источников:","тыс. рублей","Х","Х","Х","Х",0,0,0,0,0,0,0,0,0,0,0,0,0,0,0,0]
[null," - из Фонда","тыс. рублей","Х","Х","Х","Х","Х","Х","Х",0,0,"Х","Х","Х","Х","Х","Х","Х","Х","Х","Х","Х"]
["1.5.5","Основное мероприятие «Развитие социального партнерства, привлечение различных организаций к оказанию помощи семьям, воспитывающим детей-инвалидов, с целью улучшения качества жизни»",null,"Х","Х",null,"Министерство труда и социальной защиты  населения Забайкальского края, Министерство образования и науки Забайкальского края, ГУСО","Х","Х","Х","Х","Х","Х","Х","Х","Х","Х","Х","Х","Х","Х","Х","Х"]
[null,"финансирование за счет краевого бюджета","тыс. рублей",0.1,"Х","Х","Х","Х","Х","Х",null,null,"Х","Х","Х","Х","Х","Х","Х","Х","Х","Х","Х"]
[null,"кроме того, финансирование из других источников:","тыс. рублей","Х","Х","Х","Х",0,0,0,0,0,0,0,0,0,0,0,0,0,0,0,0]
[null," - из Фонда","тыс. рублей","Х","Х","Х","Х","Х","Х","Х",null,null,"Х","Х","Х","Х","Х","Х","Х","Х","Х","Х","Х"]
["1.5.5.1","Мероприятие «Привлечение муниципальных учреждений, некоммерческих организаций к социальным акциям («Соберем детей кв школу», «Декада инвалидов» и другие) в помощь семьям, воспитывающим детей-инвалидов»",null,"Х","Х","Х","Министерство труда и социальной защиты  населения Забайкальского края, Министерство образования и науки Забайкальского края, ГУСО","Х","Х","Х","Х","Х","Х","Х","Х","Х","Х","Х","Х","Х","Х","Х","Х"]
[null,"финансирование за счет краевого бюджета","тыс. рублей","Х","Х","Х","Х","Х","Х","Х",0,0,"Х","Х","Х","Х","Х","Х","Х","Х","Х","Х","Х"]
[null,"кроме того, финансирование из других источников:","тыс. рублей","Х","Х","Х","Х",0,0,0,0,0,0,0,0,0,0,0,0,0,0,0,0]
[null," - из Фонда","тыс. рублей","Х","Х","Х","Х","Х","Х","Х",0,0,"Х","Х","Х","Х","Х","Х","Х","Х","Х","Х","Х"]
["1.5.6","Основное мероприятие \"Информационное сопровождение программы»",null,"Х","Х","2013-2015","Министерство труда и социальной защиты  населения Забайкальского края","Х","Х","Х","Х","Х","Х","Х","Х","Х","Х","Х","Х","Х","Х","Х","Х"]
[null,"финансирование за счет краевого бюджета","тыс. рублей",0.1,"Х","Х","Х","Х","Х","Х",0,0,"Х","Х","Х","Х","Х","Х","Х","Х","Х","Х","Х"]
[null,"кроме того, финансирование из других источников:","тыс. рублей","Х","Х","Х","Х",0,0,0,0,0,0,0,0,0,0,0,0,0,0,0,0]
[null," - из Фонда","тыс. рублей","Х","Х","Х","Х","Х","Х","Х",0,0,"Х","Х","Х","Х","Х","Х","Х","Х","Х","Х","Х"]
["1.5.6.1","Мероприятие «Информационное освещение в средствах массовой информации хода реализации подпрограммы и достигнутых результатов исполнения»",null,"Х","Х",null,"Министерство труда и социальной защиты  населения Забайкальского края","Х","Х","Х","Х","Х","Х","Х","Х","Х","Х","Х","Х","Х","Х","Х","Х"]
[null,"финансирование за счет краевого бюджета","тыс. рублей","Х","Х","Х","Х","Х","Х","Х",0,0,"Х","Х","Х","Х","Х","Х","Х","Х","Х","Х","Х"]
[null,"кроме того, финансирование из других источников:","тыс. рублей","Х","Х","Х","Х",0,0,0,0,0,0,0,0,0,0,0,0,0,0,0,0]
[null," - из Фонда","тыс. рублей","Х","Х","Х","Х","Х","Х","Х",0,0,"Х","Х","Х","Х","Х","Х","Х","Х","Х","Х","Х"]
[null,"Задача 6. «Повышение на территории края эффективности межведомственной системы профилактики насилия и жестокого обращения в отношении детей. Реабилитация детей, ставших жертвами насилия и преступных посягательств»","Х","Х","Х","Х","Х","Х","Х","Х","Х","Х","Х","Х","Х","Х","Х","Х","Х","Х","Х","Х","Х"]
["1.6.","Подпрограмма 6. \"Воспитать добром!\"","Х","Х","Х","2014-2015","Министерство труда и социальной защиты  населения Забайкальского края, Министерство образования и науки Забайкальского края, \nкомиссия по делам несовершеннолетних и защите их прав в Забайкальском крае; ЗабГУ; ГУСО; Ассоциация государственных учреждений социального обслуживания «Содружество» Забайкальского края","Х","Х","Х","Х","Х","Х","Х","Х","Х","Х","Х","Х","Х","Х","Х","Х"]
[null,"финансирование за счет краевого бюджета","тыс. рублей",1,"Х","Х","Х","Х","Х","Х",{"$f":"K775+K857","v":21552.671999999999},{"$f":"L775+L857","v":22384.264000000003},"Х","Х","Х","Х","Х","Х","Х","Х","Х","Х",{"$f":"SUM(K767:L767)","v":43936.936000000002}]
[null,"кроме того, финансирование из других источников:","тыс. рублей","Х","Х","Х","Х",0,0,0,0,0,0,0,0,0,0,0,0,0,0,0,0]
[null," - из Фонда ","тыс. рублей","Х","Х","Х","Х","Х","Х","Х",{"$f":"K777+K859","v":9255.0740000000005},{"$f":"L777+L859","v":8827.16},"Х","Х","Х","Х","Х","Х","Х","Х","Х","Х",{"$f":"SUM(K769:L769)","v":18082.234}]
[null," - из внебюджетных источников","тыс. рублей","Х","Х","Х","Х","Х","Х","Х",300,300,"Х","Х","Х","Х","Х","Х","Х","Х","Х","Х",600]
["1.6-ПП1","Показатель «Численность детей, изъятых из семьи при непосредственной угрозе жизни или здоровью детей»","чел.","Х","Х","Х","Х","Х","Х","Х",80,65,"Х","Х","Х","Х","Х","Х","Х","Х","Х","Х","Х"]
["1.6-ПП2","Показатель «Численность родителей, лишенных родительских прав в связи с жестоким обращением детьми»","чел.","Х","Абсолютный показатель","Х","Х","Х","Х","Х",22,18,"Х","Х","Х","Х","Х","Х","Х","Х","Х","Х","Х"]
["1.6-ПП3","Показатель «Численность несовершеннолетних, потерпевших от преступных посягательств»","чел.","Х","Абсолютный показатель","Х","Х","Х","Х","Х",1180,1050,"Х","Х","Х","Х","Х","Х","Х","Х","Х","Х","Х"]
["1.6.1.","Основное мероприятие «Внедрение новых технологий и методов раннего выявления семейного неблагополучия и оказания поддержки семьям с детьми, находящимся в социально опасном положении и иной трудной жизненной ситуации, социально-психологической реабилитации детей, пострадавших от жестокого обращения и преступных посягательств»","Х","Х","Абсолютный показатель","2014-2015","Министерство труда и социальной защиты  населения Забайкальского края, Министерство образования и науки Забайкальского края,  ЗабГУ, ГУСО","Х","Х","Х","Х","Х","Х","Х","Х","Х","Х","Х","Х","Х","Х","Х","Х"]
[null,"финансирование за счет краевого бюджета","тыс. рублей",0.7,"Х","Х","Х","Х","Х","Х",{"$f":"K784+K788+K792+K796+K800+K804+K808+K812+K816+K820+K824+K828+K832+K836+K840+K844+K848+K853","v":18327.087},{"$f":"L784+L788+L792+L796+L800+L804+L808+L812+L816+L820+L824+L828+L832+L836+L840+L844+L848+L853","v":20021.771000000001},"Х","Х","Х","Х","Х","Х","Х","Х","Х","Х",{"$f":"SUM(K775:L775)","v":38348.858}]
[null,"кроме того, финансирование из других источников:","тыс. рублей","Х","Х","Х","Х",0,0,0,0,0,0,0,0,0,0,0,0,0,0,0,0]
[null," - из Фонда","тыс. рублей","Х","Х","Х","Х","Х","Х","Х",{"$f":"K786+K790+K794+K798+K802+K806+K810+K814+K818+K822+K826+K830+K834+K838+K842+K846+K850+K855","v":7617.9040000000005},{"$f":"L786+L790+L794+L798+L802+L806+L810+L814+L818+L822+L826+L830+L834+L838+L842+L846+L850+L855","v":7237.4040000000005},"Х","Х","Х","Х","Х","Х","Х","Х","Х","Х",{"$f":"SUM(K777:L777)","v":14855.308000000001}]
[null," - из внебюджетных источников","тыс. рублей","Х","Х","Х","Х","Х","Х","Х",{"$f":"K851","v":300},{"$f":"L851","v":300},"Х","Х","Х","Х","Х","Х","Х","Х","Х","Х",600]
["1.6.1-ПОМ1","Показатель «Число детей, находящихся в социально опасном положении, прошедших курс стационарной социальной реабилитации»","чел.","Х","Х","Х","Х","Х","Х","Х",2043,2270,"Х","Х","Х","Х","Х","Х","Х","Х","Х","Х","Х"]
["1.6.1-ПОМ2","Показатель «Число подростков, повысивших уровень правовой информированности с помощью предусмотренных профилактических мероприятий и мероприятий информационного характера»","чел.","Х","Абсолютный показатель","Х","Х","Х","Х","Х",10000,15000,"Х","Х","Х","Х","Х","Х","Х","Х","Х","Х","Х"]
["1.6.1-ПОМ3","Показатель «Число граждан, повысивших уровень информированности о формах насилия в отношении детей и ответственности за действия, направленные против детей, правилах безопасности для детей»","чел.","Х","Абсолютный показатель","Х","Х","Х","Х","Х",6000,6000,"Х","Х","Х","Х","Х","Х","Х","Х","Х","Х","Х"]
["1.6.1-ПОМ4","Показатель «Число специалистов, работающих с детьми, прошедших обучение, повысивших свою квалификацию»","чел.","Х","Абсолютный показатель","Х","Х","Х","Х","Х",415,425,"Х","Х","Х","Х","Х","Х","Х","Х","Х","Х","Х"]
["1.6.1.1.","Мероприятие «Разработка и внедрение реабилитационной программы «Школа укрепления здоровья» для подростков, чьи родители страдают алкогольной зависимостью и склонны к жестокому обращению с детьми, в условиях ЗОЛ «Сосновый бор», «Звездный», «Красная саранка», «Солнышко», «Аршаан»","Х","Х","Абсолютный показатель","2014-2015","Министерство труда и социальной защиты  населения Забайкальского края, ЦПППН «Доверие», ЗОЛ «Сосновый бор», «Звездный», «Красная саранка», «Солнышко», «Аршаан»","Х","Х","Х","Х","Х","Х","Х","Х","Х","Х","Х","Х","Х","Х","Х","Х"]
[null,"финансирование за счет краевого бюджета","тыс. рублей","Х","Х","Х","Х"," 1002","5089900","611",1030,1912.5,"Х","Х","Х","Х","Х","Х","Х","Х","Х","Х",{"$f":"SUM(K784:L784)","v":2942.5}]
[null,"кроме того, финансирование из других источников:","тыс. рублей","Х","Х","Х","Х",0,0,0,0,0,0,0,0,0,0,0,0,0,0,0,0]
[null," - из Фонда","тыс. рублей","Х","Х","Х","Х","Х","Х","Х",747,831,"Х","Х","Х","Х","Х","Х","Х","Х","Х","Х",{"$f":"SUM(K786:L786)","v":1578}]
["1.6.1.2.","Мероприятие «Внедрение технологий профессионального обучения и сопровождения консультантов «телефона доверия» через проведение дистанционного очного психологического консультирования специалистов ГУСО по вопросам жестокого обращения с детьми, супервизии консультантов «Телефона доверия», создание краевой школы консультантов «телефона доверия», проведение обучения супервизорских групп для телефонных консультантов»","Х","Х","Х","2014-2015","Министерство труда и социальной защиты  населения Забайкальского края, СРЦ «Надежда», ЦН «Доверие», Краснокаменский СРЦ «Доброта», Карымский КЦСОН «Багульник»","Х","Х","Х","Х","Х","Х","Х","Х","Х","Х","Х","Х","Х","Х","Х","Х"]
[null,"финансирование за счет краевого бюджета","тыс. рублей","Х","Х","Х","Х"," 1002","5089900","611",200,200,"Х","Х","Х","Х","Х","Х","Х","Х","Х","Х",400]
[null,"кроме того, финансирование из других источников:","тыс. рублей","Х","Х","Х","Х",0,0,0,0,0,0,0,0,0,0,0,0,0,0,0,0]
[null," - из Фонда","тыс. рублей",null,null,"Х","Х","Х","Х","Х",0,0,"Х","Х","Х","Х","Х","Х","Х","Х","Х","Х","Х"]
["1.6.1.3.","Мероприятие «Внедрение технологии социально-психологического сопровождения семей группы риска «Семейный круг\" с целью обучения навыкам эффективного взаимодействия родителей с детьми на базе Краснокаменского СРЦ «Доброта», Борзинского КЦСОН «Саранка», Ингодинского КЦСОН «Милосердие»","Х","Х","Х","2014-2015","Министерство труда и социальной защиты  населения Забайкальского края, ГУСО","Х","Х","Х","Х","Х","Х","Х","Х","Х","Х","Х","Х","Х","Х","Х","Х"]
[null,"финансирование за счет краевого бюджета","тыс. рублей","Х","Х","Х","Х"," 1002","5089900","611",1568.5229999999999,1639.107,"Х","Х","Х","Х","Х","Х","Х","Х","Х","Х",3207.63]
[null,"кроме того, финансирование из других источников:","тыс. рублей","Х","Х","Х","Х",0,0,0,0,0,0,0,0,0,0,0,0,0,0,0,0]
[null," - из Фонда","тыс. рублей","Х","Х","Х","Х","Х","Х","Х",879.15,879.15,"Х","Х","Х","Х","Х","Х","Х","Х","Х","Х",1758.3]
["1.6.1.4.","Мероприятие «Внедрение технологии «Ребенок ребенку» с участием волонтеров в работе с детьми (их семьями), пострадавшими от жестокого обращения, проведение работы по формированию в обществе нетерпимого отношения к любым формам насилия, жестокого обращения в отношении детей»","Х","Х","Х","2014-2015","Министерство труда и социальной защиты  населения Забайкальского края, ЦПППН «Доверие»","Х","Х","Х","Х","Х","Х","Х","Х","Х","Х","Х","Х","Х","Х","Х","Х"]
[null,"финансирование за счет краевого бюджета","тыс. рублей","Х","Х","Х","Х"," 1002","5089900","611",400,450,"Х","Х","Х","Х","Х","Х","Х","Х","Х","Х",{"$f":"SUM(K796:L796)","v":850}]
[null,"кроме того, финансирование из других источников:","тыс. рублей","Х","Х","Х","Х",0,0,0,0,0,0,0,0,0,0,0,0,0,0,0,0]
[null," - из Фонда","тыс. рублей","Х","Х","Х","Х","Х","Х","Х",0,0,"Х","Х","Х","Х","Х","Х","Х","Х","Х","Х","Х"]
["1.6.1.5.","Мероприятие «Внедрение на базе ЦПППН «Доверие» технологий социальных коммуникаций и медиаций, способствующих снижению жестокости среди подростков - воспитанников ЦПН «Доверие», склонных к агрессии и употреблению психоактивных веществ, состоящих на учете в КДН и ЗП. Обучение психологов на базе НОУ \"Институт психотерапии и консультирования «Гармония» технологиям социальных коммуникаций и медиаций, способствующих снижению агрессии и жестокости в подростковой среде, по программе, рассчитанной на 72 часа»","Х","Х","Х","2014-2015","Министерство труда и социальной защиты  населения Забайкальского края, ЦПППН «Доверие»","Х","Х","Х","Х","Х","Х","Х","Х","Х","Х","Х","Х","Х","Х","Х","Х"]
[null,"финансирование за счет краевого бюджета","тыс. рублей","Х","Х","Х","Х","Х","Х","Х",1094.46,1159.06,"Х","Х","Х","Х","Х","Х","Х","Х","Х","Х",{"$f":"SUM(K800:L800)","v":2253.52}]
[null,"кроме того, финансирование из других источников:","тыс. рублей","Х","Х","Х","Х",0,0,0,0,0,0,0,0,0,0,0,0,0,0,0,0]
[null," - из Фонда","тыс. рублей","Х","Х","Х","Х","Х","Х","Х",744.6,782.6,"Х","Х","Х","Х","Х","Х","Х","Х","Х","Х",1527.2]
["1.6.1.6.","Мероприятие «Проведение в ЗОЛ комплекса занятий, включающих знакомство со своими правами и обязанностями, обучение навыкам безопасного поведения»","Х","Х","Х","2014-2015","Министерство труда и социальной защиты  населения Забайкальского края, ГУСО","Х","Х","Х","Х","Х","Х","Х","Х","Х","Х","Х","Х","Х","Х","Х","Х"]
[null,"финансирование за счет краевого бюджета","тыс. рублей","Х","Х","Х","Х","Х","Х","Х",300,300,"Х","Х","Х","Х","Х","Х","Х","Х","Х","Х",{"$f":"SUM(K804:L804)","v":600}]
[null,"кроме того, финансирование из других источников:","тыс. рублей","Х","Х","Х","Х",0,0,0,0,0,0,0,0,0,0,0,0,0,0,0,0]
[null," - из Фонда","тыс. рублей","Х","Х","Х","Х","Х","Х","Х",0,0,"Х","Х","Х","Х","Х","Х","Х","Х","Х","Х","Х"]
["1.6.1.7.","Мероприятие «Внедрение технологии социально-психологической реабилитации с использованием полифункционального оборудования детей из семей, находящихся в социально опасном положении, семей с риском жестокого обращения  в Акшинском СРЦ «Задор», Билитуйском СРЦ «Подросток», Красночикойском СРЦ «Черемушки», Нерчинском СРЦ «Гарант», Черновском КЦСОН «Берегиня», Улетовском СРЦ «Кедр», Сретенском КЦСОН «Березка», Новоширокинском СРЦ «Семья»","Х","Х","Х","2014-2015","Министерство труда и социальной защиты  населения Забайкальского края, ГУСО","Х","Х","Х","Х","Х","Х","Х","Х","Х","Х","Х","Х","Х","Х","Х","Х"]
[null,"финансирование за счет краевого бюджета","тыс. рублей","Х","Х","Х","Х","Х","Х","Х",1044.204,1044.204,"Х","Х","Х","Х","Х","Х","Х","Х","Х","Х",{"$f":"SUM(K808:L808)","v":2088.4079999999999}]
[null,"кроме того, финансирование из других источников:","тыс. рублей","Х","Х","Х","Х",0,0,0,0,0,0,0,0,0,0,0,0,0,0,0,0]
[null," - из Фонда","тыс. рублей","Х","Х","Х","Х","Х","Х","Х",614.23800000000006,614.23800000000006,"Х","Х","Х","Х","Х","Х","Х","Х","Х","Х",1228.4760000000001]
["1.6.1.8.","Мероприятие «Разработка и внедрение межведомственного алгоритма действий, обеспечивающего единую технологию работы органов и учреждений системы профилактики безнадзорности и правонарушений несовершеннолетних, раннее выявление случаев жестокого обращения и оперативное реагирование на данные случаи»","Х","Х","Х","2014-2015","Министерство труда и социальной защиты  населения Забайкальского края, Министерство образования и науки Забайкальского края, КДН и ЗП","Х","Х","Х","Х","Х","Х","Х","Х","Х","Х","Х","Х","Х","Х","Х","Х"]
[null,"финансирование за счет краевого бюджета","тыс. рублей","Х","Х","Х","Х","Х","Х","Х",120,120,"Х","Х","Х","Х","Х","Х","Х","Х","Х","Х",240]
[null,"кроме того, финансирование из других источников:","тыс. рублей","Х","Х","Х","Х",0,0,0,0,0,0,0,0,0,0,0,0,0,0,0,0]
[null," - из Фонда","тыс. рублей","Х","Х","Х","Х","Х","Х","Х",0,0,"Х","Х","Х","Х","Х","Х","Х","Х","Х","Х","Х"]
["1.6.1.9.","Мероприятие «Внедрение эффективных технологий по профилактике насилия и жестокого обращения в семье: кризисное консультирование; социальное тьюторство; работа с сетью социальных контактов. Обучение специалистов ГУСО на базе Санкт-Петербургской академии постдипломного образования технологиям выявления семей с риском жестокого обращения, сопровождения семей с детьми, находящихся в социально опасном положении, оказания помощи детям, пострадавшим от жестокого обращения, по программе, рассчитанной на 72 часа»","Х","Х","Х","2014-2015","Министерство труда и социальной защиты  населения Забайкальского края, ГУСО","Х","Х","Х","Х","Х","Х","Х","Х","Х",null,"Х","Х","Х","Х","Х","Х"]
[null,"финансирование за счет краевого бюджета","тыс. рублей","Х","Х","Х","Х","Х","Х","Х",2720.5,2846,"Х","Х","Х","Х","Х","Х","Х","Х","Х","Х",5566.5]
[null,"кроме того, финансирование из других источников:","тыс. рублей","Х","Х","Х","Х",0,0,0,0,0,0,0,0,0,0,0,0,0,0,0,0]
[null," - из Фонда","тыс. рублей","Х","Х","Х","Х","Х","Х","Х",1260,1282.5,"Х","Х","Х","Х","Х","Х","Х","Х","Х","Х",2542.5]
["1.6.1.10.","Мероприятие «Разработка и издание методических рекомендаций по профилактике жестокого обращения с детьми»","Х","Х","Х","2014-2015","Министерство труда и социальной защиты  населения Забайкальского края, ЦПППН «Доверие», Минобразования, ЗабГУ","Х","Х","Х","Х","Х","Х","Х","Х","Х","Х","Х","Х","Х","Х","Х","Х"]
[null,"финансирование за счет краевого бюджета","тыс. рублей","Х","Х","Х","Х","Х","Х","Х",35.700000000000003,35.700000000000003,"Х","Х","Х","Х","Х","Х","Х","Х","Х","Х",71.400000000000006]
[null,"кроме того, финансирование из других источников:","тыс. рублей","Х","Х","Х","Х",0,0,0,0,0,0,0,0,0,0,0,0,0,0,0,0]
[null," - из Фонда","тыс. рублей","Х","Х","Х","Х","Х","Х","Х",0,0,"Х","Х","Х","Х","Х","Х","Х","Х","Х","Х","Х"]
["1.6.1.11.","Мероприятие «Методическое сопровождение специалистов, работающих с детьми и в интересах детей. Проведение на базе ресурсного центра при ЦПППН «Доверие» балинт-групп, обучающих семинаров для специалистов ГУСО (психологов, социальных педагогов, воспитателей) по обучению технологиям диагностики, психологической реабилитации и сопровождения ребенка, подвергшегося насилию»","Х","Х","Х","2014-2015","Министерство труда и социальной защиты  населения Забайкальского края, ЦПППН «Доверие», ГУСО","Х","Х","Х","Х","Х","Х","Х","Х","Х","Х","Х","Х","Х","Х","Х","Х"]
[null,"финансирование за счет краевого бюджета","тыс. рублей","Х","Х","Х","Х","Х","Х","Х",1600,1700,"Х","Х","Х","Х","Х","Х","Х","Х","Х","Х",3300]
[null,"кроме того, финансирование из других источников:","тыс. рублей","Х","Х","Х","Х",0,0,0,0,0,0,0,0,0,0,0,0,0,0,0,0]
[null," - из Фонда","тыс. рублей","Х","Х","Х","Х","Х","Х","Х",0,0,"Х","Х","Х","Х","Х","Х","Х","Х","Х","Х","Х"]
["1.6.1.12.","Мероприятие «Раннее выявление семей, находящихся в социально опасном положении, семей, имеющих признаки риска жестокого обращения. Обучение на базе ЗабГУ участков специалистов по социальной работе технологиям раннего выявления случаев жестокого обращения с несовершеннолетними, консультирования и оказания поддержки семьям с детьми, находящимися в социально опасном положении и иной трудной жизненной ситуации, оказания помощи детям, пострадавшим от жестокого обращения, по программе, рассчитанной на 72 часа»","Х","Х","Х","2014-2015","Министерство труда и социальной защиты  населения Забайкальского края, Минобразования, ЗабГУ, ГУСО","Х","Х","Х","Х","Х","Х","Х","Х","Х","Х","Х","Х","Х","Х","Х","Х"]
[null,"финансирование за счет краевого бюджета","тыс. рублей","Х","Х","Х","Х","Х","Х","Х",3468,3697.5,"Х","Х","Х","Х","Х","Х","Х","Х","Х","Х",7165.5]
[null,"кроме того, финансирование из других источников:","тыс. рублей","Х","Х","Х","Х",0,0,0,0,0,0,0,0,0,0,0,0,0,0,0,0]
[null," - из Фонда","тыс. рублей","Х","Х","Х","Х","Х","Х","Х",972.91600000000005,147.916,"Х","Х","Х","Х","Х","Х","Х","Х","Х","Х",1120.8320000000001]
["1.6.1.13.","Мероприятие «Создание на базе ЗабГУ банка инновационных методов и технологий работы в сфере защиты прав детей»","Х","Х","Х","2014-2015","Министерство труда и социальной защиты  населения Забайкальского края, Минобразования, ЗабГУ, ГУСО","Х","Х","Х","Х","Х","Х","Х","Х","Х","Х","Х","Х","Х","Х","Х","Х"]
[null,"финансирование за счет краевого бюджета","тыс. рублей","Х","Х","Х","Х","Х","Х","Х",230,250,"Х","Х","Х","Х","Х","Х","Х","Х","Х","Х",480]
[null,"кроме того, финансирование из других источников:","тыс. рублей","Х","Х","Х","Х",0,0,0,0,0,0,0,0,0,0,0,0,0,0,0,0]
[null," - из Фонда","тыс. рублей","Х","Х","Х","Х","Х","Х","Х",0,0,"Х","Х","Х","Х","Х","Х","Х","Х","Х","Х","Х"]
["1.6.1.1.4.","Мероприятие «Реализация проекта «Электронный психолог»","Х","Х","Х","2014-2015","Министерство труда и социальной защиты  населения Забайкальского края, ЦПППН «Доверие»","Х","Х","Х","Х","Х","Х","Х","Х","Х","Х","Х","Х","Х","Х","Х","Х"]
[null,"финансирование за счет краевого бюджета","тыс. рублей","Х","Х","Х","Х","Х","Х","Х",35.700000000000003,35.700000000000003,"Х","Х","Х","Х","Х","Х","Х","Х","Х","Х",71.400000000000006]
[null,"кроме того, финансирование из других источников:","тыс. рублей","Х","Х","Х","Х",0,0,0,0,0,0,0,0,0,0,0,0,0,0,0,0]
[null," - из Фонда","тыс. рублей","Х","Х","Х","Х","Х","Х","Х",0,0,"Х","Х","Х","Х","Х","Х","Х","Х","Х","Х","Х"]
["1.6.1.15.","Мероприятие «Информационное освещение в средствах массовой информации (радио, газета, подготовка телесюжетов) хода реализации программы и достигнутых результатов исполнения подпрограммы»","Х","Х","Х","2014-2015","Министерство труда и социальной защиты  населения Забайкальского края","Х","Х","Х","Х","Х","Х","Х","Х","Х","Х","Х","Х","Х","Х","Х","Х"]
[null,"финансирование за счет краевого бюджета","тыс. рублей","Х","Х","Х","Х","Х","Х","Х",150,150,"Х","Х","Х","Х","Х","Х","Х","Х","Х","Х",300]
[null,"кроме того, финансирование из других источников:","тыс. рублей","Х","Х","Х","Х",0,0,0,0,0,0,0,0,0,0,0,0,0,0,0,0]
[null," - из Фонда","тыс. рублей","Х","Х","Х","Х","Х","Х","Х",0,0,"Х","Х","Х","Х","Х","Х","Х","Х","Х","Х","Х"]
["1.6.1.16.","Мероприятие «Проведение в детских учреждениях различной ведомственной принадлежности цикла занятий для детей «Защита от насилия»","Х","Х","Х","2014-2015","Министерство труда и социальной защиты  населения Забайкальского края, Министерство образования и науки Забайкальского края"," ","Х","Х","Х","Х","Х","Х","Х","Х","Х","Х","Х","Х","Х","Х","Х"]
[null,"финансирование за счет краевого бюджета","тыс. рублей","Х","Х","Х","Х","Х","Х","Х",500,550,"Х","Х","Х","Х","Х","Х","Х","Х","Х","Х",1050]
[null,"кроме того, финансирование из других источников:","тыс. рублей","Х","Х","Х","Х",0,0,0,0,0,0,0,0,0,0,0,0,0,0,0,0]
[null," - из Фонда","тыс. рублей","Х","Х","Х","Х","Х","Х","Х",0,0,"Х","Х","Х","Х","Х","Х","Х","Х","Х","Х","Х"]
["1.6.1.17.","Мероприятие «Внедрение технологии мобильных служб для оказания экстренной помощи детям, пострадавшим от жестокого обращения и преступных посягательств, на базе Новоширокинского СРЦ «Семья», Чернышевского СРЦ «Дружба», Красночикойского КЦСОН «Черемушки», Борзинского КЦСОН «Саранка», Могойтуйского КЦСОН «Элбэг», Билитуйского СРЦ «Подросток», Ясногорского СРЦ «Родник», Приаргунского КЦСОН «Солнышко», Ингодинского КЦСОН «Милосердие»","Х","Х","Х","2014-2015","Министерство труда и социальной защиты  населения Забайкальского края, ГУСО","Х","Х","Х","Х","Х","Х","Х","Х","Х","Х","Х","Х","Х","Х","Х","Х"]
[null,"финансирование за счет краевого бюджета","тыс. рублей","Х","Х","Х","Х","Х","Х","Х",3710,3812,"Х","Х","Х","Х","Х","Х","Х","Х","Х","Х",7522]
[null,"кроме того, финансирование из других источников:","тыс. рублей","Х","Х","Х","Х",0,0,0,0,0,0,0,0,0,0,0,0,0,0,0,0]
[null," - из Фонда","тыс. рублей","Х","Х","Х","Х","Х","Х","Х",2400,2700,"Х","Х","Х","Х","Х","Х","Х","Х","Х","Х",5100]
[null," - из внебюджетных источников","тыс. рублей","Х","Х","Х","Х","Х","Х","Х",300,300,"Х","Х","Х","Х","Х","Х","Х","Х","Х","Х",600]
["1.6.1.18.","Мероприятие «Внедрение технологии «Служба примирения» в общеобразовательных школах»","Х","Х","Х","2014-2015","Министерство труда и социальной защиты  населения Забайкальского края, Министерство образования и науки Забайкальского края","Х","Х","Х","Х","Х","Х","Х","Х","Х","Х","Х","Х","Х","Х","Х","Х"]
[null,"финансирование за счет краевого бюджета","тыс. рублей","Х","Х","Х","Х","Х","Х","Х",120,120,"Х","Х","Х","Х","Х","Х","Х","Х","Х","Х",240]
[null,"кроме того, финансирование из других источников:","тыс. рублей","Х","Х","Х","Х","Х","Х","Х",0,0,0,0,0,0,0,0,0,0,0,0,0]
[null," - из Фонда","тыс. рублей","Х","Х","Х","Х","Х","Х","Х",0,0,"Х","Х","Х","Х","Х","Х","Х","Х","Х","Х","Х"]
["1.6.2.","Основное мероприятие \"Развитие и модернизация инфраструктуры социальных служб в сфере поддержки семей с детьми, пострадавшими от жестокого обращения»","Х","Х","Х","2014-2015","Министерство труда и социальной защиты  населения Забайкальского края","Х","Х","Х","Х","Х","Х","Х","Х","Х","Х","Х","Х","Х","Х","Х","Х"]
[null,"финансирование за счет краевого бюджета","тыс. рублей",0.3,"Х","Х","Х","Х","Х","Х",{"$f":"K862+K867","v":3225.585},{"$f":"L862+L867","v":2362.4930000000004},"Х","Х","Х","Х","Х","Х","Х","Х","Х","Х",5588.0780000000004]
[null,"кроме того, финансирование из других источников:","тыс. рублей","Х","Х","Х","Х",0,0,0,0,0,0,0,0,0,0,0,0,0,0,0,0]
[null," - из Фонда","тыс. рублей","Х","Х","Х","Х","Х","Х","Х",{"$f":"K864+K869","v":1637.17},{"$f":"L864+L869","v":1589.7560000000001},"Х","Х","Х","Х","Х","Х","Х","Х","Х","Х",3226.9260000000004]
["1.6.2-ПОМ1","Показатель «Число женщин с детьми, получивших квалифицированную реабилитационную помощь специалистов на базе отделений помощи женщинам с детьми, пострадавшим от насилия»","чел.","Х","Х","Х","Х","Х","Х","Х",276,276,"Х","Х","Х","Х","Х","Х","Х","Х","Х","Х","Х"]
["1.6.2.1.","Мероприятие «Развитие сети служб по оказанию социальных услуг женщинам с детьми, пострадавшим от жестокого обращения: открытие стационарного кризисного отделения для женщин с детьми, пострадавших от жестокого обращения, на базе СРЦ «Надежда»; расширение спектра услуг, оказываемых женщинам с детьми, пострадавшим от жестокого обращения, на базе кризисного отделения для женщин с детьми Черновского КЦСОН «Берегиня», действующего с 2010 года»","Х","Х","Абсолютный показатель","2014-2015","Министерство труда и социальной защиты  населения Забайкальского края, СРЦ «Надежда»","Х","Х","Х","Х","Х","Х","Х","Х","Х","Х","Х","Х","Х","Х","Х","Х"]
[null,"финансирование за счет краевого бюджета","тыс. рублей","Х","Х","Х","Х","Х","Х","Х",1971.0139999999999,1460.5530000000001,"Х","Х","Х","Х","Х","Х","Х","Х","Х","Х",3431.567]
[null,"кроме того, финансирование из других источников:","тыс. рублей","Х","Х","Х","Х",0,0,0,0,0,0,0,0,0,0,0,0,0,0,0,0]
[null," - из Фонда","тыс. рублей","Х","Х","Х","Х","Х","Х","Х",1104.17,1056.7560000000001,"Х","Х","Х","Х","Х","Х","Х","Х","Х","Х",2160.9260000000004]
["1.6.2.1-ПМ1","Показатель \"Количество женщин с детьми, пострадавшим от насилия, которым оказана помощь»","чел.","Х","Х","Х","Х","Х","Х","Х",180,180,"Х","Х","Х","Х","Х","Х","Х","Х","Х","Х","Х"]
["1.6.2.2.","Мероприятие «Создание кабинетов психологического здоровья семьи на базе ГУСО в  целях реализации социально-профилактических программ по улучшению детско-родительских отношений, нормализации психо-эмоционального климата семьи, профилактики рисков жестокого обращения в семьях группы риска на базе Акшинского СРЦ «Задор», Билитуйского СРЦ «Подросток», Бадинского СРЦ «Искра», Красночикойского КЦСОН «Черемушки», Железнодорожного КЦСОН «Радуга», Улетовского СРЦ «Кедр», Чернышевского СРЦ «Дружба», Ясногорского СРЦ «Родник», Александрово-Заводского СРЦ «Детство», Нерчинского СРЦ «Гарант», Кыринского СРЦ «Перекресток», Приаргунского КЦСОН «Солнышко», Борзинского КЦСОН «Саранка», Краснокаменского СРЦ «Доброта»","Х","Х","Абсолютный показатель","2014-2015","Министерство труда и социальной защиты  населения Забайкальского края, ГУСО","Х","Х","Х","Х","Х","Х","Х","Х","Х","Х","Х","Х","Х","Х","Х","Х"]
[null,"финансирование за счет краевого бюджета","тыс. рублей","Х","Х","Х","Х","Х","Х","Х",1254.5709999999999,901.94,"Х","Х","Х","Х","Х","Х","Х","Х","Х","Х",2156.511]
[null,"кроме того, финансирование из других источников:","тыс. рублей","Х","Х","Х","Х",0,0,0,0,0,0,0,0,0,0,0,0,0,0,0,0]
[null," - из Фонда","тыс. рублей","Х","Х","Х","Х","Х","Х","Х",533,533,"Х","Х","Х","Х","Х","Х","Х","Х","Х","Х",{"$f":"SUM(K869:L869)","v":1066}]
[null,"Задача 7. «Создание организационных условий для реализации государственной программы»","Х","Х","Х","Х","Министерство труда и социальной защиты  населения Забайкальского края","Х","Х","Х","Х","Х","Х","Х","Х","Х","Х","Х","Х","Х","Х","Х","Х"]
[" 1.7","Подпрограмма 7. Обеспечивающая подпрограмма","тыс. рублей",1,"Х","Х","Х","ВСЕГО",null,null,{"$f":"K874","v":145051.4},{"$f":"L874","v":144275.29999999999},65612.854000000007,110444.09699999999,111569.9,113130.79999999999,115447.78099999999,113197.29999999999,127272.29999999997,123841.9,95087.2,{"$f":"V874","v":119127.3},{"$f":"SUM(K871:R871)+S871+T871+U871+0.1+V871","v":1384058.2320000001}]
[null,"финансирование за счет краевого бюджета","Х","Х","Х","Х","Х","Х","Х","Х","Х","Х","Х","Х","Х","Х","Х","Х","Х","Х","Х","Х","Х"]
[" 1.7 - ПП1","Показатель «Степень достижения установленных значений целевых показателей государственной программы и входящих в нее подпрограмм»","%",1,"СУММ (Мфi /Мплi*100) / i, где:\nМфi - фактическое значение i-го показателя;\nМплi - плановое значение i-го  показателя.","2014-2025","Министерство труда и социальной защиты  населения Забайкальского края","Х","Х","Х",100,97,100,100,100,100,100,100,100,100,100,100,"Х"]
[" 1.7.1","Основное мероприятие «Обеспечение деятельности Министерства социальной защиты населения Забайкальского края в установленной сфере деятельности»","тыс. рублей",1,"Х","Х","Х","ВСЕГО",null,null,{"$f":"SUM(K875:K892)","v":145051.4},{"$f":"SUM(L875:L892)","v":144275.29999999999},65612.854000000007,110444.09699999999,{"$f":"SUM(O875:O892)","v":111569.9},113130.79999999999,115447.78099999999,113197.29999999999,{"$f":"SUM(S875:S891)","v":127272.29999999997},{"$f":"SUM(T875:T892)","v":123841.9},{"$f":"SUM(U875:U892)","v":95087.2},{"$f":"SUM(V875:V892)","v":119127.3},{"$f":"SUM(K874:S874)+T874+U874+0.1+V874","v":1384058.2320000001}]
[null,"финансирование за счет краевого бюджета",null,"Х","Х",null,null,"10 06","17 7 01 49300",242,815,1101.4000000000001,1085.25,0,1840.8,{"$f":"555+1068.6","v":1623.6},1198.1590000000001,1371.6,1049.5,3625,2783.3,3487,{"$f":"SUM(K875:S875)+T875+U875+V875","v":19980.609}]
[{"$nulls":7},"10 06","17 7 01 49300",244,0,1150.3,113.8,2633.79,705.8,{"$f":"46.2+20+613.7+199.3","v":879.2},1244.1400000000001,1049.3,945.3,1343.5,1031.5,1292.3,{"$f":"SUM(K876:S876)+T876+U876+V876","v":12388.929999999998}]
[{"$nulls":7},"10 06","17 7 01 49300",321,0,0,0,0,0,0,0,0,141.9,0,0,0,141.9]
[{"$nulls":7},"10 06","17 7 01 49300",831,722.6,1,2,38.549999999999997,44.2,3,17.3,208.7,208.7,130,99.8,125.1,1600.9499999999998]
[{"$nulls":7},"10 06","17 7 01 49300",851,0,0,7,136.69999999999999,406.4,0,0,0,0,0,0,0,550.09999999999991]
[{"$nulls":7},"10 06","17 7 01 49300",853,0,0,19.350000000000001,35.506999999999998,10.199999999999999,0,0,0,0,0,0,0,65.057000000000002]
[{"$nulls":7},"10 06","17 7 01 29400","121",99290.4,107386.7,46954.6,80859,81101.600000000006,83257.2,86013.245999999999,85017.2,93197.9,89505,68723,86097.600000000006,1007403.4459999999]
[{"$nulls":7},"10 06","17 7 01 29400",129,28112.400000000001,25450.7,15218.8,23664.6,24446.9,24695.200000000001,25116.036,23755.7,29597.7,27030.5,20754.400000000001,26001.5,293844.43600000005]
[{"$nulls":7},"10 06","17 7 01 29400","122",3446.5,1435.7,1467.5,1790,2235.6,2005.9,1093.5,894,1360.5,1117.9000000000001,858.3,1075.3,18780.699999999997]
[{"$nulls":7},"10 06","17 7 01 29400","242",1390,1053.9000000000001,533.10400000000004,0,778.4,666.7,765.4,752.4,742.4,910,698.7,875.4,9166.4039999999986]
[{"$nulls":7},"10 06","17 7 01 29400","244",1696.7,220,189.6,1285.95,0,0,0,148.4,28.4,180,138.19999999999999,173.1,4060.35]
[{"$nulls":7},"10 06","17 7 01 29400","851",11,5.4,0,0,0,0,0,0,0,0,0,0,16.399999999999999]
[{"$nulls":7},"10 06","17 7 01 29400",852,9.9,11.8,0,0,0,0,0,0,0,0,0,0,21.700000000000003]
[{"$nulls":7},"1006",5140401,630,0,0,0,0,0,0,0,0,0,0,0,0,{"$f":"SUM(K888:S888)+T888+U888","v":0}]
[{"$nulls":7},"1006",5140402,630,0,0,0,0,0,0,0,0,0,0,0,0,0]
[{"$nulls":7},"0709",5210211,530,0,0,0,0,0,0,0,0,0,0,0,0,0]
[{"$nulls":7},"10 06","17 7 01 29400",853,0,0,21.85,0,0,0,0,0,0,0,0,0,{"$f":"SUM(K891:S891)+T891+U891+V891","v":21.85}]
[{"$nulls":7},"0104",null,530,9556.9,6458.4,0,0,0,0,0,0,0,0,0,0,16015.3]
[" 1.7.1 - ПОМ1","Показатель «Доля специалистов Министерства,  повысивших квалификацию, от общего числа специалистов Министерства»","%",1,"Сквал / С *100, где:\nСквал - количество специалистов, повысивших квалификацию;\nС - общее количество специалистов системы социальной защиты.","Х","Х","Х","Х","Х",10,12,12,12,14,15,16,16,16,16,16,16,"Х"]
["1.7.2.","Основное мероприятие «Совершенствование организации труда и повышение уровня оплаты труда социальных работников»","Х",1,"Х","2014-2025","Министерство труда и социальной защиты  населения Забайкальского края","Х","Х","Х","Х","Х","Х","Х","Х","Х","Х","Х","Х","Х","Х","Х","Х"]
[null,"финансирование за счет краевого бюджета","тыс. рублей","Х","Х","Х","Х","Х","Х","Х",0,0,0,0,0,0,0,0,0,0,0,0,{"$f":"SUM(K895:V895)","v":0}]
[" 1.7.2 - ПОМ1","Показатель «Соотношение средней заработной платы социальных работников со средней заработной платой в регионе»","%","Х","Х","Х","Х","Х","Х","Х",56.5,54.4,57.4,80,100,100,95,95,95,95,95,95,"Х"]
[" 1.7.3","Мероприятие «Проведение курсов повышения квалификации, иных обучающих мероприятий среди специалистов учреждений социального обслуживания»","Х",1,"Х","Х","Министерство труда и социальной защиты  населения Забайкальского края","Х","Х","Х","Х","Х","Х","Х","Х","Х","Х","Х","Х","Х","Х","Х","Х"]
[null,"финансирование за счет краевого бюджета","тыс. рублей","Х","Х","Х","Х","Х","Х","Х",0,0,0,0,0,0,0,0,0,0,0,0,{"$f":"SUM(K898:V898)","v":0}]
[" 1.7 3-ПМ1","Показатель «Доля сотрудников государственных учреждений социального обслуживания, повысивших свой профессиональный уровень, в общем числе сотрудников указанных учреждений»","%",1,"Спу / С *100, где:\nСпу - количество сотрудников государственных учреждений социального обслуживания, повысивших свой профессиональных уровень;\nС - общее количество сотрудников указанных учреждений.","2021-2025","Х","Х","Х","Х",13,15,16,16,17,20,22,22,22,22,22,22,"Х"]
["1.8.","Подпрограмма 8 . «Дорога в жизнь»","Х",1,"Х","2016-2017","Министерство труда и социальной защиты  населения Забайкальского края;\nУФСИН России по Забайкальскому краю,\nУправление Министерства внутренних дел России по Забайкальскому краю,\nГосударственное казенное учреждение  «Краевой центр занятости населения» Забайкальского края,\nГосударственное казенное учреждение  «Краевой центр социальной защиты населения» Забайкальского края \nГосударственное автономное учреждение социального обслуживания  «Социальный приют» Забайкальского края \n","Х","Х","Х","Х","Х","Х","Х","Х","Х","Х","Х","Х","Х","Х","Х","Х"]
[null,"финансирование за счет краевого бюджета","Х",1,"Х","Х","Х","Х","Х","Х","Х","Х","Х","Х","Х","Х","Х","Х","Х","Х","Х","Х","Х"]
[null,"кроме того, финансирование из других источников:","тыс. рублей","Х","Х",null,null,"Х","Х","Х",{"$f":"K922","v":"Х"},{"$f":"L922","v":"Х"},{"$f":"M922+M953+M990+M1026+M969","v":18766.189999999999},{"$f":"N922+N953+N990+N1026+N969","v":25870.81},"Х","Х","Х","Х","Х","Х","Х","Х",{"$f":"SUM(L902:S902)","v":44637}]
[null," - из Фонда ","тыс. рублей","Х","Х","Х","ВСЕГО","Х","Х","Х","Х","Х",0,0,"Х","Х","Х","Х","Х","Х","Х","Х",{"$f":"SUM(L903:S903)","v":0}]
[null," - из внебюджетных источников","тыс. рублей","Х","Х","Х",null,"Х","Х","Х",{"$f":"K924","v":"Х"},{"$f":"L924","v":"Х"},{"$f":"M924+M955+M971+M992+M1016","v":6644.4859999999999},{"$f":"N924+N955+N971+N992+N1016+N1028","v":3694.42},"Х","Х","Х","Х","Х","Х","Х","Х",{"$f":"SUM(L904:S904)","v":10338.905999999999}]
["1.8-ПП1","Показатель \"Увеличение числа детей-инвалидов, воспитывающихся в доме-интернате для умственно отсталых детей системы социальной защиты населения, овладевших навыками и умениями, необходимыми для их самостоятельного проживания в открытой социальной среде, в том числе: \n- овладевших трудовыми навыками;\n- овладевших социально-бытовыми навыками;\n- овладевших коммуникационными навыками»","тыс. рублей","Х","Х","2016-2017","Х","Х","Х","Х",{"$f":"K925","v":"Х"},{"$f":"L925","v":"Х"},"Х","Х","Х","Х","Х","Х","Х","Х","Х","Х","Х"]
["1.8-ПП2","Показатель «Увеличение численности выпускников дома-интерната для умственно отсталых детей системы социальной защиты населения, имеющих индивидуально-личностные качества, обеспечивающие их эффективную социальную адаптацию, в том числе: \n- по социально-правовой компетенции;\n- по морально-нравственным качествам;\n- по профессиональным интересам»","чел.","Х","Абсолютный показатель","2016-2017","Х","Х","Х","Х","Х","Х",20,30,"Х","Х","Х","Х","Х","Х","Х","Х","Х"]
["1.8-ПП3","Показатель «Увеличение численности самостоятельно проживающих выпускников дома-интерната для умственно отсталых детей системы социальной защиты населения, в том числе:\n- трудоустроенных\n- обеспеченных жилыми помещениями»","чел.","Х","Абсолютный показатель","2016-2017","Х","Х","Х","Х",{"$f":"K927","v":"Х"},{"$f":"L927","v":"Х"},36,52,"Х","Х","Х","Х","Х","Х","Х","Х","Х"]
["1.8-ПП4","Показатель «Увеличение численности выпускников  детского дома-интерната для умственно отсталых детей системы социальной защиты населения, живущих самостоятельно и получающих социальное сопровождение в течение первого года после достижения ими 18-летнего возраста»","чел.","Х","Абсолютный показатель","2016-2017","Х","Х","Х","Х","Х","Х",36,50,"Х","Х","Х","Х","Х","Х","Х","Х","Х"]
["1.8-ПП5","Показатель «Число воспитанников детского дома-интерната для умственно отсталых детей, получивших реабилитационные услуги, в общей численности воспитанников детского дома-интерната»","чел.","Х","Абсолютный показатель","2016-2017","Х","Х","Х","Х","Х","Х",37,50,"Х","Х","Х","Х","Х","Х","Х","Х","Х"]
["1.8-ПП6","Показатель «Число воспитанников детского дома-интерната для умственно отсталых детей, систематически занимающихся физкультурой, спортом и творчеством, в общей численности воспитанников детского дома-интерната»","чел.","Х","Абсолютный показатель","2016-2017","Х","Х","Х","Х","Х","Х",20,30,"Х","Х","Х","Х","Х","Х","Х","Х","Х"]
["1.8-ПП7","Показатель «Число детей-инвалидов из воспитанников детского дома-интерната для умственно отсталых детей, переданных в семейные воспитательные группы, в общем числе воспитанников детского дома-интерната»","чел.","Х","Абсолютный показатель","2016-2017","Х","Х","Х","Х","Х","Х",97,120,"Х","Х","Х","Х","Х","Х","Х","Х","Х"]
["1.8-ПП8","Показатель \"Количество созданных рабочих мест для воспитанников и выпускников детского дома-интерната»","чел.","Х","Абсолютный показатель","2016-2017","Х","Х","Х","Х","Х","Х",2,3,"Х","Х","Х","Х","Х","Х","Х","Х","Х"]
["1.8-ПП9","Показатель «Число привлеченных некоммерческих организаций к решению проблем воспитанников и выпускников детского дома-интерната для умственно отсталых детей»","чел.","Х","Абсолютный показатель","2016-2017","Х","Х","Х","Х","Х","Х",26,36,"Х","Х","Х","Х","Х","Х","Х","Х","Х"]
["1.8-ПП10","Показатель  «Численность волонтеров (добровольцев), оказывающих услуги воспитанникам и выпускникам детского дома-интерната для умственно отсталых детей»","чел.","Х","Абсолютный показатель","2016-2017","Х","Х","Х","Х","Х","Х",1,3,"Х","Х","Х","Х","Х","Х","Х","Х","Х"]
["1.8-ПП11","Показатель «Численность самостоятельно проживающих выпускников детского дома-интерната, охваченных службами сопровождения в общей численности  детьми-инвалидами»","чел.","Х","Абсолютный показатель","2016-2017","Х","Х","Х","Х","Х","Х",20,40,"Х","Х","Х","Х","Х","Х","Х","Х","Х"]
["1.8-ПП12","Показатель «Численность специалистов, занимающихся проблемами детей-инвалидов с ментальными нарушениями, повысивших уровень профессиональных компетенций»","чел.","Х","Абсолютный показатель","2016-2017","Х","Х","Х","Х","Х","Х",37,50,"Х","Х","Х","Х","Х","Х","Х","Х","Х"]
["1.8-ПП13","Показатель «Доля детей-инвалидов, состоящих на учете в региональной базе данных детей-инвалидов, от общей численности детей-инвалидов проживающих на территории края»","чел.","Х","Абсолютный показатель","2016-2017","Х","Х","Х","Х",{"$f":"K931","v":"Х"},{"$f":"L931","v":"Х"},31,37,"Х","Х","Х","Х","Х","Х","Х","Х","Х"]
["1.8-ПП14","Показатель «Доля услуг, предоставленных детям-инвалидам, учтенных в базе данных АС АСП, от общего количества предоставленных услуг»","%","Х","Ди/Дио*100,                                                                   где: Ди - численность детей-инвалидов, состоящих на учете в региональной базе данных; Дио - общая численность детей-инвалидов, проживающих на территории края.","2016-2017","Х","Х","Х","Х",{"$f":"K932","v":"Х"},{"$f":"L932","v":"Х"},85,90,"Х","Х","Х","Х","Х","Х","Х","Х","Х"]
["1.8-ПП15","Показатель «Численность граждан, информированных о детях-инвалидах с ментальными нарушениями»","%","Х","У ди/Уо*100, где: Уди - количество услуг, предоставленных детям-инвалидам, учтенным в базе данных; Уо - всего предоставлено услуг.","2016-2017","Х","Х","Х","Х","Х","Х",70,100,"Х","Х","Х","Х","Х","Х","Х","Х","Х"]
["1.8.1.","Основное мероприятие «Развитие системы реабилитации детей-инвалидов в государственных стационарных учреждениях социального обслуживания»","чел.","Х","Абсолютный показатель","2016-2017","Министерство труда и социальной защиты  населения Забайкальского края, ГСУСО «Петровск-Забайкальский детский дом-интернат для умственно отсталых детей» Забайкальского края","Х","Х","Х",{"$f":"K934","v":"Х"},{"$f":"L934","v":"Х"},1750,3500,"Х","Х","Х","Х","Х","Х","Х","Х","Х"]
[null,"финансирование за счет краевого бюджета","Х",0.2,"Х","Х","Х","Х","Х","Х",{"$f":"K932","v":"Х"},{"$f":"L932","v":"Х"},"Х","Х","Х","Х","Х","Х","Х","Х","Х","Х","Х"]
[null,"кроме того, финансирование из других источников:","тыс. рублей","Х","Х","Х","Х","  1002","5089900","611","Х","Х",{"$f":"M928+M932+M936+M940+M945+M949","v":10449.423999999999},{"$f":"N928+N932+N936+N940+N945+N949","v":10842.380000000001},"Х","Х","Х","Х","Х","Х","Х","Х",{"$f":"SUM(L922:S922)","v":21291.804}]
[null," - из Фонда","тыс. рублей","Х","Х","Х","Х","Х","Х","Х","Х","Х",0,0,"Х","Х","Х","Х","Х","Х","Х","Х",{"$f":"SUM(L923:S923)","v":0}]
[null," - из внебюджетных источников","тыс. рублей","Х","Х","Х","Х","Х","Х","Х","Х","Х",{"$f":"M930+M934+M938+M942+M947+M951","v":4321.2560000000003},{"$f":"N930+N934+N938+N942+N947+N951","v":2466.7199999999998},"Х","Х","Х","Х","Х","Х","Х","Х",{"$f":"SUM(L924:S924)","v":6787.9760000000006}]
["1.8.1-ПОМ1","Показатель «Степень охвата муниципальных районов, муниципальных и городских округов Забайкальского края деятельностью организаций, занимающихся сопровождением несовершеннолетних, вступивших в конфликт с законом, а также несовершеннолетних, отбывающих или отбывших наказание в местах лишения и ограничения свободы»","тыс. рублей","Х","Х","Х","Х","Х","Х","Х","Х","Х","Х","Х","Х","Х","Х","Х","Х","Х","Х","Х","Х"]
["1.8.1.1.","Мероприятие «Реализация технологии выявления детей-инвалидов, проживающих в доме-интернате для умственно отсталых детей, имеющих потенциал для дальнейшего самостоятельного проживания»","%",null,"МРГОс / МРГО * 100, где:\nМРГОс - количество муниципальных районов, муниципальных и городских округов, в которых действуют организации, занимающиеся сопровождением несовершеннолетних;\nМРГО - общее количество муниципальных районов и городских округов, в которых требуется проведение такой работы.","2016-2017","Министерство труда и социальной защиты  населения Забайкальского края, ГСУСО «Петровск-Забайкальский детский дом-интернат для умственно отсталых детей\" Забайкальского края","Х","Х","Х",100,100,"Х","Х","Х","Х","Х","Х","Х","Х","Х","Х","Х"]
[null,"финансирование за счет краевого бюджета","Х","Х","Х","Х","Х","Х","Х","Х","Х","Х",null,null,"Х","Х","Х","Х","Х","Х","Х","Х","Х"]
[null,"кроме того, финансирование из других источников:","тыс. рублей","Х","Х","Х","Х","Х","Х","Х","Х","Х",412.97,268.33,"Х","Х","Х","Х","Х","Х","Х","Х",{"$f":"SUM(L928:S928)","v":681.3}]
[null," - из Фонда","тыс. рублей","Х","Х","Х","Х","Х","Х","Х","Х","Х",0,0,"Х","Х","Х","Х","Х","Х","Х","Х",{"$f":"SUM(L929:S929)","v":0}]
["1.8.1.2.","Мероприятие «Разработка и реализация индивидуальных программ подготовки детей-инвалидов старше 14 лет, воспитывающихся в доме-интернате для умственно отсталых детей, к самостоятельной жизни вне интернатного учреждения»","тыс. рублей","Х","Х","2016-2017","Министерство труда и социальной защиты  населения Забайкальского края, ГСУСО «Петровск-Забайкальский детский дом-интернат для умственно отсталых детей» Забайкальского края","Х","Х","Х",null,null,176.99,0,"Х","Х","Х","Х","Х","Х","Х","Х",{"$f":"SUM(L930:S930)","v":176.99}]
[null,"финансирование за счет краевого бюджета","Х","Х","Х","Х","Х","Х","Х","Х","Х","Х",0,0,"Х","Х","Х","Х","Х","Х","Х","Х","Х"]
[null,"кроме того, финансирование из других источников:","тыс. рублей","Х","Х",null,null,"Х","Х","Х","Х","Х",246.5,258.5,"Х","Х","Х","Х","Х","Х","Х","Х",{"$f":"SUM(L932:S932)","v":505}]
[null," - из Фонда",null,null,null,"Х","Х","Х","Х","Х","Х","Х",0,0,"Х","Х","Х","Х","Х","Х","Х","Х",{"$f":"SUM(L933:S933)","v":0}]
["1.8.1.3.","Мероприятие «Ознакомление  детей-инвалидов старше 14 лет с их правами и обязанностями в социально-трудовой сфере и в части содержания жилого помещения, формирование у них навыков правильного коммуникативного и поло-ролевого поведения, необходимых для самостоятельного проживания»","тыс. рублей","Х","Х","2016-2017","Министерство труда и социальной защиты  населения Забайкальского края, ГСУСО «Петровск-Забайкальский детский дом-интернат для умственно отсталых детей» Забайкальского края","Х","Х","Х","Х","Х",0,0,"Х","Х","Х","Х","Х","Х","Х","Х",{"$f":"SUM(L934:S934)","v":0}]
[null,"финансирование за счет краевого бюджета","Х","Х","Х","Х","Х","Х","Х","Х","Х","Х","Х","Х","Х","Х","Х","Х","Х","Х","Х","Х","Х"]
[null,"кроме того, финансирование из других источников:","тыс. рублей","Х","Х","Х","Х","Х","Х","Х","Х","Х",120,140,"Х","Х","Х","Х","Х","Х","Х","Х",{"$f":"SUM(L936:S936)","v":260}]
[null," - из Фонда","тыс. рублей","Х","Х","Х","Х","Х","Х","Х","Х","Х",0,0,"Х","Х","Х","Х","Х","Х","Х","Х",{"$f":"SUM(L937:S937)","v":0}]
["1.8.1.4.","Мероприятие «Развитие системы реабилитации в детском доме-интернате для умственно отсталых детей посредством разработки и реализации инновационных программ социально-бытовой ориентации, социально-бытовой адаптации, психолого-педагогической помощи, предпрофессиональной подготовки»\nВнедрение технологии «Реабилитация особого ребенка»\n","тыс. рублей","Х","Х","2016-2017","Министерство труда и социальной защиты  населения Забайкальского края, ГСУСО «Петровск-Забайкальский детский дом-интернат для умственно отсталых детей» Забайкальского края","Х","Х","Х","Х","Х",0,0,"Х","Х","Х","Х","Х","Х","Х","Х",{"$f":"SUM(L938:S938)","v":0}]
[null,"финансирование за счет краевого бюджета","Х","Х","Х","Х","Х","Х","Х","Х","Х","Х",0,0,"Х","Х","Х","Х","Х","Х","Х","Х",0]
[null,"кроме того, финансирование из других источников:","тыс. рублей","Х","Х","Х","Х","Х","Х","Х","Х","Х",1544.9,2347.1,"Х","Х","Х","Х","Х","Х","Х","Х",{"$f":"SUM(L940:S940)","v":3892}]
[null," - из Фонда","тыс. рублей","Х","Х","Х","Х","Х","Х","Х","Х","Х",0,0,"Х","Х","Х","Х","Х","Х","Х","Х",0]
[null," - из внебюджетных источников","тыс. рублей","Х","Х","Х","Х","Х","Х","Х","Х","Х",662.1,470.94,"Х","Х","Х","Х","Х","Х","Х","Х",1133.04]
["1.8.1.5.","Мероприятие «Внедрение инновационных технологий социокультурной реабилитации воспитанников детского дома-интерната,  а также самостоятельно проживающих выпускников дома-интерната – обеспечение их участия в массовых культурных, благотворительных, спортивных и  других мероприятиях»\n","тыс. рублей","Х","Х","2016-2017","Министерство труда и социальной защиты  населения Забайкальского края, ГСУСО «Петровск-Забайкальский детский дом-интернат для умственно отсталых детей» Забайкальского края","Х","Х","Х","Х","Х",0,0,"Х","Х","Х","Х","Х","Х","Х","Х",0]
[null,"финансирование за счет краевого бюджета","Х","Х","Х","Х","Х","Х","Х","Х","Х","Х",0,0,"Х","Х","Х","Х","Х","Х","Х","Х",0]
[null,"кроме того, финансирование из других источников:","тыс. рублей","Х","Х","Х","Х","Х","Х","Х","Х","Х",4006.3330000000001,2042.75,"Х","Х","Х","Х","Х","Х","Х","Х",6049.0830000000005]
[null," - из Фонда","тыс. рублей","Х","Х","Х","Х","Х","Х","Х","Х","Х",0,0,"Х","Х","Х","Х","Х","Х","Х","Х",0]
["1.8.1.6.","Мероприятие «Предварительная адаптация выпускников дома-интерната для умственно отсталых детей к самостоятельному проживанию посредством разработки и внедрения индивидуально ориентированных программ:\n1) «Адаптация молодых инвалидов к самостоятельному проживанию в сельском поселении»;\n2) «Адаптация молодых инвалидов к самостоятельному проживанию в городских условиях», \nнаправленных на развитие и закрепление навыков трудового взаимодействия, самообслуживания, а также максимальное развитие у них индивидуально-личностных качеств, необходимых для самостоятельного проживания»\n","тыс. рублей","Х","Х","2016-2017","Министерство труда и социальной защиты  населения Забайкальского края, ГСУСО «Петровск-Забайкальский детский дом-интернат для умственно отсталых детей» Забайкальского края, ГАУСО «Атамановский дом-интернат для престарелых и инвалидов» Забайкальского края, ГАУСО «Читинский психоневрологический дом-интернат» Забайкальского края","Х","Х","Х","Х","Х",1717,0,"Х","Х","Х","Х","Х","Х","Х","Х",1717]
[null,"финансирование за счет краевого бюджета","Х","Х","Х","Х",null,"Х","Х","Х","Х","Х",0,0,"Х","Х","Х","Х","Х","Х","Х","Х",0]
[null,"кроме того, финансирование из других источников:","тыс. рублей","Х","Х","Х",null,"Х","Х","Х","Х","Х",4118.7209999999995,5785.7,"Х","Х","Х","Х","Х","Х","Х","Х",{"$f":"SUM(L949:S949)","v":9904.4209999999985}]
[null," - из Фонда","Х","Х","Х","Х",null,"Х","Х","Х","Х","Х",0,0,"Х","Х","Х","Х","Х","Х","Х","Х",{"$f":"SUM(L950:S950)","v":0}]
["1.8.2.","Основное мероприятие «Внедрение форм жизнеустройства выпускников детского дома-интерната для умственно отсталых детей; обеспечение доступными и приспособленными для самостоятельного проживания жилыми помещениями»","тыс. рублей","Х","Х","2016-2017","Министерство труда и социальной защиты  населения Забайкальского края, ГСУСО «Петровск-Забайкальский детский дом-интернат для умственно отсталых детей» Забайкальского края","Х","Х","Х","Х","Х",1765.1659999999999,1995.78,"Х","Х","Х","Х","Х","Х","Х","Х",{"$f":"SUM(L951:S951)","v":3760.9459999999999}]
[null,"финансирование за счет краевого бюджета","Х",0.2,"Х","Х","Х","Х","Х","Х","Х","Х","Х","Х","Х","Х","Х","Х","Х","Х","Х","Х","Х"]
[null,"кроме того, финансирование из других источников:","тыс. рублей","Х","Х","Х","Х","Х","Х","Х","Х","Х",{"$f":"M957+M961+M965","v":1548.433},{"$f":"N957+N961+N965","v":4945.3999999999996},"Х","Х","Х","Х","Х","Х","Х","Х",{"$f":"SUM(L953:S953)","v":6493.8329999999996}]
[null," - из Фонда","тыс. рублей","Х","Х","Х","Х","Х","Х","Х","Х","Х",0,0,"Х","Х","Х","Х","Х","Х","Х","Х",{"$f":"SUM(L954:S954)","v":0}]
["1.8.2.1.","Мероприятие «Развитие форм жизнеустройства воспитанников детского дома-интерната для умственно отсталых детей»","тыс. рублей","Х","Х","2016-2017","Министерство труда и социальной защиты  населения Забайкальского края, ГСУСО «Петровск-Забайкальский детский дом-интернат для умственно отсталых детей» Забайкальского края","Х","Х","Х","Х","Х",{"$f":"M963+M967","v":574.9},{"$f":"N963+N967","v":0},"Х","Х","Х","Х","Х","Х","Х","Х",{"$f":"SUM(L955:S955)","v":574.9}]
[null,"финансирование за счет краевого бюджета","Х","Х","Х","Х","Х","Х","Х","Х","Х","Х","Х","Х","Х","Х","Х","Х","Х","Х","Х","Х","Х"]
[null,"кроме того, финансирование из других источников:","тыс. рублей","Х","Х","Х","Х","Х","Х","Х","Х","Х",207,220.5,"Х","Х","Х","Х","Х","Х","Х","Х",{"$f":"SUM(L957:S957)","v":427.5}]
[null," - из Фонда","тыс. рублей","Х","Х","Х","Х","Х","Х","Х","Х","Х",0,0,"Х","Х","Х","Х","Х","Х","Х","Х",{"$f":"SUM(L958:S958)","v":0}]
["1.8.2.2.","Мероприятие «Реализация плотного проекта по внедрению апробированной ранее технологии обеспечения постинтернатного жизнеустройства выпускников детского дома-интерната - создание двух дополнительных социальных комплексов для независимого и самостоятельного проживания выпускников (мест компактного проживания выпускников детского дома-интерната для умственно отсталых детей)»","тыс. рублей","Х","Х","2016-2017","Министерство труда и социальной защиты  населения Забайкальского края, ГАУСО «Первомайский психоневрологический дом-интернат» Забайкальского края, ГАУСО «Атамановский дом-интернат для престарелых и инвалидов» Забайкальского края, ГАУСО «Петровск-Забайкальский комплексный центр социального обслуживания «Ветеран» Забайкальского края","Х","Х","Х","Х","Х",0,0,"Х","Х","Х","Х","Х","Х","Х","Х",{"$f":"SUM(L959:S959)","v":0}]
[null,"финансирование за счет краевого бюджета","Х","Х","Х","Х","Х","Х","Х","Х","Х","Х","Х","Х","Х","Х","Х","Х","Х","Х","Х","Х","Х"]
[null,"кроме того, финансирование из других источников:","тыс. рублей","Х","Х","Х","Х","Х","Х","Х","Х","Х",1341.433,4724.8999999999996,"Х","Х","Х","Х","Х","Х","Х","Х",{"$f":"SUM(L961:S961)","v":6066.3329999999996}]
[null," - из Фонда","тыс. рублей","Х","Х","Х","Х","Х","Х","Х","Х","Х",0,0,"Х","Х","Х","Х","Х","Х","Х","Х",{"$f":"SUM(L962:S962)","v":0}]
["1.8.2.3.","Мероприятие «Предоставление (содействие в приобретении) жилых помещений выпускникам детского дома-интерната для умственно отсталых детей, предназначенных для их самостоятельного проживания»","тыс. рублей","Х","Х","2016-2017","Министерство труда и социальной защиты  населения Забайкальского края, ГАУСО «Первомайский психоневрологический дом-интернат» Забайкальского края, ГАУСО «Атамановский дом-интернат для престарелых и инвалидов» Забайкальского края, ГАУСО «Петровск-Забайкальский комплексный центр социального обслуживания «Ветеран» Забайкальского края,ГСУСО «Петровск-Забайкальский детский дом-интернат для умственно отсталых детей» Забайкальского края","Х","Х","Х","Х","Х",574.9,0,"Х","Х","Х","Х","Х","Х","Х","Х",{"$f":"SUM(L963:S963)","v":574.9}]
[null,"финансирование за счет краевого бюджета","Х","Х","Х","Х","Х","Х","Х","Х","Х","Х","Х","Х","Х","Х","Х","Х","Х","Х","Х","Х","Х"]
[null,"кроме того, финансирование из других источников:","тыс. рублей","Х","Х","Х","Х","Х","Х","Х","Х","Х",0,0,"Х","Х","Х","Х","Х","Х","Х","Х","Х"]
[null," - из Фонда","тыс. рублей","Х","Х","Х","Х","Х","Х","Х","Х","Х",0,0,"Х","Х","Х","Х","Х","Х","Х","Х",{"$f":"SUM(L966:S966)","v":0}]
["1.8.3.","Основное мероприятие «Создание специальных рабочих мест для выпускников дома-интерната для умственно отсталых детей, адаптированных к пребыванию в социуме, и организация сопровождения выпускников по месту работы и проживания»","тыс. рублей","Х","Х","2016-2017","Министерство труда и социальной защиты  населения Забайкальского края, ГАУСО «Первомайский психоневрологический дом-интернат» Забайкальского края, ГАУСО «Атамановский дом-интернат для престарелых и инвалидов» Забайкальского края, ГАУСО «Петровск-Забайкальский комплексный центр социального обслуживания «Ветеран\" Забайкальского края,ГСУСО «Петровск-Забайкальский детский дом-интернат для умственно отсталых детей» Забайкальского края","Х","Х","Х","Х","Х",0,0,"Х","Х","Х","Х","Х","Х","Х","Х","Х"]
[null,"финансирование за счет краевого бюджета","Х",0.2,"Х","Х","Х","Х","Х","Х","Х","Х","Х","Х","Х","Х","Х","Х","Х","Х","Х","Х","Х"]
[null,"кроме того, финансирование из других источников:","тыс. рублей","Х","Х","Х","Х","Х","Х","Х","Х","Х",{"$f":"M974+M982+M978+M986","v":2743.4259999999999},{"$f":"N974+N982+N978+N986","v":7377.2000000000007},"Х","Х","Х","Х","Х","Х","Х","Х",{"$f":"SUM(L969:S969)","v":10120.626}]
[null," - из Фонда","тыс. рублей","Х","Х","Х","Х","Х","Х","Х","Х","Х",0,0,"Х","Х","Х","Х","Х","Х","Х","Х",{"$f":"SUM(L970:S970)","v":0}]
[null," - из Фонда","тыс. рублей","Х","Х","Х","Х","Х","Х","Х","Х","Х",{"$f":"M976+M980+M984+M988","v":1099.3399999999999},{"$f":"N976+N980+N984+N988","v":680.2},"Х","Х","Х","Х","Х","Х","Х","Х",{"$f":"SUM(L971:S971)","v":1779.54}]
["1.8.3.1.","Мероприятие «Реализация программ профессиональной ориентации и предпрофессиональной подготовки воспитанников детского дома-интерната для умственно отсталых детей»","тыс. рублей","Х","Х","2016-2017","Министерство труда и социальной защиты  населения Забайкальского края, ГСУСО «Петровск-Забайкальский детский дом-интернат для умственно отсталых детей» Забайкальского края","Х","Х","Х","Х","Х",0,0,"Х","Х","Х","Х","Х","Х","Х","Х",{"$f":"SUM(L972:S972)","v":0}]
[null,"финансирование за счет краевого бюджета","Х","Х","Х","Х","Х","Х","Х","Х","Х","Х","Х","Х","Х","Х","Х","Х","Х","Х","Х","Х","Х"]
[null,"кроме того, финансирование из других источников:","тыс. рублей","Х","Х","Х","Х","Х","Х","Х","Х","Х",152.833,676.6,"Х","Х","Х","Х","Х","Х","Х","Х",{"$f":"SUM(L974:S974)","v":829.43299999999999}]
[null," - из Фонда","тыс. рублей","Х","Х","Х","Х","Х","Х","Х","Х","Х",0,0,"Х","Х","Х","Х","Х","Х","Х","Х",0]
["1.8.3.2.","Мероприятие «Реализация программ профессионально-трудовой реабилитации выпускников детского дома-интерната для умственно отсталых детей»","тыс.рублей","Х","Х","2016-2017","Министерство труда и социальной защиты  населения Забайкальского края, ГАУСО «Первомайский психоневрологический дом-интернат» Забайкальского края, ГАУСО «Атамановский дом-интернат для престарелых и инвалидов» Забайкальского края, ГАУСО «Петровск-Забайкальский комплексный центр социального обслуживания «Ветеран» Забайкальского края,ГСУСО «Петровск-Забайкальский детский дом-интернат для умственно отсталых детей» Забайкальского края, ГАУСО «Читинский психоневрологический дом-интернат» Забайкальского края","Х","Х","Х","Х","Х",65.5,290,"Х","Х","Х","Х","Х","Х","Х","Х",355.5]
[null,"финансирование за счет краевого бюджета","Х","Х","Х","Х","Х","Х","Х","Х","Х","Х","Х","Х","Х","Х","Х","Х","Х","Х","Х","Х",0]
[null,"кроме того, финансирование из других источников:","тыс. рублей","Х","Х","Х","Х","Х","Х","Х","Х","Х",2412.2930000000001,6510.6,"Х","Х","Х","Х","Х","Х","Х","Х",8922.893]
[null," - из Фонда","тыс. рублей","Х","Х","Х","Х","Х","Х","Х","Х","Х",0,0,"Х","Х","Х","Х","Х","Х","Х","Х",0]
["1.8.3.3.","Мероприятие «Совершенствование деятельности мультипрофессиональных бригад специалистов для координации медицинских, педагогических, психологических действий и социальной работы по подготовке детей-инвалидов к самостоятельной жизни по достижении 18 лет»","тыс. рублей","Х","Х","2016-2017","Министерство труда и социальной защиты  населения Забайкальского края, ГАУСО «Петровск-Забайкальский комплексный центр социального обслуживания «Ветеран» Забайкальского края,ГСУСО «Петровск-Забайкальский детский дом-интернат для умственно отсталых детей» Забайкальского края","Х","Х","Х","Х","Х",1033.8399999999999,390.2,"Х","Х","Х","Х","Х","Х","Х","Х",1424.04]
[null,"финансирование за счет краевого бюджета","Х","Х","Х","Х","Х","Х","Х","Х","Х","Х","Х","Х","Х","Х","Х","Х","Х","Х","Х","Х","Х"]
[null,"кроме того, финансирование из других источников:","тыс. рублей","Х","Х","Х","Х","Х","Х","Х","Х","Х",46.7,48,"Х","Х","Х","Х","Х","Х","Х","Х",{"$f":"SUM(L982:S982)","v":94.7}]
[null," - из Фонда","тыс. рублей","Х","Х","Х","Х","Х","Х","Х","Х","Х",0,0,"Х","Х","Х","Х","Х","Х","Х","Х",{"$f":"SUM(L983:S983)","v":0}]
["1.8.3.4.","Мероприятие «Организация социального сопровождения самостоятельно проживающих выпускников детского дома-интерната в рамках существующей Службы сопровождения инвалидов на территории Забайкальского края»","тыс. рублей","Х","Х","2016-2017","Министерство труда и социальной защиты  населения Забайкальского края, ГСУСО «Петровск-Забайкальский детский дом-интернат для умственно отсталых детей» Забайкальского края","Х","Х","Х","Х","Х",null,null,"Х","Х","Х","Х","Х","Х","Х","Х",{"$f":"SUM(L984:S984)","v":0}]
[null,"финансирование за счет краевого бюджета","Х","Х","Х","Х","Х","Х","Х","Х","Х","Х",0,0,"Х","Х","Х","Х","Х","Х","Х","Х","Х"]
[null,"кроме того, финансирование из других источников:","тыс. рублей","Х","Х","Х","Х","Х","Х","Х","Х","Х",131.6,142,"Х","Х","Х","Х","Х","Х","Х","Х",{"$f":"SUM(L986:S986)","v":273.60000000000002}]
[null," - из Фонда","тыс. рублей","Х","Х","Х","Х","Х","Х","Х","Х","Х",0,0,"Х","Х","Х","Х","Х","Х","Х","Х",{"$f":"SUM(L987:S987)","v":0}]
["1.8.4.","Основное мероприятие «Совершенствование организационно-методических основ социальной реабилитации детей-инвалидов с ментальными нарушениями, имеющих достаточный реабилитационный потенциал для самостоятельного проживания по достижении возраста 18 лет»","тыс.рублей","Х","Х","2016-2017","Министерство труда и социальной защиты  населения Забайкальского края, ГАУСО «Первомайский психоневрологический дом-интернат» Забайкальского края, ГАУСО «Атамановский дом-интернат для престарелых и инвалидов» Забайкальского края, ГАУСО «Петровск-Забайкальский комплексный центр социального обслуживания «Ветеран» Забайкальского края, ГСУСО «Петровск-Забайкальский детский дом-интернат для умственно отсталых детей» Забайкальского края","Х","Х","Х","Х","Х",0,0,"Х","Х","Х","Х","Х","Х","Х","Х",{"$f":"SUM(L988:S988)","v":0}]
[null,"финансирование за счет краевого бюджета","Х",0.2,"Х","Х","Х","Х","Х","Х","Х","Х","Х","Х","Х","Х","Х","Х","Х","Х","Х","Х","Х"]
[null,"кроме того, финансирование из других источников:","тыс. рублей","Х","Х","Х","Х","Х","Х","Х","Х","Х",{"$f":"M994+M998+M1002+M1006+M1010","v":4024.9069999999997},{"$f":"N994+N998+N1002+N1006+N1010","v":2705.83},"Х","Х","Х","Х","Х","Х","Х","Х",{"$f":"SUM(L990:S990)","v":6730.7369999999992}]
[null," - из Фонда","тыс. рублей","Х","Х","Х","Х","Х","Х","Х","Х","Х",0,0,"Х","Х","Х","Х","Х","Х","Х","Х",{"$f":"SUM(L991:S991)","v":0}]
["1.8.4.1.","Мероприятие «Проведение мониторинга качества жизни выпускников дома-интерната для умственно отсталых детей в течение первого года их самостоятельного проживания»","тыс. рублей","Х","Х","2016-2017","Министерство труда и социальной защиты  населения Забайкальского края","Х","Х","Х","Х","Х",{"$f":"M996+M1000+M1004+M1008+M1012","v":648.99},{"$f":"N996+N1000+N1004+N1008+N1012","v":547.5},"Х","Х","Х","Х","Х","Х","Х","Х",{"$f":"SUM(L992:S992)","v":1196.49}]
[null,"финансирование за счет краевого бюджета","Х","Х","Х","Х","Х","Х","Х","Х","Х","Х","Х","Х","Х","Х","Х","Х","Х","Х","Х","Х","Х"]
[null,"кроме того, финансирование из других источников:","тыс. рублей","Х","Х","Х","Х","Х","Х","Х","Х","Х",49,53.5,"Х","Х","Х","Х","Х","Х","Х","Х",{"$f":"SUM(L994:S994)","v":102.5}]
[null," - из Фонда","тыс. рублей","Х","Х","Х","Х","Х","Х","Х","Х","Х",0,0,"Х","Х","Х","Х","Х","Х","Х","Х",{"$f":"SUM(L995:S995)","v":0}]
["1.8.4.2.","Мероприятие «Формирование и ведение региональной информационной базы данных детей-инвалидов и граждан, осуществляющих уход за ними, в составе автоматизированной системы «Адресная социальная помощь» Министерства труда и  социальной защиты населения Забайкальского края; модернизация системы учета сведений о детях-инвалидах, семьях с детьми-инвалидами»","тыс. рублей","Х","Х","2016-2017","Министерство труда и социальной защиты  населения Забайкальского края","Х","Х","Х","Х","Х",0,0,"Х","Х","Х","Х","Х","Х","Х","Х",{"$f":"SUM(L996:S996)","v":0}]
[null,"финансирование за счет краевого бюджета","Х","Х","Х","Х","Х","Х","Х","Х","Х","Х","Х","Х","Х","Х","Х","Х","Х","Х","Х","Х","Х"]
[null,"кроме того, финансирование из других источников:","тыс. рублей","Х","Х","Х","Х","Х","Х","Х","Х","Х",2251.6,200.33,"Х","Х","Х","Х","Х","Х","Х","Х",{"$f":"SUM(L998:S998)","v":2451.9299999999998}]
[null," - из Фонда","тыс. рублей","Х","Х","Х","Х","Х","Х","Х","Х","Х",0,0,"Х","Х","Х","Х","Х","Х","Х","Х",{"$f":"SUM(L999:S999)","v":0}]
["1.8.4.3.","Мероприятие «Формирование банка технологий и методик работы по организации системной помощи, абилитации и реабилитации детей-инвалидов, воспитывающихся в детском доме-интернате для умственно отсталых детей»","тыс. рублей","Х","Х","2016-2017","Министерство труда и социальной защиты  населения Забайкальского края,  ГАУСО «Петровск-Забайкальский комплексный центр социального обслуживания «Ветеран» Забайкальского края,ГСУСО «Петровск-Забайкальский детский дом-интернат для умственно отсталых детей» Забайкальского края, ГСУСО «Центр медикосоциальной реабилитации «Росток» Забайкальского края","Х","Х","Х","Х","Х",0,0,"Х","Х","Х","Х","Х","Х","Х","Х",{"$f":"SUM(L1000:S1000)","v":0}]
[null,"финансирование за счет краевого бюджета","Х","Х","Х","Х","Х","Х","Х","Х","Х","Х","Х","Х","Х","Х","Х","Х","Х","Х","Х","Х","Х"]
[null,"кроме того, финансирование из других источников:","тыс. рублей","Х","Х","Х","Х","Х","Х","Х","Х","Х",260.14,801.5,"Х","Х","Х","Х","Х","Х","Х","Х",{"$f":"SUM(L1002:S1002)","v":1061.6399999999999}]
[null," - из Фонда","тыс. рублей","Х","Х","Х","Х","Х","Х","Х","Х","Х",0,0,"Х","Х","Х","Х","Х","Х","Х","Х",{"$f":"SUM(L1003:S1003)","v":0}]
["1.8.4.4.","Мероприятие «Организация на базе Министерства  труда и социальной защиты населения Забайкальского края постоянно действующего методического семинара для специалистов, занимающихся проблемами детей-инвалидов, детей с ограниченными возможностями здоровья»","тыс. рублей","Х","Х","2016-2017","Министерство труда и социальной защиты  населения Забайкальского края","Х","Х","Х","Х","Х",111.49,0,"Х","Х","Х","Х","Х","Х","Х","Х",{"$f":"SUM(L1004:S1004)","v":111.49}]
[null,"финансирование за счет краевого бюджета","Х","Х","Х","Х","Х","Х","Х","Х","Х","Х","Х","Х","Х","Х","Х","Х","Х","Х","Х","Х","Х"]
[null,"кроме того, финансирование из других источников:","тыс. рублей","Х","Х","Х","Х","Х","Х","Х","Х","Х",210,220.5,"Х","Х","Х","Х","Х","Х","Х","Х",{"$f":"SUM(L1006:S1006)","v":430.5}]
[null," - из Фонда","тыс. рублей","Х","Х","Х","Х","Х","Х","Х","Х","Х",0,0,"Х","Х","Х","Х","Х","Х","Х","Х",{"$f":"SUM(L1007:S1007)","v":0}]
["1.8.4.5.","Мероприятие «Повышение профессиональных компетенций специалистов, участвующих в реализации программы»","тыс. рублей","Х","Х","2016-2017","Министерство труда и социальной защиты  населения Забайкальского края","Х","Х","Х","Х","Х",0,0,"Х","Х","Х","Х","Х","Х","Х","Х",{"$f":"SUM(L1008:S1008)","v":0}]
[null,"финансирование за счет краевого бюджета","Х","Х","Х","Х","Х","Х","Х","Х","Х","Х","Х","Х","Х","Х","Х","Х","Х","Х","Х","Х","Х"]
[null,"кроме того, финансирование из других источников:","тыс. рублей","Х","Х","Х","Х","Х","Х","Х","Х","Х",1254.1669999999999,1430,"Х","Х","Х","Х","Х","Х","Х","Х",{"$f":"SUM(L1010:S1010)","v":2684.1669999999999}]
[null," - из Фонда","тыс. рублей","Х","Х","Х","Х","Х","Х","Х","Х","Х",0,0,"Х","Х","Х","Х","Х","Х","Х","Х",{"$f":"SUM(L1011:S1011)","v":0}]
["1.8.5.","Основное мероприятие «Развитие социального партнерства, привлечение различных организаций к сопровождению воспитанников и выпускников детского дома-интерната для умственно отсталых детей»","тыс. рублей","Х","Х","2016-2017","Министерство труда и социальной защиты  населения Забайкальского края, ГАУСО «Петровск-Забайкальский комплексный центр социального обслуживания «Ветеран» Забайкальского края, ГСУСО «Петровск-Забайкальский детский дом-интернат для умственно отсталых детей» Забайкальского края","Х","Х","Х","Х","Х",537.5,547.5,"Х","Х","Х","Х","Х","Х","Х","Х",{"$f":"SUM(L1012:S1012)","v":1085}]
[null,"финансирование за счет краевого бюджета","Х",0.1,"Х","Х","Х","Х","Х","Х","Х","Х","Х","Х","Х","Х","Х","Х","Х","Х","Х","Х","Х"]
[null,"кроме того, финансирование из других источников:","тыс. рублей","Х","Х","Х","Х","Х","Х","Х","Х","Х",{"$f":"M1018+M1022","v":0},{"$f":"N1018+N1022","v":0},"Х","Х","Х","Х","Х","Х","Х","Х",{"$f":"SUM(L1014:S1014)","v":0}]
[null," - из Фонда","тыс. рублей","Х","Х","Х","Х","Х","Х","Х","Х","Х",0,0,"Х","Х","Х","Х","Х","Х","Х","Х",{"$f":"SUM(L1015:S1015)","v":0}]
["1.8.5.1.","Мероприятие «Привлечение муниципальных учреждений, предприятий, некоммерческих организаций к социальным акциям («Соберем детей в школу», «День защиты детей» и другие) в помощь воспитанникам и выпускникам детского дома-интерната для умственно отсталых детей»","тыс. рублей",null,"Х","2016-2017","Министерство труда и социальной защиты  населения Забайкальского края, ГАУСО «Петровск-Забайкальский комплексный центр социального обслуживания «Ветеран» Забайкальского края, ГСУСО «Петровск-Забайкальский детский дом-интернат для умственно отсталых детей» Забайкальского края","Х","Х","Х","Х","Х",{"$f":"M1020+M1024","v":0},{"$f":"N1020+N1024","v":0},"Х","Х","Х","Х","Х","Х","Х","Х",{"$f":"SUM(L1016:S1016)","v":0}]
[null,"финансирование за счет краевого бюджета","Х","Х","Х","Х","Х","Х","Х","Х","Х","Х","Х","Х","Х","Х","Х","Х","Х","Х","Х","Х","Х"]
[null,"кроме того, финансирование из других источников:","тыс. рублей","Х","Х","Х","Х","Х","Х","Х","Х","Х",0,0,"Х","Х","Х","Х","Х","Х","Х","Х",{"$f":"SUM(L1018:S1018)","v":0}]
[null," - из Фонда","тыс. рублей","Х","Х","Х","Х","Х","Х","Х","Х","Х",0,0,"Х","Х","Х","Х","Х","Х","Х","Х",{"$f":"SUM(L1019:S1019)","v":0}]
["1.8.5.2.","Мероприятие «Поддержка общественных инициатив, направленных на улучшение положения выпускников детского дома-интерната для умственно отсталых детей»","тыс. рублей","Х","Х","2016-2017","Министерство труда и социальной защиты  населения Забайкальского края, ГАУСО «Петровск-Забайкальский комплексный центр социального обслуживания «Ветеран» Забайкальского края, ГСУСО «Петровск-Забайкальский детский дом-интернат для умственно отсталых детей» Забайкальского края","Х","Х","Х","Х","Х",0,0,"Х","Х","Х","Х","Х","Х","Х","Х",{"$f":"SUM(L1020:S1020)","v":0}]
[null,"финансирование за счет краевого бюджета","Х","Х","Х","Х","Х","Х","Х","Х","Х","Х","Х","Х","Х","Х","Х","Х","Х","Х","Х","Х","Х"]
[null,"кроме того, финансирование из других источников:","тыс. рублей","Х","Х","Х","Х","Х","Х","Х","Х","Х",0,0,"Х","Х","Х","Х","Х","Х","Х","Х",{"$f":"SUM(L1022:S1022)","v":0}]
[null," - из Фонда","тыс. рублей","Х","Х","Х","Х","Х","Х","Х","Х","Х",0,0,"Х","Х","Х","Х","Х","Х","Х","Х",{"$f":"SUM(L1023:S1023)","v":0}]
["1.8.6.","Основное мероприятие «Информационное освещение в СМИ хода реализации подпрограммы»","тыс. рублей","Х","Х","2016-2017","Министерство труда и социальной защиты  населения Забайкальского края, ГСУСО «Петровск-Забайкальский детский дом-интернат для умственно отсталых детей» Забайкальского края","Х","Х","Х","Х","Х",0,0,"Х","Х","Х","Х","Х","Х","Х","Х",{"$f":"SUM(L1024:S1024)","v":0}]
[null,"финансирование за счет краевого бюджета","Х",0.1,"Х","Х","Х","Х","Х","Х","Х","Х","Х","Х","Х","Х","Х","Х","Х","Х","Х","Х","Х"]
[null,"кроме того, финансирование из других источников:","тыс. рублей","Х","Х","Х","Х","Х","Х","Х","Х","Х",0,0,"Х","Х","Х","Х","Х","Х","Х","Х",{"$f":"SUM(L1026:S1026)","v":0}]
[null," - из Фонда","тыс. рублей","Х","Х","Х","Х","Х","Х","Х","Х","Х",0,0,"Х","Х","Х","Х","Х","Х","Х","Х",{"$f":"SUM(L1027:S1027)","v":0}]
["1.9.","Подпрограмма 9  «Новая семья»","тыс. рублей","Х","Х","2014-2015","Министерство труда и социальной защиты  населения Забайкальского края;\nГосударственные учреждения социального обслуживания (социально-реабилитационные центры, центры помощи детям, оставшимся без попечения родителей, комплексные центры социального обслуживания населения);\nГАУ «Институт переподготовки и повышения квалификации руководящих кадров и специалистов системы социальной защиты населения государственных учреждений социального обслуживания города Москвы»; (по согласованию)\nАссоциация государственных учреждений социального обслуживания Забайкальского края «Содружество»;(по согласованию)\nЗабайкальская региональная общественная организация «Ассоциация работников социальных служб»(по согласованию)\n","Х","Х","Х","Х","Х",0,0,"Х","Х","Х","Х","Х","Х","Х","Х","Х"]
[null,"финансирование за счет краевого бюджета","Х",1,"Х","Х",null,"Х","Х","Х","Х","Х","Х","Х","Х","Х","Х","Х","Х","Х","Х","Х","Х"]
[null,"кроме того, финансирование из других источников:","тыс. рублей","Х","Х",null,"ВСЕГО","Х","Х","Х",{"$f":"K1042","v":"Х"},{"$f":"L1042","v":"Х"},{"$f":"M1042+M1082+M1095","v":23850},{"$f":"N1042+N1082+N1095","v":23840},"Х","Х","Х","Х","Х","Х","Х","Х",{"$f":"SUM(L1030:S1030)","v":47690}]
[null," - из Фонда ","тыс. рублей","Х","Х","Х","Х","Х","Х","Х","Х","Х",0,0,"Х","Х","Х","Х","Х","Х","Х","Х",{"$f":"SUM(L1031:S1031)","v":0}]
[null," - из внебюджетных источников","тыс. рублей","Х","Х","Х","Х","Х","Х","Х",{"$f":"K1044","v":"Х"},{"$f":"L1044","v":"Х"},0,0,"Х","Х","Х","Х","Х","Х","Х","Х",{"$f":"SUM(L1032:S1032)","v":0}]
["1.9-ПП1","Показатель «Численность детей в региональном банке данных о детях, оставшихся без попечения родителей и нуждающихся в устройстве в семьи»","тыс. рублей","Х","Х","Х","Х","Х","Х","Х",{"$f":"K1045","v":"Х"},{"$f":"L1045","v":"Х"},{"$f":"M1045+M1085","v":50},{"$f":"N1045+N1085","v":50},"Х","Х","Х","Х","Х","Х","Х","Х",{"$f":"SUM(L1033:S1033)","v":100}]
["1.9-ПП2","Показатель «Доля кандидатов в приемные родители, принявших на воспитание детей-сирот и детей, оставшихся без попечения родителей, в общей численности подготовленных кандидатов в приемные родители»","чел.","Х","Абсолютный показатель","Х","Х","Х","Х","Х","Х","Х",1901,1331,"Х","Х","Х","Х","Х","Х","Х","Х","Х"]
["1.9-ПП3","Показатель «Доля граждан, восстановленных в родительских правах или с которых снято ограничение в родительских правах от общего количества граждан лишенных родительских прав или  ограниченных в родительских правах»","%","Х","К/ К п *100, где:\nК - количество приемных родители, принявших на воспитание детей-сирот и  детей, оставшихся без попечения родителей;\nКп - общая численность подготовленных кандидатов в приемные родители.","Х","Х","Х","Х","Х","Х","Х",80,85,"Х","Х","Х","Х","Х","Х","Х","Х","Х"]
["1.9-ПП4","Показатель «Количество служб подготовки кандидатов в приемные родители и сопровождения замещающих семей»","%","Х","Н / Н *100, где:\nНвп - количество граждан восстановленных в родительских правах;\nНлп - общая численность лишенных родительских прав или  ограниченных в родительских правах.","Х","Х","Х","Х","Х","Х","Х",10,15,"Х","Х","Х","Х","Х","Х","Х","Х","Х"]
["1.9-ПП5","Показатель «Доля специалистов школы подготовки приемных родителей и службы сопровождения замещающих семей (далее – Служба), прошедших обучение и повысивших квалификацию в рамках подпрограммы, от общего числа специалистов Службы»","ед.","Х","Абсолютный показатель","Х","Х","Х","Х","Х","Х","Х",15,24,"Х","Х","Х","Х","Х","Х","Х","Х","Х"]
["1.9-ПП6","Показатель «Удельный вес детей-сирот и детей, оставшихся без попечения родителей, переданных на воспитание в семьи, в общей численности детей-сирот и детей, оставшихся без попечения родителей»","%","Х","Дспк / До *100, где:\nДспк - численность специалистов  долю специалистов школы подготовки приемных родителей и службы сопровождения замещающих семей, прошедших обучение и повысивших квалификацию;\nДо - общая численность специалистов.","Х","Х","Х","Х","Х","Х","Х",45,85,"Х","Х","Х","Х","Х","Х","Х","Х","Х"]
["1.9-ПП7","Показатель «Численность детей, возвращенных в интернатные учреждения из замещающих семей»","%","Х","Ддсс/До*100, где: Ддсс-численность детей сирот, переданных на воспитание семьи (под безвозмездную опеку (попечительство), в приемные семьи, в патронатные семьи, на усыновление);Дсоб - общая численность детей-сирот и детей оставшихся без попечения родителей, на конец отчетного года.","Х","Х","Х","Х","Х","Х","Х",69,71,"Х","Х","Х","Х","Х","Х","Х","Х","Х"]
["1.9.1.","Основное мероприятие «Разработка  моделей служб семейных форм устройства детей-сирот и детей, оставшихся без попечения  родителей»","чел.","Х","Абсолютный показатель","2016-2017","Министерство труда и социальной защиты  населения Забайкальского края","Х","Х","Х","Х","Х",51,30,"Х","Х","Х","Х","Х","Х","Х","Х",{"$f":"SUM(L1040:S1040)","v":81}]
[null,"финансирование за счет краевого бюджета","Х",0.4,"Х","Х","Х","Х","Х","Х","Х","Х","Х","Х","Х","Х","Х","Х","Х","Х","Х","Х","Х"]
[null,"кроме того, финансирование из других источников:","тыс. рублей","Х","Х","Х","Х","Х","Х","Х","Х","Х",{"$f":"M1047+M1051+M1055+M1065+M1070+M1074+M1078+M1060","v":20750},{"$f":"N1047+N1051+N1055+N1065+N1070+N1074+N1078+N1060","v":23590},"Х","Х","Х","Х","Х","Х","Х","Х",{"$f":"SUM(L1042:S1042)","v":44340}]
[null," - из Фонда","тыс. рублей","Х","Х","Х","Х","Х","Х","Х","Х","Х",0,0,"Х","Х","Х","Х","Х","Х","Х","Х",{"$f":"SUM(L1043:S1043)","v":0}]
[null," - из внебюджетных источников","тыс. рублей","Х","Х","Х","Х","Х","Х","Х","Х","Х",{"$f":"M1049+M1057+M1067+M1072+M1076+M1062","v":5755},{"$f":"N1049+N1057+N1067+N1072+N1076+N1062","v":5240},"Х","Х","Х","Х","Х","Х","Х","Х",{"$f":"SUM(L1044:S1044)","v":10995}]
["1.9.1.1.","Мероприятие «Развитие семейных форм устройства детей-сирот и детей, оставшихся без попечения родителей»","тыс. рублей","Х","Х","2016-2017","Министерство труда и социальной защиты  населения Забайкальского края","Х","Х","Х","Х","Х",{"$f":"M1058+M1063","v":50},{"$f":"N1058+N1063","v":50},"Х","Х","Х","Х","Х","Х","Х","Х",{"$f":"SUM(L1045:S1045)","v":100}]
[null,"финансирование за счет краевого бюджета","Х","Х","Х","Х","Х","Х","Х","Х","Х","Х","Х","Х","Х","Х","Х","Х","Х","Х","Х","Х","Х"]
[null,"кроме того, финансирование из других источников:","тыс. рублей","Х","Х","Х","Х","Х","Х","Х","Х","Х",100,100,"Х","Х","Х","Х","Х","Х","Х","Х",{"$f":"SUM(L1047:S1047)","v":200}]
[null," - из Фонда","тыс. рублей","Х","Х","Х","Х","Х","Х","Х","Х","Х",0,0,"Х","Х","Х","Х","Х","Х","Х","Х",{"$f":"SUM(L1048:S1048)","v":0}]
["1.9.1.2.","Мероприятие «Создание и ведение реестра граждан, лишенных или ограниченных в родительских правах»","тыс. рублей","Х","Х","2016-2017","Министерство труда и социальной защиты  населения Забайкальского края, Служба судебных приставов","Х","Х","Х","Х","Х",0,0,"Х","Х","Х","Х","Х","Х","Х","Х",{"$f":"SUM(L1049:S1049)","v":0}]
[null,"финансирование за счет краевого бюджета","Х","Х","Х","Х","Х","Х","Х","Х","Х","Х","Х","Х","Х","Х","Х","Х","Х","Х","Х","Х","Х"]
[null,"кроме того, финансирование из других источников:","тыс. рублей","Х","Х","Х","Х","Х","Х","Х","Х","Х",150,150,"Х","Х","Х","Х","Х","Х","Х","Х",{"$f":"SUM(L1051:S1051)","v":300}]
[null," - из Фонда","тыс. рублей","Х","Х","Х","Х","Х","Х","Х","Х","Х",0,0,"Х","Х","Х","Х","Х","Х","Х","Х",{"$f":"SUM(L1052:S1052)","v":0}]
["1.9.1.3.","Мероприятие «Внедрение  технологии «Родительская гостиная» на базе ГУСО»","тыс. рублей","Х","Х","2016-2017","Министерство труда и социальной защиты  населения Забайкальского края,  ГУСО (по согласованию)","Х","Х","Х","Х","Х",0,0,"Х","Х","Х","Х","Х","Х","Х","Х",{"$f":"SUM(L1053:S1053)","v":0}]
[null,"финансирование за счет краевого бюджета","Х","Х","Х","Х","Х","Х","Х","Х","Х","Х","Х","Х","Х","Х","Х","Х","Х","Х","Х","Х","Х"]
[null,"кроме того, финансирование из других источников:","тыс. рублей","Х","Х","Х","Х","Х","Х","Х","Х","Х",1635,1635,"Х","Х","Х","Х","Х","Х","Х","Х",{"$f":"SUM(L1055:S1055)","v":3270}]
[null," - из Фонда","тыс. рублей","Х","Х","Х","Х","Х","Х","Х","Х","Х",0,0,{"$nulls":7},"Х",{"$f":"SUM(L1056:S1056)","v":0}]
[null," - из внебюджетных источников","тыс. рублей","Х","Х","Х","Х","Х","Х","Х","Х","Х",700,0,"Х","Х","Х","Х","Х","Х","Х","Х",{"$f":"SUM(L1057:S1057)","v":700}]
["1.9.1.4.","Мероприятие «Внедрение на базе ГУСО «Центр психолого-педагогической помощи населению «Доверие» технологии «Школа приемных родителей» мобильных служб по работе с кандидатами в приемные родители»","тыс. рублей","Х","Х","2016-2017","Министерство труда и социальной защиты  населения Забайкальского края,  ГУСО «Центр психолого-педагогической помощи населению «Доверие» Забайкальского края (по согласованию), Забайкальская региональная общественная организация «Ассоциация работников социальных служб» (по согласованию)","Х","Х","Х","Х","Х",0,0,"Х","Х","Х","Х","Х","Х","Х","Х",{"$f":"SUM(L1058:S1058)","v":0}]
[null,"финансирование за счет краевого бюджета","Х","Х","Х","Х","Х","Х","Х","Х","Х","Х","Х","Х","Х","Х","Х","Х","Х","Х","Х","Х","Х"]
[null,"кроме того, финансирование из других источников:","тыс. рублей","Х","Х","Х","Х","Х","Х","Х","Х","Х",8400,8400,"Х","Х","Х","Х","Х","Х","Х","Х",{"$f":"SUM(L1060:S1060)","v":16800}]
[null," - из Фонда","тыс. рублей","Х","Х","Х","Х","Х","Х","Х","Х","Х",0,0,"Х","Х","Х","Х","Х","Х","Х","Х",{"$f":"SUM(L1061:S1061)","v":0}]
[null," - из внебюджетных источников","тыс. рублей","Х","Х","Х","Х","Х","Х","Х","Х","Х",900,0,"Х","Х","Х","Х","Х","Х","Х","Х",{"$f":"SUM(L1062:S1062)","v":900}]
["1.9.1.5.","Мероприятие «Реализация проекта «Видеоанкета ребенка»","тыс. рублей","Х","Х","2016-2017","Министерство труда и социальной защиты  населения Забайкальского края","Х","Х","Х","Х","Х",50,50,"Х","Х","Х","Х","Х","Х","Х","Х",{"$f":"SUM(L1063:S1063)","v":100}]
[null,"финансирование за счет краевого бюджета","Х","Х","Х","Х",null,"Х","Х","Х","Х","Х","Х","Х","Х","Х","Х","Х","Х","Х","Х","Х","Х"]
[null,"кроме того, финансирование из других источников:","тыс. рублей","Х","Х","Х","Х","Х","Х","Х","Х","Х",560,560,"Х","Х","Х","Х","Х","Х","Х","Х",{"$f":"SUM(L1065:S1065)","v":1120}]
[null," - из Фонда","тыс. рублей","Х","Х","Х","Х","Х","Х","Х","Х","Х",0,0,"Х","Х","Х","Х","Х","Х","Х","Х",{"$f":"SUM(L1066:S1066)","v":0}]
[null," - из внебюджетных источников","тыс. рублей","Х","Х","Х","Х","Х","Х","Х","Х","Х",240,240,"Х","Х","Х","Х","Х","Х","Х","Х",{"$f":"SUM(L1067:S1067)","v":480}]
["1.9.1.6.","Мероприятие «Внедрение инновационных методов работы с замещающими семьями на экстренном и кризисном уровнях сопровождения»\n","тыс. рублей","Х","Х","2016-2017","Министерство труда и социальной защиты  населения Забайкальского края,  ГУСО «Центр психолого-педагогической помощи населению «Доверие» Забайкальского края (по согласованию), Забайкальская региональная общественная организация «Ассоциация работников социальных служб» (по согласованию)","Х","Х","Х","Х","Х",0,0,"Х","Х","Х","Х","Х","Х","Х","Х",{"$f":"SUM(L1068:S1068)","v":0}]
[null,"финансирование за счет краевого бюджета","Х","Х","Х","Х","Х","Х","Х","Х","Х","Х","Х","Х","Х","Х","Х","Х","Х","Х","Х","Х","Х"]
[null,"кроме того, финансирование из других источников:","тыс. рублей","Х","Х","Х","Х","Х","Х","Х","Х","Х",5370,7725,"Х","Х","Х","Х","Х","Х","Х","Х",{"$f":"SUM(L1070:S1070)","v":13095}]
[null," - из Фонда","тыс. рублей","Х","Х","Х","Х","Х","Х","Х","Х","Х",0,0,"Х","Х","Х","Х","Х","Х","Х","Х",{"$f":"SUM(L1071:S1071)","v":0}]
["1.9.1.7.","Мероприятие «Внедрение эффективных здоровьесберегающих и физкультурно-спортивных мероприятий в работу государственных учреждений социального обслуживания»\n","тыс. рублей","Х","Х","2016-2017","Министерство труда и социальной защиты  населения Забайкальского края,  ГУСО (по согласованию)","Х","Х","Х","Х","Х",2225,3000,"Х","Х","Х","Х","Х","Х","Х","Х",{"$f":"SUM(L1072:S1072)","v":5225}]
[null,"финансирование за счет краевого бюджета","Х","Х","Х","Х","Х","Х","Х","Х","Х","Х","Х","Х","Х","Х","Х","Х","Х","Х","Х","Х","Х"]
[null,"кроме того, финансирование из других источников:","тыс. рублей","Х","Х","Х","Х","Х","Х","Х","Х","Х",3950,4670,"Х","Х","Х","Х","Х","Х","Х","Х",{"$f":"SUM(L1074:S1074)","v":8620}]
[null," - из Фонда","тыс. рублей","Х","Х","Х","Х","Х","Х","Х","Х","Х",null,null,"Х","Х","Х","Х","Х","Х","Х","Х",{"$f":"SUM(L1075:S1075)","v":0}]
["1.9.1.8.","Мероприятие «Создание отделения подготовки детей в возрасте от 2 до 6 лет к передаче в замещающие семьи»","тыс. рублей","Х","Х","2016-2017","Министерство труда и социальной защиты  населения Забайкальского края,  ГУСО «Центр психолого-педагогической помощи населению «Доверие» Забайкальского края (по согласованию), Забайкальская региональная общественная организация «Ассоциация работников социальных служб» (по согласованию)","Х","Х","Х","Х","Х",1690,2000,"Х","Х","Х","Х","Х","Х","Х","Х",{"$f":"SUM(L1076:S1076)","v":3690}]
[null,"финансирование за счет краевого бюджета","Х","Х","Х","Х","Х","Х","Х","Х","Х","Х","Х","Х","Х","Х","Х","Х","Х","Х","Х","Х","Х"]
[null,"кроме того, финансирование из других источников:","тыс. рублей","Х","Х","Х","Х","Х","Х","Х","Х","Х",585,350,"Х","Х","Х","Х","Х","Х","Х","Х",{"$f":"SUM(L1078:S1078)","v":935}]
[null," - из Фонда","тыс. рублей","Х","Х","Х","Х","Х","Х","Х","Х","Х",0,0,"Х","Х","Х","Х","Х","Х","Х","Х",{"$f":"SUM(L1079:S1079)","v":0}]
["1.9.2.","Основное мероприятие «Повышение профессиональных компетенций специалистов государственных учреждений»","тыс. рублей","Х","Х","2016-2017","Министерство труда и социальной защиты  населения Забайкальского края,  ГУСО «Центр психолого-педагогической помощи населению «Доверие» Забайкальского края (по согласованию), Забайкальская региональная общественная организация «Ассоциация работников социальных служб» (по согласованию)","Х","Х","Х","Х","Х",0,0,"Х","Х","Х","Х","Х","Х","Х","Х",{"$f":"SUM(L1080:S1080)","v":0}]
[null,"финансирование за счет краевого бюджета","Х",0.3,"Х","Х","Х","Х","Х","Х","Х","Х","Х","Х","Х","Х","Х","Х","Х","Х","Х","Х","Х"]
[null,"кроме того, финансирование из других источников:","тыс. рублей","Х","Х","Х","Х","Х","Х","Х","Х","Х",{"$f":"M1087+M1091","v":2950},{"$f":"N1087+N1091","v":100},"Х","Х","Х","Х","Х","Х","Х","Х",{"$f":"SUM(L1082:S1082)","v":3050}]
[null," - из Фонда","тыс. рублей","Х","Х","Х","Х","Х","Х","Х","Х","Х",0,0,"Х","Х","Х","Х","Х","Х","Х","Х",{"$f":"SUM(L1083:S1083)","v":0}]
[null," - из Фонда","тыс. рублей","Х","Х","Х","Х","Х","Х","Х","Х","Х",{"$f":"M1089+M1093","v":1220},{"$f":"N1089+N1093","v":0},"Х","Х","Х","Х","Х","Х","Х","Х",{"$f":"SUM(L1084:S1084)","v":1220}]
["1.9.2.1.","Мероприятие «Обучение специалистов «Школы подготовки приемных родителей» и «Службы сопровождения замещающих семей» по теме: «Обеспечение защиты прав и интересов несовершеннолетних» по программе,  рассчитанной на  72 часа»","тыс. рублей","Х","Х","2016-2017","Министерство труда и социальной защиты  населения Забайкальского края,  ГУСО «Центр психолого-педагогической помощи населению «Доверие» Забайкальского края","Х","Х","Х","Х","Х",0,0,"Х","Х","Х","Х","Х","Х","Х","Х",{"$f":"SUM(L1085:S1085)","v":0}]
[null,"финансирование за счет краевого бюджета","Х","Х","Х","Х","Х","Х","Х","Х","Х","Х","Х","Х","Х","Х","Х","Х","Х","Х","Х","Х","Х"]
[null,"кроме того, финансирование из других источников:","тыс. рублей","Х","Х","Х","Х","Х","Х","Х","Х","Х",2850,0,"Х","Х","Х","Х","Х","Х","Х","Х",{"$f":"SUM(L1087:S1087)","v":2850}]
[null," - из Фонда","тыс. рублей","Х","Х","Х","Х","Х","Х","Х","Х","Х",0,0,"Х","Х","Х","Х","Х","Х","Х","Х",{"$f":"SUM(L1088:S1088)","v":0}]
["1.9.2.2.","Мероприятие «Обучение волонтеров (добровольцев) для службы сопровождения детей сирот и детей, оставшихся без попечения родителей»","тыс.рублей","Х","Х","2016-2017","Министерство труда и социальной защиты  населения Забайкальского края,  ГУСО «Центр психолого-педагогической помощи населению «Доверие» Забайкальского края (по согласованию)","Х","Х","Х","Х","Х",1220,0,"Х","Х","Х","Х","Х","Х","Х","Х",{"$f":"SUM(L1089:S1089)","v":1220}]
[null,"финансирование за счет краевого бюджета","Х","Х","Х","Х","Х","Х","Х","Х","Х","Х","Х","Х","Х","Х","Х","Х","Х","Х","Х","Х","Х"]
[null,"кроме того, финансирование из других источников:","тыс. рублей","Х","Х","Х","Х","Х","Х","Х","Х","Х",100,100,"Х","Х","Х","Х","Х","Х","Х","Х",{"$f":"SUM(L1091:S1091)","v":200}]
[null," - из Фонда","тыс. рублей","Х","Х","Х","Х","Х","Х","Х","Х","Х",0,0,"Х","Х","Х","Х","Х","Х","Х","Х",{"$f":"SUM(L1092:S1092)","v":0}]
["1.9.3.","Основное мероприятие «Работа со средствами массовой информации по развитию института замещающих семей на территории Забайкальского края»","тыс. рублей","Х","Х","2016-2017","Министерство труда и социальной защиты  населения Забайкальского края,  ГУСО «Центр психолого-педагогической помощи населению «Доверие» Забайкальского края (по согласованию)","Х","Х","Х","Х","Х",0,0,"Х","Х","Х","Х","Х","Х","Х","Х",{"$f":"SUM(L1093:S1093)","v":0}]
[null,"финансирование за счет краевого бюджета","Х",0.3,"Х","Х","Х","Х","Х","Х","Х","Х","Х","Х","Х","Х","Х","Х","Х","Х","Х","Х","Х"]
[null,"кроме того, финансирование из других источников:","тыс. рублей","Х","Х","Х","Х","Х","Х","Х","Х","Х",{"$f":"M1099","v":150},{"$f":"N1099","v":150},"Х","Х","Х","Х","Х","Х","Х","Х",{"$f":"SUM(L1095:S1095)","v":300}]
[null," - из Фонда","тыс. рублей","Х","Х","Х","Х",{"$nulls":5},0,0,"Х","Х","Х","Х","Х","Х","Х","Х",{"$f":"SUM(L1096:S1096)","v":0}]
["1.9.3.1.","Мероприятие «Проведение информационных кампаний по продвижению семейного жизнеустройства детей-сирот и детей, оставшихся без попечения родителей»","тыс. рублей","Х","Х","2016-2017","Министерство труда и социальной защиты  населения Забайкальского края,  ГУСО «Центр психолого-педагогической помощи населению «Доверие» Забайкальского края (по согласованию)","Х","Х","Х","Х","Х",0,0,"Х","Х","Х","Х","Х","Х","Х","Х",{"$f":"SUM(L1097:S1097)","v":0}]
[null,"финансирование за счет краевого бюджета","Х","Х","Х","Х","Х","Х","Х","Х","Х","Х","Х","Х","Х","Х","Х","Х","Х","Х","Х","Х","Х"]
[null,"кроме того, финансирование из других источников:","тыс. рублей","Х","Х","Х","Х","Х","Х","Х","Х","Х",150,150,"Х","Х","Х","Х","Х","Х","Х","Х",{"$f":"SUM(L1099:S1099)","v":300}]
[null," - из Фонда","тыс. рублей","Х","Х","Х","Х","Х","Х","Х","Х","Х",0,0,"Х","Х","Х","Х","Х","Х","Х","Х",0]
[null,"Задача 8. «Ресоциализация и адаптация лиц, освобожденных из мест лишения свободы. Оказание юридической, социальной и психологической помощи, предоставление социальных услуг лицам, освобожденным из мест лишения свободы»","Х","Х","Х","Х","Х","Х","Х","Х","Х","Х","Х","Х","Х","Х","Х","Х","Х","Х","Х","Х","Х"]
[" 1. 10","Подпрограмма 10. «Ресоциализация и адаптация лиц, освободившихся из мест лишения свободы»","Х","Х","Х","2021-2025","Министерство труда и социальной защиты населения Забайкальского края;\nУправление Федеральной службы исполнения наказаний Российской Федерации по Забайкальскому краю (далее - УФСИН по Забайкальскому краю),\nГосударственное казенное учреждение \"Краевой центр занятости населения\" Забайкальского края (далее - ГКУ \"КЦЗН\" Забайкальского края),\nГосударственное казенное учреждение \"Краевой центр социальной защиты населения\" Забайкальского края (далее - ГКУ \"КЦСЗН\" Забайкальского края)\nГосударственное автономное учреждение социального обслуживания \"Социальный приют\" Забайкальского края (далее - ГАУСО \"Социальный приют\" Забайкальского края)\n","Х","Х","Х","Х","Х","Х","Х","Х","Х","Х","Х","Х","Х","Х","Х","Х"]
[null,"финансирование за счет краевого бюджета","тыс. рублей","Х","Х","Х","Х","Х","Х","Х",0,0,0,0,0,0,0,{"$f":"SUM(R1107,R1119,R1131,R1139,R1144)","v":0},{"$f":"SUM(S1107,S1119,S1131,S1139,S1144)","v":0},{"$f":"T1111+T1119+T1131+T1139+T1144","v":3850},{"$f":"SUM(U1107,U1119,U1131,U1139,U1144)","v":40717.5},{"$f":"SUM(V1107,V1119,V1131,V1139,V1144)","v":33196.199999999997},{"$f":"SUM(K1103:S1103)+T1103+U1103+V1103","v":77763.7}]
[" 1.10-ПП1","Показатель «Число освободившихся из мест лишения свободы получивших социальные услуги»","чел.","Х","Х","Х","Х","Х","Х","Х","Х","Х","Х","Х","Х","Х","Х",126,100,100,100,100,{"$f":"SUM(R1104:U1104)","v":426}]
[" 1.10-ПП2","Показатель «Доля  лиц, освободившихся из мест лишения свободы, трудоустроенных на постоянные и временные места»","%",1,"Х","Х","Х","Х","Х","Х","Х","Х","Х","Х","Х","Х","Х",17.3,13.5,14,14.9,15,"Х"]
[" 1.10.1","Основное мероприятие «Организация межведомственного взаимодействия по вопросам ресоциализации лиц, освободившихся из мест лишения свободы»","Х",1,"Х","Х","Х","Х","Х","Х","Х","Х","Х","Х","Х","Х","Х","Х","Х","Х","Х","Х","Х"]
[null,"финансирование за счет краевого бюджета","тыс. рублей",1,"Х","2021-2025","Х","Х","Х","Х",0,0,0,0,0,0,0,0,0,{"$f":"T1111+T1114+T1117","v":750},{"$f":"U1111+U1114+U1117","v":850},850,{"$f":"SUM(T1107:U1107)","v":1600}]
["1.10.1.1 - ПОМ","Мероприятие «Формирование и развитие межведомственной системы ресоциализации лиц, освободившихся из мест лишения свободы»","Х","Х","Х","2021-2025","Министерство труда и социальной защиты населения Забайкальского края,\nУФСИН по Забайкальскому краю,\nГКУ \"КЦЗН\" Забайкальского края,\nГКУ \"КЦСЗН\" Забайкальского края,\nГАУСО \"Социальный приют\" Забайкальского края\n","Х","Х","Х","Х","Х","Х","Х","Х","Х","Х","Х","Х","Х","Х","Х","Х"]
["1.10.1.1","Мероприятие «Организация и проведение обучающих мероприятий для специалистов, занимающихся ресоциализацией лиц, освободившихся из мест лишения свободы»","Х",1,"Х","2021-2025","Министерство труда и социальной защиты населения Забайкальского края,\nУФСИН по Забайкальскому краю,\nГКУ \"КЦЗН\" Забайкальского края,\nГКУ \"КЦСЗН\" Забайкальского края,\nГАУСО \"Социальный приют\" Забайкальского края\n","Х","Х","Х","Х","Х","Х","Х","Х","Х","Х","Х","Х","Х","Х","Х","Х"]
["1.10.1.1-ПМ1","Показатель «Доля специалистов прошедших обучение по различным обучающим программам от общего количества специалистов, работающих с лицами, освободившимися из мест лишения свободы»","ед.",1,"Абсолютный показатель","2021-2025","Х","Х","Х","Х","Х","Х","Х","Х","Х","Х","Х",0,0,25,25,25,"Х"]
[null,"финансирование за счет краевого бюджета","тыс. рублей",1,"Х","Х","Х",1002,"17 Б 01 12508",621,0,0,0,0,0,0,0,0,0,750,850,850,{"$f":"SUM(K1111:S1111)+T1111+U1111+V1111","v":2450}]
["1.10.1.2","Мероприятие «Организация работы выездных консультационных пунктов в учреждениях Управления Федеральной службы исполнения наказаний России по Забайкальскому краю»","Х","Х","Х","2021-2025","Министерство труда и социальной защиты населения Забайкальского края,\nУФСИН по Забайкальскому краю,\nГКУ \"КЦЗН\" Забайкальского края,\nГКУ \"КЦСЗН\" Забайкальского края,\nГАУСО \"Социальный приют\" Забайкальского края\n","Х","Х","Х","Х","Х","Х","Х","Х","Х","Х","Х","Х","Х","Х","Х"]
["1.10.1.2-ПМ1","Показатель  «Количество организованных выездов в учреждениях Управления Федеральной службы исполнения наказаний России по Забайкальскому краю»","ед.",1,"Абсолютный показатель","2021-2025","Х","Х","Х","Х","Х","Х","Х","Х","Х","Х","Х",3,3,3,3,3,"Х"]
[null,"финансирование за счет краевого бюджета","тыс. рублей",1,"Х","2021-2025","Х",1002,"17 Б 01 12508",621,0,0,0,0,0,0,0,0,0,0,0,0,0]
["1.10.1.3","Мероприятие «Поддержка деятельности СОНКО, занимающихся ресоциализацией лиц, освободившихся из мест лишения свободы»","Х","Х","Х","2021-2025","Министерство труда и социальной защиты населения Забайкальского края,\nУФСИН России по Забайкальскому краю\n","Х","Х","Х","Х","Х","Х","Х","Х","Х","Х","Х","Х","Х","Х","Х","Х"]
["1.10.1.3-ПМ1","Показатель «Финансирование в Забайкальском крае СОНКО, занимающихся ресоциализацией лиц, освободившихся из мест лишения свободы»","ед.",1,"Х","2021-2025","Х","Х","Х","Х","Х","Х","Х","Х","Х","Х","Х","Х","Х",2,2,2,6]
[null,"финансирование за счет краевого бюджета","тыс. рублей",1,"Абсолютный показатель","2021-2025","Х",1002,"17 Б 01 12508",621,0,0,0,0,0,0,0,0,0,0,0,0,0]
["1.10.2 ","Основное мероприятие «Ресоциализация и адаптация лиц, освободившихся из мест лишения свободы в учреждениях социального обслуживания»","Х","Х","Х","2021-2025","Х","Х","Х","Х","Х","Х","Х","Х","Х","Х","Х","Х","Х","Х","Х","Х","Х"]
[null,"финансирование за счет краевого бюджета","тыс. рублей",1,"Х","2021-2025","Х","Х","Х","Х","Х","Х","Х","Х","Х","Х","Х",{"$f":"SUM(R1129,R1126,R1123)","v":0},{"$f":"SUM(S1129,S1126,S1123)","v":0},{"$f":"T1123+T1126+T1129","v":0},{"$f":"U1123+U1126+U1129","v":24467.5},{"$f":"V1123+V1126+V1129","v":14446.2},38913.699999999997]
[null,"Мероприятие «Создание центра ресоциализации и адаптации лиц, освободившихся из мест лишения свободы»","Х",null,null,"2021-2025","Министерство труда и социальной защиты населения Забайкальского края,\nУФСИН России по Забайкальскому краю\n","Х","Х","Х","Х","Х","Х","Х","Х","Х","Х","Х","Х","Х","Х","Х","Х"]
["1.10.2.1-ПМ1","Показатель «Капитальный ремонт помещения для центра ресоциализации и адаптации лиц, освободившихся из мест лишения свободы на 20 мест, в т.ч. с предоставлением услуг в полустационарной форме»","ед.",1,"Х","2021-2025","Х","Х","Х","Х","Х","Х","Х","Х","Х","Х","Х","Х","Х","Х",1,"Х","Х"]
["1.10.2.1-ПМ2","Показатель «Оснащение необходимой мебелью и оборудованием центра ресоциализации и адаптации лиц, освободившихся из мест лишения свободы, а также автомобильной техникой»","ед.",1,"Абсолютный показатель","2021-2025","Х","Х","Х","Х","Х","Х","Х","Х","Х","Х","Х","Х","Х","Х",632,"Х","Х"]
[null,"финансирование за счет краевого бюджета","тыс. рублей",1,"Х","2021-2025","Х",1002,"17 Б 02 12508",621,0,0,0,0,0,0,0,0,0,0,10171.299999999999,0,10171.299999999999]
["1.10.2.2","Мероприятие  «Разработка индивидуальных программ предоставления социальных услуг лицам, освободившихся из мест лишения свободы, лицам, осужденным без изоляции от общества»","Х","Х","Х","2021-2025","Министерство труда и социально защиты населения Забайкальского края,\nГАУСО\n«Социальный приют» Забайкальского края\n","Х","Х","Х","Х","Х","Х","Х","Х","Х","Х","Х","Х","Х","Х","Х","Х"]
["1.10.2.2-ПМ1","Показатель «Предоставление социальных услуг  лицам, освободившимся из мест лишения свободы»","%",1,"A/B*100, где: А - количество лиц  освободившихся из мест лишения свободы, получивших социальную помощь; В - количество лиц  освободившихся из мест лишения свободы.","2021-2025","Х","Х","Х","Х","Х","Х","Х","Х","Х","Х","Х",5.5,5,8,8,8,"Х"]
[null,"финансирование за счет краевого бюджета","тыс. рублей",1,"Х","2021-2025","Х",1002,"17 Б 02 12508",621,0,0,0,0,0,0,0,0,0,0,14296.2,14446.2,28742.400000000001]
["1.10.2.3","Мероприятие «Создание информационного ресурса для лиц, освободившимся из мест лишения свободы, а также лиц, осужденных без изоляции от общества»","Х","Х","Х","2021-2025","Министерство труда и социально защиты населения Забайкальского края,\nУФСИН России по Забайкальскому краю\n","Х","Х","Х","Х","Х","Х","Х","Х","Х","Х","Х","Х","Х","Х","Х","Х"]
["1.10.2.3-ПМ-1","Показатель «Повышение уровня информированности по вопросам оказания социальных услуг, мерах социальной поддержки, трудоустройства граждан, освободившихся из мест лишения свободы»","ед.",1,"Х","2021-2025","Х","Х","Х","Х","Х","Х","Х","Х","Х","Х","Х",1,"Х","Х","Х","Х","Х"]
[null,"финансирование за счет краевого бюджета","тыс. рублей",1,"Абсолютный показатель","2021-2025","Х",1002,"17 Б 02 12508",621,0,0,0,0,0,0,0,0,0,0,0,0,0]
["1.10.3 ","Основное мероприятие «Оказание содействия в получении  юридической, социальной и психологической помощи, предоставление социальных услуг лицам, освободившимся из мест лишения свободы»","Х","Х","Х","2021-2025","Х","Х","Х","Х","Х","Х","Х","Х","Х","Х","Х","Х","Х","Х","Х","Х","Х"]
[null,"финансирование за счет краевого бюджета","тыс. рублей",1,"Х","2021-2025","Х","Х","Х","Х",0,0,0,0,0,0,0,0,0,0,{"$f":"U1134+U1137","v":600},{"$f":"V1134+V1137","v":600},1200]
["1.10.3.1","Мероприятие «Оказание содействия в получении юридической помощи и социально-психологической поддержки лицам, освободившихся из мест лишения свободы, включая экстренную социальную помощь»","Х",null,"Х","2021-2025","Министерство труда и социально защиты населения Забайкальского края, ГАУСО\n «Социальный приют» Забайкальского края,\nГКУ«КЦСЗН »  Забайкальского края","Х","Х","Х","Х","Х","Х","Х","Х","Х","Х","Х","Х","Х","Х","Х","Х"]
["1.10.3.1-ПМ1","Показатель «Количество юридических и социально-психологических услуг  лицам, освободившихся из мест лишения свободы, включая экстренную социальную помощь»","ед.",1,"Абсолютный показатель","2024-2025","Х","Х","Х","Х","Х","Х","Х","Х","Х","Х","Х","Х","Х","Х",200,200,400]
[null,"финансирование за счет краевого бюджета","тыс. рублей",1,"Х","2024-2025","Х",1002,"17 Б 03 12508",621,0,0,0,0,0,0,0,0,0,0,200,200,400]
["1.10.3.2","Мероприятие «Содействие в оказании материальной помощи лицам, освободившимся из мест лишения свободы, находящимся в трудной жизненной ситуации\"\nОбеспечение мягким инвентарем (одеждой, обувью, нательным бельем по сезону»\n","Х","Х","Х","2021-2025","Министерство труда и социально защиты населения Забайкальского края, ГАУСО\n «Социальный приют» Забайкальского края","Х","Х","Х","Х","Х","Х","Х","Х","Х","Х","Х","Х","Х","Х","Х","Х"]
["1.10.3.3-ПМ1","Показатель «Обеспечение граждан обувью и одеждой по сезону»","ед.",1,"Х","2021-2025","Х","Х","Х","Х","Х","Х","Х","Х","Х","Х","Х","Х","Х",0,200,200,400]
[null,"финансирование за счет краевого бюджета","тыс. рублей","Х","Абсолютный показатель","2021-2025","Х",1002,"17 Б 03 12508",621,0,0,0,0,0,0,0,0,0,0,400,400,800]
["1.10.4 ","Основное мероприятие «Содействие лицам, освобожденным из мест лишения свободы, в трудоустройстве, профориентации и восстановлении профессиональных навыков»","Х","Х","Х","2021-2025","Х","Х","Х","Х","Х","Х","Х","Х","Х","Х","Х","Х","Х","Х","Х","Х","Х"]
[null,"финансирование за счет краевого бюджета","тыс. рублей",1,"Х","2021-2025","Х","Х","Х","Х",0,0,0,0,0,0,0,0,0,0,0,0,0]
["1.10.4.1","Мероприятие «Организация и проведение мероприятий активных программ содействия трудоустройству для освобожденных лиц, обратившихся в органы службы занятости населения»","Х","Х","Х","2021-2025","Министерство труда и социальной защиты населения Забайкальского края, ГКУ \"КЦЗН\" Забайкальского края","Х","Х","Х","Х","Х","Х","Х","Х","Х","Х","Х","Х","Х","Х","Х","Х"]
["1.10.4.2-ПМ1","Показатель «Доля лиц, освобожденных из мест лишения свободы, получивших услуги по профессиональной ориентации и психологической поддержки»","%",1,"А/В*100%, где:  А - численность обратившихся в ЦЗН граждан, освобожденных из УИН;  В - численность трудоустроенных граждан данной категории. ","2021-2025","Х","Х","Х","Х","Х","Х","Х","Х","Х","Х","Х",69.5,58.5,59,59.5,60,"Х"]
[null,"финансирование за счет краевого бюджета","тыс. рублей",1,"А/В*100%, где:  А - численность обратившихся в ЦЗН граждан, освобожденных из УИН; В - численность граждан данной категории, получивших гос.услуги. ","2021-2025","Х","Х","Х","Х","Х","Х","Х","Х","Х","Х","Х","Х","Х",0,0,0,"Х"]
["1.10.5 ","Основное мероприятие «Оказание финансовой поддержки производственно-хозяйственной деятельности подразделений уголовно-исполнительной системы Забайкальского края»","Х","Х","Х","2021-2025","Х","Х","Х","Х","Х","Х","Х","Х","Х","Х","Х","Х","Х","Х","Х","Х","Х"]
[null,"финансирование за счет краевого бюджета","Х",1,"Х","2021-2025","Х","Х","Х","Х",0,0,0,0,0,0,0,0,0,{"$f":"T1147+T1151+T1154","v":3100},{"$f":"U1147+U1150+U1151+U1154","v":14800},{"$f":"V1147+V1150+V1151+V1154","v":17300},{"$f":"SUM(K1144:S1144)+T1144+U1144+V1144","v":35200}]
["1.10.5.1","Мероприятие «Внедрение оборудования для технического перевооружения металлообрабатывающего, деревообрабатывающего производства и производства стройматериалов»","Х","Х","Х","2021-2025","УФСИН России по Забайкальскому краю","Х","Х","Х","Х","Х","Х","Х","Х","Х","Х","Х","Х","Х","Х","Х","Х"]
["1.10.5.1-ПМ1","Показатель «Численность привлеченных к труду осужденных, в том числе имеющих исковые требования»","чел.",1,"Х","2021-2025","Х","Х","Х","Х","Х","Х","Х","Х","Х","Х","Х","Х","Х","Х",23,23,"Х"]
[null,"финансирование за счет краевого бюджета","тыс. рублей",1,"Х","2021-2025","Х",1002,"17 Б 05 12508",621,0,0,0,0,0,0,0,0,0,0,{"$f":"6850","v":6850},{"$f":"6850","v":6850},13700]
["1.10.5.2","Мероприятие «Внедрение оборудования для модернизации швейного производства»","Х",null,"Х","2021-2025","УФСИН России по Забайкальскому краю","Х","Х","Х","Х","Х","Х","Х","Х","Х","Х","Х","Х","Х","Х","Х","Х"]
["1.10.5.2-ПМ1","Показатель «Численность привлеченных к труду осужденных, в том числе имеющих исковые требования»","чел.",1,"Х","2021-2025","Х","Х","Х","Х","Х","Х","Х","Х","Х","Х","Х","Х","Х",47,75,75,"Х"]
[null,"финансирование за счет краевого бюджета","тыс. рублей",1,"Х","2021-2025","Х",1002,"17 Б 05 12508",621,0,0,0,0,0,0,0,0,0,0,1100,3600,{"$f":"T1150+U1150+V1150","v":4700}]
[{"$nulls":7},1002,"17 Б 05 12508",622,0,0,0,0,0,0,0,0,0,3100,0,0,3100]
["1.10.5.3","Мероприятие «Внедрение оборудования для технического перевооружения производства и переработки сельскохозяйственных культур, развитие племенного животноводства, приобретение сельскохозяйственной техники для обработки земель»","Х","Х","Х","2021-2025","УФСИН России по Забайкальскому краю","Х","Х","Х","Х","Х","Х","Х","Х","Х","Х","Х","Х","Х","Х","Х","Х"]
["1.10.5.3-ПМ1","Показатель «Численность привлеченных к труду осужденных, в том числе имеющих исковые требования»","чел.",1,"Х","2021-2025","Х","Х","Х","Х","Х","Х","Х","Х","Х","Х","Х",8,4,0,9,9,"Х"]
[null,"финансирование за счет краевого бюджета","тыс. рублей",1,"Х","2021-2025","Х",1002,"17 Б 05 12508",621,0,0,0,0,0,0,0,0,0,0,6850,6850,13700]
[]
[{"$nulls":22},"\";"]

{"sheet":"Лист1","index":1,"n_rows":0,"n_cols":0,"rows_kept":0,"cut":false,"hidden":false,"merged":[]}